{"text_format":"1","workbook":"xlsx","n_sheets":16,"sheets":["Forside","Sjekkliste noter","N_Ubesv.","N_Ja","N_Nei","N_IA","N_IB","sjekkliste_noter_matrix","meta_data","sjekkliste_formelle_matrix","Sjekkliste formelle forhold","F_Ubesv.","F_Ja","F_Nei","F_IB","F_IA"],"not_rendered":{"charts":0,"images":34,"macros":1,"external_links":0,"defined_names":0,"comments":0,"pivot_tables":0},"unopened":[],"bounds":{"document_bytes":16777216,"sheet_cells":100000,"rows_first":2000,"rows_last":500,"rows_between":2000,"halvings":0,"cell_chars":16384,"cell_head_chars":4096},"cells_cut":0,"cells_raw":0,"read":"whole","date_system":"1900"}

{"sheet":"Forside","index":0,"n_rows":51,"n_cols":15,"rows_kept":51,"cut":false,"hidden":false,"merged":[[15,0,15,6],[50,0,50,4],[11,0,11,5],[34,0,34,5],[1,1,1,6],[2,1,2,6],[3,1,3,6],[4,1,4,6],[0,0,0,6]]}
["Sjekkliste årsregnskap små foretak - Ideelle organisasjoner",null,null,null,null,null,null,null,null,null,null,null,null,null,"Kommentarer - skal ikke være med i endelig versjon:"]
["Klient:"]
["År:",2023,null,null,null,null,null,null,null,null,null,null,null,null,"Felt for utført/review skal være med i GR-versjonen, ikke i PwC-versjonen til Aura"]
["Utfylt:",null,null,null,null,null,null,null,null,null,null,null,null,null,"Skal være med i GR-versjonen, ikke i PwC-versjonen til Aura"]
["Review:"]
[]
[]
[null,"Ubesvart","Ja","Nei","Ikke av betydning","IA","Sum"]
["Noter",{"$f":"G9-SUM(C9:F9)","v":83},{"$f":"_xlfn.AGGREGATE(3,5,'Sjekkliste noter'!J8:J162)","v":0},{"$f":"_xlfn.AGGREGATE(3,5,'Sjekkliste noter'!K8:K162)","v":0},{"$f":"_xlfn.AGGREGATE(3,5,'Sjekkliste noter'!L8:L162)","v":0},{"$f":"_xlfn.AGGREGATE(3,5,'Sjekkliste noter'!M8:M162)+(G9-_xlfn.AGGREGATE(2,5,'Sjekkliste noter'!A8:A162))","v":0},{"$f":"_xlfn.AGGREGATE(2,4,'Sjekkliste noter'!A16:A162)","v":83}]
["Formelle forhold",{"$f":"G10-SUM(C10:F10)","v":33},{"$f":"_xlfn.AGGREGATE(3,5,'Sjekkliste formelle forhold'!J10:J68)","v":0},{"$f":"_xlfn.AGGREGATE(3,5,'Sjekkliste formelle forhold'!K10:K68)","v":0},{"$f":"_xlfn.AGGREGATE(3,5,'Sjekkliste formelle forhold'!L10:L68)","v":0},{"$f":"_xlfn.AGGREGATE(3,5,'Sjekkliste formelle forhold'!M9:M68)+(G10-_xlfn.AGGREGATE(2,5,'Sjekkliste formelle forhold'!A9:A68))","v":0},{"$f":"_xlfn.AGGREGATE(2,4,'Sjekkliste formelle forhold'!A9:A68)","v":33}]
[]
[]
[]
["Ønsker du å bruke full sjekkliste, eller kun å kontrollere endringer i regelverk fra tidligere år og utvalgte risikoområder i virksomheten?",null,null,null,null,null,null,null,null,null,null,null,null,"F0/E0"]
[]
["Veiledning for bruk av full sjekkliste:\nSjekklisten kan spisses sånn at den kun omfatter forhold som er relevante for den aktuelle virksomheten. ",null,null,null,null,null,null,null,null,null,null,null,null,null,"Den del som gjelder policy skal flyttes opp i rad før valg om full eller endring"]
[]
["Full sjekkliste"]
["Har selskapet ansatte?",null,null,null,null,null,null,null,null,null,null,null,null,"F1"]
["Driver selskapet med forskning og utvikling?",null,null,null,null,null,null,null,null,null,null,null,null,"F3"]
["Er selskapet et datterselskap?",null,null,null,null,null,null,null,null,null,null,null,null,"F5"]
["Avlegger selskapet konsernregnskap?",null,null,null,null,null,null,null,null,null,null,null,null,"F6"]
["Har selskapet bokført goodwill?"]
[]
["Har foretaket aksjer i:",null,null,null,null,null,null,null,null,null,null,null,null,"F16-F19","Det skal inn et spørsmål til (det skal være mulig å trykke for et eller flere alternativer):\nHar foretaket aksjer i: \n- Datterselskap\n- Tilknyttet selskap\n- Felleskontrollert virksomhet\n- Andre aksjer og andeler\n"]
[]
[]
[]
[]
[]
[]
[]
[]
[]
["Veiledning for bruk av endringssjekkliste:\nVed avkryssing i listen nedenfor velger du de deler av sjekklisten som er relevante for det temaet du krysser av for. Du får da opp alle sjekkpunkter i regelverket som er aktuelle for det temaet du har valgt."]
[]
["Endringssjekkliste"]
["Er policy for bruk av endringssjekkliste fulgt?"]
[]
["Angi siste år for gjennomgang av full sjekkliste"]
[]
["Har det vært endringer i foretaket, eller er det spesifikke områder som kan ha økt risiko for feil, som man ønsker å kontrollere?"]
["Krav etter NRS (F) God regnskapsskikk for ideelle organisasjoner"]
["Driftsmidler",null,null,null,null,null,null,null,null,null,null,null,null,"E1"]
["Investeringer i datterselskaper",null,null,null,null,null,null,null,null,null,null,null,null,"E2"]
["Investeringer i tilknyttede selskaper",null,null,null,null,null,null,null,null,null,null,null,null,"E3"]
["Fordringer, gjeld, garantiforpliktelser",null,null,null,null,null,null,null,null,null,null,null,null,"E5"]
["Har selskapet endret noen regnskapsprinsipper?",null,null,null,null,null,null,null,null,null,null,null,null,"E8"]
[]
["Annet (må spesifiseres nedenfor, og du må selv velge manuelt de deler av sjekklisten du ønsker å ta inn)",null,null,null,null,null,null,null,null,null,null,null,null,null,"Her skal det ikke være noen spesiell koding, her må man hente fram aktuelle tema manuelt selv"]
["Skriv inn evt tekst her"]

{"sheet":"Sjekkliste noter","index":1,"n_rows":162,"n_cols":17,"rows_kept":162,"cut":false,"hidden":false,"merged":[[14,9,14,13],[10,4,10,13],[11,4,11,13],[12,4,12,13],[13,4,13,13],[148,11,149,11],[76,9,77,9],[76,10,77,10],[129,9,130,9],[129,10,130,10],[129,12,130,12],[129,13,130,13],[76,12,77,12],[76,13,77,13],[78,9,79,9],[78,10,79,10],[78,12,79,12],[78,13,79,13],[96,9,96,13],[107,9,108,9],[101,9,101,13],[107,10,108,10],[3,0,4,2],[99,9,99,13],[21,0,22,0],[21,1,22,1],[21,9,22,9],[21,10,22,10],[21,12,22,12],[8,4,8,13],[9,4,9,13],[21,13,22,13],[43,0,44,0],[43,1,44,1],[43,9,44,9],[43,10,44,10],[43,12,44,12],[43,13,44,13],[27,0,28,0],[27,1,28,1],[27,9,28,9],[27,10,28,10],[27,12,28,12],[27,13,28,13],[36,9,36,13],[21,11,22,11],[56,1,57,1],[70,1,71,1],[64,1,65,1],[78,0,79,0],[78,1,79,1],[76,0,77,0],[76,1,77,1],[87,0,88,0],[87,1,88,1],[90,0,92,0],[90,1,92,1],[155,0,156,0],[155,1,156,1],[107,0,108,0],[107,1,108,1],[126,0,127,0],[126,1,127,1],[124,0,125,0],[124,1,125,1],[131,0,132,0],[131,1,132,1],[129,0,130,0],[129,1,130,1],[145,1,146,1],[148,0,149,0],[148,1,149,1],[84,9,84,13],[80,9,80,13],[124,12,125,12],[124,13,125,13],[126,9,127,9],[126,10,127,10],[109,9,109,13],[128,9,128,13],[123,9,123,13],[113,9,113,13],[107,12,108,12],[107,13,108,13],[87,9,88,9],[87,10,88,10],[87,12,88,12],[87,13,88,13],[89,9,89,13],[85,9,85,13],[86,9,86,13],[102,9,103,13],[148,9,149,9],[148,10,149,10],[148,13,149,13],[131,9,132,9],[131,10,132,10],[131,12,132,12],[131,13,132,13],[124,9,125,9],[124,10,125,10],[134,9,136,13],[148,12,149,12],[147,9,147,13],[144,9,144,13],[145,9,146,13],[90,3,92,3],[90,9,92,9],[90,10,92,10],[90,12,92,12],[90,13,92,13],[126,12,127,12],[126,13,127,13],[140,9,140,13],[138,9,138,13],[133,9,133,13],[159,9,159,13],[157,9,157,13],[160,9,160,13],[154,9,154,13],[153,9,153,13],[151,9,151,13],[155,9,156,9],[155,10,156,10],[155,12,156,12],[155,13,156,13],[52,9,52,13],[48,9,48,13],[42,9,42,13],[35,9,35,13],[26,9,26,13],[16,9,16,13],[75,9,75,13],[70,9,71,13],[69,9,69,13],[64,9,65,13],[63,9,63,13],[61,9,61,13],[20,9,20,13],[55,9,55,13],[56,9,57,13]]}
["Noteopplysninger - små foretak - Ideelle organisasjoner",null,null,"Utfylt:"]
["Klient:",{"$f":"+Forside!B2","v":0},null,"Review:",null,null,null,null,null,null,null,null,null,null,null,"Ikke besvart:",{"$f":"Forside!B9","v":83}]
["År:",{"$f":"+Forside!B3","v":2023},null,null,null,null,null,null,null,null,null,null,null,null,null,"Ja-svar:",{"$f":"Forside!C9","v":0}]
["Sjekklisten gjelder for ideelle organisasjoner som følger NRS (F) God regnskapsskikk for ideelle organisasjoner. ",null,null,null,null,null,null,null,null,null,null,null,null,null,null,"Nei-svar:",{"$f":"Forside!D9","v":0}]
[null,null,null,null,null,null,null,null,null,null,null,null,null,null,null,"Ikke av betydning:",{"$f":"Forside!E9","v":0}]
[null,null,null,null,null,null,null,null,null,null,null,"Ikke av",null,null,null,"IA-svar:",{"$f":"Forside!F9","v":0}]
[null,"Spørsmål","Ref. ","Ekskludering:",null,null,null,null,null,"Ja","Nei","betydning","I/A","Kommentar",null,"Sum:",{"$f":"SUM(Q2:Q6)","v":83}]
["Plikt til utarbeidelse"]
[null,"For ideelle organisasjoner som følger NRS (F) God regnskapsskikk for ideelle organisasjoner skal det gis tilleggsopplysninger i noter til årsregnskapet i samsvar med standardens kapittel 10. Hvilke noteopplysninger som skal gis, må tilpasses den enkelte organisasjon. Ideelle organisasjoner kan også være pålagt å gi særskilte noteopplysninger i henhold til særlige forskrifter/regelverk. Noen av tilleggsopplysningene iht standardens kapittel 10 er frivillige. Disse er merket med \"anbefalt\" i sjekklisten under.","NRS (F) God regnskapsskikk for ideelle organisasjoner kapittel 10"]
[null,"Notekravene nedenfor skal som utgangspunkt alltid tas med, men kan utelates dersom de ikke er av betydning for å bedømme selskapets stilling og resultat. Disse kan tas bort fra sjekklisten ved å bruke ”hide/show” funksjonen, eller krysse av for \"Ikke av betydning\".","rskl § 7-1, 1. ledd"]
[null,"Enkelte notekrav er imidlertid pliktige, og kan aldri utelates. ","rskl § 7-1, 3. ledd"]
[null,"Det kan også være aktuelt å gi andre/ytterligere opplysninger enn de som dekkes av kravene ovenfor. Ytterligere opplysninger må gis dersom de er nødvendige for å bedømme selskapets stilling og resultat.\nSmå foretak som ikke utarbeider konsernregnskap kan unnlate å gi slike tilleggsopplysninger om forhold knyttet til konsernets stilling og resultat.","rskl § 7-1, 2. ledd"]
[null,"Det skal gis tilleggsopplysninger hvis anvendelsen av bestemmelsene i regnskapsloven ikke er tiltrekkelig for å gi et rettvisende bilde av den regnskapspliktiges eiendeler, gjeld, finansielle stilling og resultat.","rskl § 7-1, 4. ledd"]
[null,"Iflg rskl § 3-2a, 2. ledd skal bestemmelsene i rskl kap. 4 til 7 i særlige unntakstilfeller fravikes, dersom dette er nødvendig for å gi et rettvisende bilde av den regnskapspliktiges eiendeler og gjeld, finansielle stilling og resultat. Ethvert slikt fravik skal angis og begrunnes konkret og fullstendig med opplysningen om betydningen fraviket har for den regnskapspliktiges og konsernets eiendeler og gjeld, finansielle stilling og resultat. ","rskl § 7-1, 6. ledd"]
["Noterekkefølge"]
[1,"Har noteopplysningene for poster i balanse og resultatregnskap samme rekkefølge som postene i oppstillingen for balanse og resultatregnskap?","rskl § 7-1a\n\n",null,{"$f":"IF(SUM(F16:I16)>1,\"Oppgi kun et alternativ!\",\"\")","v":""},{"$f":"IF(J16=\"\",\"\",1)","v":""},{"$f":"IF(K16=\"\",\"\",1)","v":""},{"$f":"IF(L16=\"\",\"\",1)","v":""},{"$f":"IF(M16=\"\",\"\",1)","v":""},null,null,null,null,null,null,{"$f":"IF(K16<>\"\",\"Du har satt X for at forholdet ikke er avklart. Gi en nærmere foklaring i kommentarfeltet.\",\"\")","v":""}]
["Regnskapsprinsipper"]
[{"$f":"+A16+1","v":2},"Er det gitt opplysninger om anvendte regnskapsprinsipper?","rskl § 7-35\n\n",null,{"$f":"IF(SUM(F18:I18)>1,\"Oppgi kun et alternativ!\",\"\")","v":""},{"$f":"IF(J18=\"\",\"\",1)","v":""},{"$f":"IF(K18=\"\",\"\",1)","v":""},"","",null,null,null,null,null,null,""]
[{"$f":"+A18+1","v":3}," Er det ved vesentlige medlemsinntekter opplyst om hvilke kriterier som er lagt til grunn i regnskapet for inntektsføringen og periodiseringen av disse inntektene?","NRS (F) GRS for ideelle organisasjoner punkt 5.2.1 og 5.3.3",null,{"$f":"IF(SUM(F19:I19)>1,\"Oppgi kun et alternativ!\",\"\")","v":""},{"$f":"IF(J19=\"\",\"\",1)","v":""},{"$f":"IF(K19=\"\",\"\",1)","v":""},{"$f":"IF(L19=\"\",\"\",1)","v":""},{"$f":"IF(M19=\"\",\"\",1)","v":""},null,null,null,null,null,null,""]
[{"$f":"+A19+1","v":4},"Er det ved vesentlige tilskudd opplyst om hvilke prinsipper som er lagt til grunn i regnskapet for inntektsføringen og periodiseringen av disse inntektene?","NRS (F) GRS for ideelle organisasjoner punkt 5.2.1 og 5.3.3",null,"","","","","",null,null,null,null,null,null,""]
[null,"Det anbefales å gi tilleggsopplysning om at årsregnskapet er satt opp i samsvar med god regnskapsskikk for små foretak. "]
[{"$f":"+A20+1","v":5},"Dersom sammenligningstallene i regnskapet er omarbeidet, er omarbeidingen forklart?","rskl § 7-35\n",null,"",{"$f":"IF(J22=\"\",\"\",1)","v":""},{"$f":"IF(K22=\"\",\"\",1)","v":""},{"$f":"IF(L22=\"\",\"\",1)","v":""},{"$f":"IF(M22=\"\",\"\",1)","v":""},null,null,null,null,null,null,""]
[null,null,"NRS 8 pkt 3.3.2.",null,"","","","","",null,null,null,null,null,null,""]
[{"$f":"+A22+1","v":6},"Dersom det ikke er mulig å utarbeide sammenligningstall ved overgang til god regnskapsskikk for ideelle organisasjoner, er det opplyst om i note?","NRS (F) GRS for ideelle organisasjoner punkt 10.4.1 og 14.1.1",null,"","","","","",null,null,null,null,null,null,""]
[{"$f":"+A24+1","v":7},"Anbefalt: Dersom mor-organisasjonen utarbeider sitt årsregnskap som aktivitetsregnskap, men konsernregnskapet utarbeides etter en artsinndelt oppstillingsplan, bør dette begrunnes i note til konsernregnskapet.","NRS (F) GRS for ideelle organisasjoner punkt 12.4",null,"",{"$f":"IF(J25=\"\",\"\",1)","v":""},"","","",null,null,null,null,null,null,""]
[{"$f":"+A25+1","v":8},"Er alle de regnskapsprinsipper som er omtalt i notene aktuelle for selskapet?","rskl § 7-35",null,"","","","","",null,null,null,null,null,null,""]
["Goodwill"]
[{"$f":"+A26+1","v":9},"Er det gitt følgende opplysninger vedr. goodwill:\n• Anskaffelseskost ","rskl § 7-39\n",null,{"$f":"IF(SUM(F28:I28)>1,\"Oppgi kun et alternativ!\",\"\")","v":""},{"$f":"IF(J28=\"\",\"\",1)","v":""},{"$f":"IF(K28=\"\",\"\",1)","v":""},{"$f":"IF(L28=\"\",\"\",1)","v":""},{"$f":"IF(M28=\"\",\"\",1)","v":""},null,null,null,null,null,null,""]
[null,null,"NRS 8 pkt \n 4.3.1.3.4 ",null,{"$f":"IF(SUM(F29:I29)>1,\"Oppgi kun et alternativ!\",\"\")","v":""},{"$f":"IF(J29=\"\",\"\",1)","v":""},{"$f":"IF(K29=\"\",\"\",1)","v":""},{"$f":"IF(L29=\"\",\"\",1)","v":""},{"$f":"IF(M29=\"\",\"\",1)","v":""},null,null,null,null,null,null,""]
[{"$f":"+A28+1","v":10},"• Tilgang og avgang i løpet av regnskapsåret",null,null,"","","","","",null,null,null,null,null,null,""]
[{"$f":"+A30+1","v":11},"• Samlede avskrivninger og nedskrivninger, og",null,null,"","","","","",null,null,null,null,null,null,""]
[{"$f":"+A31+1","v":12},"• Avskrivninger og nedskrivninger  i regnskapsåret",null,null,"","","","","",null,null,null,null,null,null,""]
[{"$f":"+A32+1","v":13},"Er det opplyst om økonomisk levetid og valg av avskrivningsplan?","rskl § 7-39\n",null,"","","","","",null,null,null,null,null,null,""]
[{"$f":"+A33+1","v":14},"Er balanseført goodwill spesifisert for hvert enkelt virksomhetskjøp?","rskl § 7-39\n",null,"","","","","",null,null,null,null,null,null,""]
[{"$f":"+A34+1","v":15},"Er avskrivningsplan for goodwill som er lengre enn fem år begrunnet?","rskl § 7-39\n",null,"","","","","",null,null,null,null,null,null,""]
["Utvikling av rettigheter"]
[null,"For mange immaterielle eiendeler er det ikke mulig å konstatere når de ikke lenger eksisterer. Slike immaterielle eiendeler bør føres ut av noten når de er fullt avskrevet og det ikke er klart at den immaterielle eiendelen fortsatt eksisterer","NRS 8 pkt\n 4.3.1.1.4"]
[{"$f":"+A35+1","v":16},"Er det gitt følgende opplysninger vedr. FoU og rettigheter:\n• anskaffelseskost med spesifikasjon av balanseførte lånekostnader knyttet til egentilvirkede anleggsmidler,","rskl § 7-39\n",null,{"$f":"IF(SUM(F38:I38)>1,\"Oppgi kun et alternativ!\",\"\")","v":""},{"$f":"IF(J38=\"\",\"\",1)","v":""},{"$f":"IF(K38=\"\",\"\",1)","v":""},{"$f":"IF(L38=\"\",\"\",1)","v":""},{"$f":"IF(M38=\"\",\"\",1)","v":""},null,null,null,null,null,null,{"$f":"IF(K38<>\"\",\"Du har satt X for at forholdet ikke er avklart. Gi en nærmere foklaring i kommentarfeltet.\",\"\")","v":""}]
[{"$f":"+A38+1","v":17},"• tilgang og avgang i løpet av regnskapsåret,",null,null,"",{"$f":"IF(J39=\"\",\"\",1)","v":""},{"$f":"IF(K39=\"\",\"\",1)","v":""},{"$f":"IF(L39=\"\",\"\",1)","v":""},{"$f":"IF(M39=\"\",\"\",1)","v":""},null,null,null,null,null,null,""]
[18,"• samlede avskrivninger, nedskrivninger og reverseringer av nedskrivninger, og",null,null,"","","","","",null,null,null,null,null,null,""]
[19,"• avskrivninger, nedskrivninger og reverseringer av nedskrivninger i regnskapsåret",null,null,"","","","","",null,null,null,null,null,null,""]
[20,"Er det opplyst om økonomisk levetid, avskrivningsplan og eventuell endring i avskrivningsplan?",null,null,"","","","","",null,null,null,null,null,null,""]
["Varige driftsmidler"]
[{"$f":"+A42+1","v":21},"Er det gitt følgende opplysninger for varige driftsmidler:\n• anskaffelseskost med spesifikasjon av balanseførte lånekostnader knyttet til egentilvirkede anleggsmidler,","rskl § 7-39\n",null,{"$f":"IF(SUM(F44:I44)>1,\"Oppgi kun et alternativ!\",\"\")","v":""},{"$f":"IF(J44=\"\",\"\",1)","v":""},{"$f":"IF(K44=\"\",\"\",1)","v":""},{"$f":"IF(L44=\"\",\"\",1)","v":""},{"$f":"IF(M44=\"\",\"\",1)","v":""},null,null,null,null,null,null,""]
[null,null,"NRS 8\n4.3.2.5",null,{"$f":"IF(SUM(F45:I45)>1,\"Oppgi kun et alternativ!\",\"\")","v":""},{"$f":"IF(J45=\"\",\"\",1)","v":""},{"$f":"IF(K45=\"\",\"\",1)","v":""},{"$f":"IF(L45=\"\",\"\",1)","v":""},{"$f":"IF(M45=\"\",\"\",1)","v":""},null,null,null,null,null,null,""]
[{"$f":"+A44+1","v":22},"• tilgang og avgang i løpet av regnskapsåret,",null,null,"","","","","",null,null,null,null,null,null,""]
[{"$f":"+A46+1","v":23},"• samlede avskrivninger, nedskrivninger og reversering av nedskrivninger, og",null,null,"","","","","",null,null,null,null,null,null,""]
[{"$f":"+A47+1","v":24},"• avskrivninger, nedskrivninger og reversering av nedskrivninger i regnskapsåret.",null,null,"","","","","",null,null,null,null,null,null,""]
["Anleggsmidler"]
[{"$f":"+A48+1","v":25},"Dersom organisasjonen har kostnadsført betydelige midler som etter sin art normalt balanseføres, er det opplyst om og begrunnet?","NRS (F) GRS for ideelle organisasjoner punkt 7.2.6",null,{"$f":"IF(SUM(F50:I50)>1,\"Oppgi kun et alternativ!\",\"\")","v":""},{"$f":"IF(J50=\"\",\"\",1)","v":""},{"$f":"IF(K50=\"\",\"\",1)","v":""},{"$f":"IF(L50=\"\",\"\",1)","v":""},{"$f":"IF(M50=\"\",\"\",1)","v":""},null,null,null,null,null,null,{"$f":"IF(K50<>\"\",\"Du har satt X for at forholdet ikke er avklart. Gi en nærmere foklaring i kommentarfeltet.\",\"\")","v":""}]
[{"$f":"+A50+1","v":26},"Er det gitt tilleggsopplysninger om bevaringsverdige eiendeler av betydning, uavhengig av regnskapsmessig behandling? Evt avskrivninger eller nedskrivninger skal spesifiseres.","NRS (F) GRS for ideelle organisasjoner punkt 7.2.6 ",null,{"$f":"IF(SUM(F51:I51)>1,\"Oppgi kun et alternativ!\",\"\")","v":""},{"$f":"IF(J51=\"\",\"\",1)","v":""},{"$f":"IF(K51=\"\",\"\",1)","v":""},{"$f":"IF(L51=\"\",\"\",1)","v":""},{"$f":"IF(M51=\"\",\"\",1)","v":""},null,null,null,null,null,null,""]
[{"$f":"+A51+1","v":27},"Er det gitt tilstrekkelig informasjon om finansielle anleggsmidler og omløpsmidler til å kunne vurdere hvorvidt organisasjonen har oppfylt evt instrukser og begrensninger i forhold til plassering og forvaltning av midler?","NRS (F) GRS for ideelle organisasjoner punkt 7.2.6 og 7.3.3",null,"","","","","",null,null,null,null,null,null,""]
["Investering i datterselskap"]
[{"$f":"+A52+1","v":28},"Dersom det ikke utarbeides konsernregnskap, er det opplyst om transaksjoner med og mellom datterselskaper og urealisert interngevinst på disse?",null,null,{"$f":"IF(SUM(F54:I54)>1,\"Oppgi kun et alternativ!\",\"\")","v":""},{"$f":"IF(J54=\"\",\"\",1)","v":""},{"$f":"IF(K54=\"\",\"\",1)","v":""},{"$f":"IF(L54=\"\",\"\",1)","v":""},{"$f":"IF(M54=\"\",\"\",1)","v":""},null,null,null,null,null,null,""]
[{"$f":"+A54+1","v":29},"Er det for hver vesentlig enhet opplyst om;\n- forbindelsen mellom datterorganisasjonens aktiviteter og mor-organisasjonens aktiviteter, \n- totale eiendeler, gjeld og formålskapital, og\n- aktivitetsinntekter, -kostnader og aktivitetsresultat i året, oppsummert.","NRS (F) GRS for ideelle organisasjoner punkt 12.5",null,"","","","","",null,null,null,null,null,null,""]
["Investering i datterselskap bokført etter EK-metoden"]
[null,"Hvis investeringer i datterselskap regnskapsføres etter egenkapitalmetoden gjelder NRS 17 Virksomhetskjøp og konsernregnskap. Det er også utvidede notekrav i regnskapsloven. ","NRS 8\n4.3.3.1.4\n"]
[null,null,"rskl § 7-36"]
[{"$f":"+A55+1","v":30},"For datterselskap som regnskapsføres etter egenkapitalmetoden, er det opplyst om anskaffelseskost og balanseført egenkapital på anskaffelsestidspunktet?",null,null,{"$f":"IF(SUM(F59:I59)>1,\"Oppgi kun et alternativ!\",\"\")","v":""},{"$f":"IF(J59=\"\",\"\",1)","v":""},{"$f":"IF(K59=\"\",\"\",1)","v":""},{"$f":"IF(L59=\"\",\"\",1)","v":""},{"$f":"IF(M59=\"\",\"\",1)","v":""},null,null,null,null,null,null,{"$f":"IF(K59<>\"\",\"Du har satt X for at forholdet ikke er avklart. Gi en nærmere foklaring i kommentarfeltet.\",\"\")","v":""}]
[{"$f":"+A59+1","v":31},"For datterselskap som regnskapsføres etter egenkapitalmetoden, er det for hver investering opplyst om inngående balanse, inntektsført resultat, andre endringer i løpet av året og utgående balanse?",null,null,{"$f":"IF(SUM(F60:I60)>1,\"Oppgi kun et alternativ!\",\"\")","v":""},{"$f":"IF(J60=\"\",\"\",1)","v":""},{"$f":"IF(K60=\"\",\"\",1)","v":""},{"$f":"IF(L60=\"\",\"\",1)","v":""},{"$f":"IF(M60=\"\",\"\",1)","v":""},null,null,null,null,null,null,""]
[{"$f":"+A60+1","v":32},"For datterselskap som regnskapsføres etter egenkapitalmetoden, er det opplyst om merverdier og goodwill samt avskrivninger av merverdier og goodwill?",null,null,"","","","","",null,null,null,null,null,null,""]
[null,"For små foretak som utarbeider konsernregnskap gjelder også følgende punker:","rskl § 7-36"]
[{"$f":"+A61+1","v":33},"Dersom datterselskap er utelatt fra konsolideringen ihht rskl § 3-8, er dette opplyst og begrunnet?",null,null,{"$f":"IF(SUM(F63:I63)>1,\"Oppgi kun et alternativ!\",\"\")","v":""},{"$f":"IF(J63=\"\",\"\",1)","v":""},{"$f":"IF(K63=\"\",\"\",1)","v":""},{"$f":"IF(L63=\"\",\"\",1)","v":""},{"$f":"IF(M63=\"\",\"\",1)","v":""},null,null,null,null,null,null,""]
["Investering i tilknyttet selskap"]
[null,"Hvis investeringer i tilknyttet selskap regnskapsføres etter egenkapitalmetoden gjelder NRS (F) om investering i tilknyttet selskap og deltakelse i felles kontrollert virksomhet. Det er også utvidede notekrav i regnskapsloven. ","NRS 8\n4.3.3.2.4\n"]
[null,null,"rskl § 7-36"]
[{"$f":"+A63+1","v":34},"For tilknyttet selskap som regnskapsføres etter egenkapitalmetoden, er det opplyst om anskaffelseskost og balanseført egenkapital på anskaffelsestidspunktet?",null,null,{"$f":"IF(SUM(F67:I67)>1,\"Oppgi kun et alternativ!\",\"\")","v":""},{"$f":"IF(J67=\"\",\"\",1)","v":""},{"$f":"IF(K67=\"\",\"\",1)","v":""},{"$f":"IF(L67=\"\",\"\",1)","v":""},{"$f":"IF(M67=\"\",\"\",1)","v":""},null,null,null,null,null,null,{"$f":"IF(K67<>\"\",\"Du har satt X for at forholdet ikke er avklart. Gi en nærmere foklaring i kommentarfeltet.\",\"\")","v":""}]
[{"$f":"+A67+1","v":35},"For tilknyttet selskap som regnskapsføres etter egenkapitalmetoden, er det for hver investering opplyst om inngående balanse, inntektsført resultat, andre endringer i løpet av året og utgående balanse?",null,null,"","","","","",null,null,null,null,null,null,""]
[{"$f":"+A68+1","v":36},"For tilknyttet selskap som regnskapsføres etter egenkapitalmetoden, er det opplyst om merverdier og goodwill samt avskrivninger av merverdier og goodwill?",null,null,"","","","","",null,null,null,null,null,null,""]
["Deltakelse i felleskontrollert virksomhet"]
[null,"Hvis deltakelse i felles kontrollert virksomhet regnskapsføres etter egenkapitalmetoden eller bruttometoden, gjelder NRS (F) om investering i tilknyttet selskap og deltakelse i felles kontrollert virksomhet. Det er også utvidede notekrav i regnskapsloven.","NRS 8\n4.3.3.3.4\n"]
[null,null,"rskl § 7-36"]
[{"$f":"+A69+1","v":37},"For felleskontrollert virksomhet som regnskapsføres etter egenkapital- eller bruttometoden, er det opplyst om anskaffelseskost og balanseført egenkapital på anskaffelsestidspunktet?",null,null,{"$f":"IF(SUM(F73:I73)>1,\"Oppgi kun et alternativ!\",\"\")","v":""},{"$f":"IF(J73=\"\",\"\",1)","v":""},{"$f":"IF(K73=\"\",\"\",1)","v":""},{"$f":"IF(L73=\"\",\"\",1)","v":""},{"$f":"IF(M73=\"\",\"\",1)","v":""},null,null,null,null,null,null,{"$f":"IF(K73<>\"\",\"Du har satt X for at forholdet ikke er avklart. Gi en nærmere foklaring i kommentarfeltet.\",\"\")","v":""}]
[{"$f":"+A73+1","v":38},"For felleskontrollert virksomhet som regnskapsføres etter egenkapital- eller bruttometoden, er det for hver investering opplyst om inngående balanse, inntektsført resultat, andre endringer i løpet av året og utgående balanse?",null,null,{"$f":"IF(SUM(F74:I74)>1,\"Oppgi kun et alternativ!\",\"\")","v":""},{"$f":"IF(J74=\"\",\"\",1)","v":""},{"$f":"IF(K74=\"\",\"\",1)","v":""},{"$f":"IF(L74=\"\",\"\",1)","v":""},{"$f":"IF(M74=\"\",\"\",1)","v":""},null,null,null,null,null,null,{"$f":"IF(K74<>\"\",\"Du har satt X for at forholdet ikke er avklart. Gi en nærmere foklaring i kommentarfeltet.\",\"\")","v":""}]
[{"$f":"+A74+1","v":39},"For felleskontrollert virksomhet som regnskapsføres etter egenkapital- eller bruttometoden, er det opplyst om merverdier og goodwill samt avskrivninger av merverdier og goodwill?",null,null,"","","","","",null,null,null,null,null,null,{"$f":"IF(K75<>\"\",\"Du har satt X for at forholdet ikke er avklart. Gi en nærmere foklaring i kommentarfeltet.\",\"\")","v":""}]
["Egne aksjer (pliktig)"]
[{"$f":"+A75+1","v":40},"Dersom selskapet har en beholdning av egne aksjer etter aksjeloven kapittel 9, er det opplyst om antallet, aksjenes pålydende verdi og den andel aksjene utgjør av aksjekapitalen?","rskl § 7-42\n",null,{"$f":"IF(SUM(F77:I77)>1,\"Oppgi kun et alternativ!\",\"\")","v":""},{"$f":"IF(J77=\"\",\"\",1)","v":""},{"$f":"IF(K77=\"\",\"\",1)","v":""},{"$f":"IF(L77=\"\",\"\",1)","v":""},{"$f":"IF(M77=\"\",\"\",1)","v":""},null,null,null,null,null,null,{"$f":"IF(K77<>\"\",\"Du har satt X for at forholdet ikke er avklart. Gi en nærmere foklaring i kommentarfeltet.\",\"\")","v":""}]
[null,null,"NRS 8 pkt 8.7",null,{"$f":"IF(SUM(F78:I78)>1,\"Oppgi kun et alternativ!\",\"\")","v":""},{"$f":"IF(J78=\"\",\"\",1)","v":""},{"$f":"IF(K78=\"\",\"\",1)","v":""},{"$f":"IF(L78=\"\",\"\",1)","v":""},{"$f":"IF(M78=\"\",\"\",1)","v":""},null,null,null,null,null,null,{"$f":"IF(K78<>\"\",\"Du har satt X for at forholdet ikke er avklart. Gi en nærmere foklaring i kommentarfeltet.\",\"\")","v":""}]
[{"$f":"+A77+1","v":41},"Dersom det har vært endringer i beholdning av egne aksjer og datterselskapenes beholdning av aksjer i morselskapet i løpet av regnskapsåret, er det minst opplyst om følgende:\n• bakgrunn for erverv som har funnet sted\n• antall aksjer som er ervervet, vederlag for disse og den andel de utgjør av aksjekapitalen\n• antall aksjer som er avhendet, vederlaget for disse og den andel de utgjør av aksjekapitalen?","rskl § 7-42\n",null,"","","","","",null,null,null,null,null,null,{"$f":"IF(K79<>\"\",\"Du har satt X for at forholdet ikke er avklart. Gi en nærmere foklaring i kommentarfeltet.\",\"\")","v":""}]
[null,null,"NRS 8 pkt 8.7",null,"","","","","",null,null,null,null,null,null,{"$f":"IF(K80<>\"\",\"Du har satt X for at forholdet ikke er avklart. Gi en nærmere foklaring i kommentarfeltet.\",\"\")","v":""}]
["Kortsiktige investeringer, ombyttbare finansielle aksjer mv."]
[{"$f":"+A79+1","v":42},"Er det for hver kategori av markedsbaserte finansielle instrumenter og varederivater som er vurdert etter hovedregelen om virkelig verdi i rskl § 5-8 (markedsverdiprinsippet), gitt følgende informasjon:\n•  Virkelig verdi\n•  Periodens resultatførte verdiendring\n•  Vesentlige forutsetninger i verdivurderingen","rskl § 7-37",null,{"$f":"IF(SUM(F82:I82)>1,\"Oppgi kun et alternativ!\",\"\")","v":""},{"$f":"IF(J82=\"\",\"\",1)","v":""},{"$f":"IF(K82=\"\",\"\",1)","v":""},{"$f":"IF(L82=\"\",\"\",1)","v":""},{"$f":"IF(M82=\"\",\"\",1)","v":""},null,null,null,null,null,null,{"$f":"IF(K82<>\"\",\"Du har satt X for at forholdet ikke er avklart. Gi en nærmere foklaring i kommentarfeltet.\",\"\")","v":""}]
[{"$f":"+A82+1","v":43},"Er det gitt opplysninger om egenskaper ved og omfang av finansielle derivater som er vurdert til virkelig verdi etter rskl § 5-8 (markedsverdiprinsippet), fordelt på klasser av derivater?","rskl  § 7-37a",null,{"$f":"IF(SUM(F83:I83)>1,\"Oppgi kun et alternativ!\",\"\")","v":""},{"$f":"IF(J83=\"\",\"\",1)","v":""},{"$f":"IF(K83=\"\",\"\",1)","v":""},{"$f":"IF(L83=\"\",\"\",1)","v":""},{"$f":"IF(M83=\"\",\"\",1)","v":""},null,null,null,null,null,null,{"$f":"IF(K83<>\"\",\"Du har satt X for at forholdet ikke er avklart. Gi en nærmere foklaring i kommentarfeltet.\",\"\")","v":""}]
[{"$f":"+A83+1","v":44},"Omfatter opplysningene over vesentlige betingelser og forhold som kan påvirke beløpsstørrelse, tidfesting og usikkerhet ved framtidige kontantstrømmer?","rskl § 7-37a",null,"","","","","",null,null,null,null,null,null,{"$f":"IF(K84<>\"\",\"Du har satt X for at forholdet ikke er avklart. Gi en nærmere foklaring i kommentarfeltet.\",\"\")","v":""}]
["Fordringer, gjeld, garantiforpliktelser"]
[null,"De ordinære notekravene til gjeld og fordringer gjelder også for mellomværende med foretak i samme konsern, tilknyttet selskap og felleskontrollert virksomhet. I konsernforhold har man ofte ikke avtalt noen avdragsplan, det kan derfor være vanskelig å opplyse om fordringer som forfaller senere enn et år og gjeld som forfaller senere enn 5 år. I slike tilfeller bør det opplyses at avdragsplan ikke er avtalt."]
[null,"Fordringer"]
[{"$f":"+A84+1","v":45},"Er det opplyst om hvor mye av den regnskapspliktiges fordringer som forfaller senere enn ett år etter regnskapsårets slutt, spesifisert på type fordring?","rskl § 7-40\nNRS 8 pkt 6.1.2.2",null,{"$f":"IF(SUM(F88:I88)>1,\"Oppgi kun et alternativ!\",\"\")","v":""},{"$f":"IF(J88=\"\",\"\",1)","v":""},{"$f":"IF(K88=\"\",\"\",1)","v":""},{"$f":"IF(L88=\"\",\"\",1)","v":""},{"$f":"IF(M88=\"\",\"\",1)","v":""},null,null,null,null,null,null,{"$f":"IF(K88<>\"\",\"Du har satt X for at forholdet ikke er avklart. Gi en nærmere foklaring i kommentarfeltet.\",\"\")","v":""}]
[null,null,"NRS 8 pkt 8.4",null,{"$f":"IF(SUM(F89:I89)>1,\"Oppgi kun et alternativ!\",\"\")","v":""},{"$f":"IF(J89=\"\",\"\",1)","v":""},{"$f":"IF(K89=\"\",\"\",1)","v":""},{"$f":"IF(L89=\"\",\"\",1)","v":""},{"$f":"IF(M89=\"\",\"\",1)","v":""},null,null,null,null,null,null,{"$f":"IF(K89<>\"\",\"Du har satt X for at forholdet ikke er avklart. Gi en nærmere foklaring i kommentarfeltet.\",\"\")","v":""}]
[null,"Gjeld"]
[{"$f":"+A88+1","v":46},"Er det opplyst om hvor stor del av den regnskapspliktig gjeld som forfaller til betaling mer enn fem år etter regnskapsårets slutt?","rskl § 7-40\n\n",null,{"$f":"IF(SUM(F91:I91)>1,\"Oppgi kun et alternativ!\",\"\")","v":""},{"$f":"IF(J91=\"\",\"\",1)","v":""},{"$f":"IF(K91=\"\",\"\",1)","v":""},{"$f":"IF(L91=\"\",\"\",1)","v":""},{"$f":"IF(M91=\"\",\"\",1)","v":""},null,null,null,null,null,null,{"$f":"IF(K91<>\"\",\"Du har satt X for at forholdet ikke er avklart. Gi en nærmere foklaring i kommentarfeltet.\",\"\")","v":""}]
[null,null,"NRS 8 pkt 8.4",null,"","","","","",null,null,null,null,null,null,""]
[null,null,"NRS 8 pkt 6.1.2.2",null,{"$f":"IF(SUM(F93:I93)>1,\"Oppgi kun et alternativ!\",\"\")","v":""},{"$f":"IF(J93=\"\",\"\",1)","v":""},{"$f":"IF(K93=\"\",\"\",1)","v":""},{"$f":"IF(L93=\"\",\"\",1)","v":""},{"$f":"IF(M93=\"\",\"\",1)","v":""},null,null,null,null,null,null,""]
[{"$f":"+A91+1","v":47},"Er det opplyst om hvor stor del av den regnskapspliktiges gjeld som er sikret ved pant eller lignende sikkerhet i den regnskapspliktiges eiendeler?",null,null,"","","","","",null,null,null,null,null,null,""]
[{"$f":"+A94+1","v":48},"Dersom det er stillet sikkerhet for gjeld som ikke er balanseført, er det gitt opplysninger om følgende:\n• hvor stor del av gjelden som er sikret ved pant","NRS 8 pkt 6.1.2.2",null,"","","","","",null,null,null,null,null,null,""]
[{"$f":"+A95+1","v":49},"Er det opplyst om balanseført verdi av de pantsatte eiendeler?",null,null,"","","","","",null,null,null,null,null,null,""]
[null,"Garantiforpliktelser","rskl § 7-40"]
[{"$f":"+A96+1","v":50},"Er det opplyst om summen av garantiforpliktelser som ikke er regnskapsført?","NRS 8 pkt 8.4",null,{"$f":"IF(SUM(F98:I98)>1,\"Oppgi kun et alternativ!\",\"\")","v":""},{"$f":"IF(J98=\"\",\"\",1)","v":""},{"$f":"IF(K98=\"\",\"\",1)","v":""},{"$f":"IF(L98=\"\",\"\",1)","v":""},{"$f":"IF(M98=\"\",\"\",1)","v":""},null,null,null,null,null,null,""]
[{"$f":"+A98+1","v":51},"Er det opplyst om garantiforpliktelse som er sikret ved pant?",null,null,{"$f":"IF(SUM(F99:I99)>1,\"Oppgi kun et alternativ!\",\"\")","v":""},{"$f":"IF(J99=\"\",\"\",1)","v":""},{"$f":"IF(K99=\"\",\"\",1)","v":""},{"$f":"IF(L99=\"\",\"\",1)","v":""},{"$f":"IF(M99=\"\",\"\",1)","v":""},null,null,null,null,null,null,""]
[null,"Ikke-balanseførte forpliktelser"]
[{"$f":"+A99+1","v":52},"Er det opplyst om ikke-balanseførte forpliktelser av betydning knyttet til medlemsfordeler som strekker seg ut over perioden for betalt medlemskap?  ","NRS (F) GRS for ideelle organisasjoner punkt 9.2.1",null,{"$f":"IF(SUM(F101:I101)>1,\"Oppgi kun et alternativ!\",\"\")","v":""},{"$f":"IF(J101=\"\",\"\",1)","v":""},{"$f":"IF(K101=\"\",\"\",1)","v":""},{"$f":"IF(L101=\"\",\"\",1)","v":""},{"$f":"IF(M101=\"\",\"\",1)","v":""},null,null,null,null,null,null,""]
["Mellomværende med foretak i samme konsern, tilknyttet selskap og felles kontrollert virksomhet"]
[null,"De ordinære opplysningskravene til gjeld og fordringer gjelder også for mellomværende med foretak i samme konsern, tilknyttet selskap og felleskontrollert virksomhet. I konsernforhold har man ofte ikke avtalt noen avdragsplan, det kan derfor være vanskelig å opplyse om fordringer som forfaller senere enn et år og gjeld som forfaller senere enn 5 år. I slike tilfeller bør det opplyses at avdragsplan ikke er avtalt "]
[null,"I tillegg til de ordinære kravene vedrørende fordringer og gjeld, er det ytterligere opplysningskrav vedrørende mellomværende med foretak i samme konsern, tilknyttede selskap og felleskontrollert virksomhet."]
[{"$f":"+A101+1","v":53},"I små foretak som er morselskap, men som ikke avgir konsernregnskap, er det opplyst om mellomværende med datterselskap?","rskl § 7-36, 4. ledd",null,{"$f":"IF(SUM(F105:I105)>1,\"Oppgi kun et alternativ!\",\"\")","v":""},{"$f":"IF(J105=\"\",\"\",1)","v":""},{"$f":"IF(K105=\"\",\"\",1)","v":""},{"$f":"IF(L105=\"\",\"\",1)","v":""},{"$f":"IF(M105=\"\",\"\",1)","v":""},null,null,null,null,null,null,{"$f":"IF(K105<>\"\",\"Du har satt X for at forholdet ikke er avklart. Gi en nærmere foklaring i kommentarfeltet.\",\"\")","v":""}]
[{"$f":"+A105+1","v":54},"Er det opplyst om det samlede beløp for henholdsvis fordringer, annen langsiktig gjeld og kortsiktig gjeld som gjelder foretak i samme konsern, tilknyttet selskap og felleskontrollert virksomhet? ","rskl § 7-36, 5. ledd",null,{"$f":"IF(SUM(F106:I106)>1,\"Oppgi kun et alternativ!\",\"\")","v":""},{"$f":"IF(J106=\"\",\"\",1)","v":""},{"$f":"IF(K106=\"\",\"\",1)","v":""},{"$f":"IF(L106=\"\",\"\",1)","v":""},{"$f":"IF(M106=\"\",\"\",1)","v":""},null,null,null,null,null,null,{"$f":"IF(K106<>\"\",\"Du har satt X for at forholdet ikke er avklart. Gi en nærmere foklaring i kommentarfeltet.\",\"\")","v":""}]
[{"$f":"+A106+1","v":55},"Er det vist tilsvarende tall fra foregående årsregnskap? ","rskl § 7-36, 5. ledd",null,"","","","","",null,null,null,null,null,null,{"$f":"IF(K107<>\"\",\"Du har satt X for at forholdet ikke er avklart. Gi en nærmere foklaring i kommentarfeltet.\",\"\")","v":""}]
[{"$f":"+A107+1","v":56},"Er det opplyst om samlet forpliktelse i form av pantstillelse, annen sikkerhetsstillelse og garantier til fordel for foretak i samme konsern? ","rskl § 7-36, 6. ledd\n",null,"","","","","",null,null,null,null,null,null,{"$f":"IF(K108<>\"\",\"Du har satt X for at forholdet ikke er avklart. Gi en nærmere foklaring i kommentarfeltet.\",\"\")","v":""}]
[null,null,"NRS 8 pkt 8.4",null,"","","","","",null,null,null,null,null,null,{"$f":"IF(K109<>\"\",\"Du har satt X for at forholdet ikke er avklart. Gi en nærmere foklaring i kommentarfeltet.\",\"\")","v":""}]
["Egenkapital/formålskapital"]
[{"$f":"+A108+1","v":57},"Er det opplyst om hvilke hovedtyper restriksjoner som foreligger for formålskapitalen, og hvordan organisasjonen overholder restriksjonene? Evt spesielle betingelser el.l. som følge av restriksjoner skal opplyses om.","NRS (F) GRS for ideelle organisasjoner punkt 8.3",null,{"$f":"IF(SUM(F111:I111)>1,\"Oppgi kun et alternativ!\",\"\")","v":""},{"$f":"IF(J111=\"\",\"\",1)","v":""},{"$f":"IF(K111=\"\",\"\",1)","v":""},{"$f":"IF(L111=\"\",\"\",1)","v":""},{"$f":"IF(M111=\"\",\"\",1)","v":""},null,null,null,null,null,null,{"$f":"IF(K111<>\"\",\"Du har satt X for at forholdet ikke er avklart. Gi en nærmere foklaring i kommentarfeltet.\",\"\")","v":""}]
[{"$f":"+A111+1","v":58},"Dersom organisasjonen har negativ annen formålskapital, er det gitt tallmessige tilleggsopplysninger, hvor sum grunnkapital og formålskapital med restriksjoner vises, og hvor det fremkommer at negativ annen formålskapital utgjør differansen i forhold til netto formålskapital?","NRS (F) GRS for ideelle organisasjoner punkt 8.3",null,"","","","","",null,null,null,null,null,null,{"$f":"IF(K112<>\"\",\"Du har satt X for at forholdet ikke er avklart. Gi en nærmere foklaring i kommentarfeltet.\",\"\")","v":""}]
[{"$f":"+A112+1","v":59},"Når organisasjonen tar i bruk standarden for første gang, er det vist en oppstilling som forklarer endringene i formålskapitalen fra sist avlagte regnskap til inngående balanse i overgangsåret, spesifisert for alle poster som er endret i balansen? \nSmå foretak som velger å innarbeide endringene i aktivitetsregnskapet/resultatregnskapet i overgangsåret, må beskrive i note hvilke engangsvirkninger som er innarbeidet i årets aktivitets-regnskap/resultatregnskap.","NRS (F) GRS for ideelle organisasjoner punkt 14.2.1",null,{"$f":"IF(SUM(F113:I113)>1,\"Oppgi kun et alternativ!\",\"\")","v":""},{"$f":"IF(J113=\"\",\"\",1)","v":""},{"$f":"IF(K113=\"\",\"\",1)","v":""},{"$f":"IF(L113=\"\",\"\",1)","v":""},{"$f":"IF(M113=\"\",\"\",1)","v":""},null,null,null,null,null,null,{"$f":"IF(K113<>\"\",\"Du har satt X for at forholdet ikke er avklart. Gi en nærmere foklaring i kommentarfeltet.\",\"\")","v":""}]
["Resultatregnskap/aktivitetsregnskap"]
[{"$f":"+A113+1","v":60},"Anbefalt: Er det ved større samarbeidsprosjekt orientert om hvordan fordelingen av inntekter og kostnader mellom samarbeidspartnerne er gjennomført?","NRS (F) GRS for ideelle organisasjoner punkt 3.9.1",null,{"$f":"IF(SUM(F115:I115)>1,\"Oppgi kun et alternativ!\",\"\")","v":""},{"$f":"IF(J115=\"\",\"\",1)","v":""},{"$f":"IF(K115=\"\",\"\",1)","v":""},{"$f":"IF(L115=\"\",\"\",1)","v":""},{"$f":"IF(M115=\"\",\"\",1)","v":""},null,null,null,null,null,null,{"$f":"IF(K115<>\"\",\"Du har satt X for at forholdet ikke er avklart. Gi en nærmere foklaring i kommentarfeltet.\",\"\")","v":""}]
[{"$f":"+A115+1","v":61},"Anbefalt: Ved bruk av artsinndelt resultatregnskap, er det opplyst om hvilke aktiviteter som har vært gjennomført siste regnskapsår?","NRS (F) GRS for ideelle organisasjoner punkt 4.9 jf 4.2 og 4.3",null,{"$f":"IF(SUM(F116:I116)>1,\"Oppgi kun et alternativ!\",\"\")","v":""},{"$f":"IF(J116=\"\",\"\",1)","v":""},{"$f":"IF(K116=\"\",\"\",1)","v":""},{"$f":"IF(L116=\"\",\"\",1)","v":""},{"$f":"IF(M116=\"\",\"\",1)","v":""},null,null,null,null,null,null,""]
[{"$f":"+A116+1","v":62},"Ved bruk av aktivitetsregnskap, er det i note gitt spesifikasjon av organisasjonens driftskostnader etter art? \nDette innebærer følgende spesifikasjon:\n1. Endring i beholdning av varer under tilvirkning og ferdig tilvirkede varer\n2. Endring i beholdning av egentilvirkede anleggsmidler\n3. Varekostnad\n4. Lønnskostnad\n5. Avskrivning på varige driftsmidler og immaterielle eiendeler\n6. Nedskrivning på varige driftsmidler og immaterielle eiendeler\n7. Annen driftskostnad\n8. Finanskostnader","NRS (F) GRS for ideelle organisasjoner punkt 4.9 jf 4.2 ",null,"","","","","",null,null,null,null,null,null,""]
[{"$f":"+A117+1","v":63},"Ved bruk av aktivitetsregnskap, er det i note spesifisert ytterligere inndeling av anskaffede og/eller forbrukte midler, der dette er nødvendig for å gi et rettvisende bilde av organisasjonens aktiviteter?","NRS (F) GRS for ideelle organisasjoner punkt 4.9",null,"","","","","",null,null,null,null,null,null,""]
[64,"Anbefalt: Er det opplyst om hvor stor andel av de innsamlede midlene som stammer fra de forskjellige innsamlingsaktivitetene som har foregått i regnskapsperioden, når dette er vurdert nyttig for brukerne av regnskapet?","NRS (F) GRS for ideelle organisasjoner punkt 5.4.1.1",null,"","","","","",null,null,null,null,null,null,""]
[65,"Anbefalt: Er det opplyst om vesentlige sponsoravtaler, herunder beløp, kontraktstid og evt motytelser og prisinpper for periodisering?","NRS (F) GRS for ideelle organisasjoner punkt 5.5.1.1",null,"","","","","",null,null,null,null,null,null,""]
[66,"Er det opplyst om hvilke prinsipper og metoder som er brukt ved fordelingen av kostnader på de ulike aktivitetene i organisasjonen, og hvilke beregninger som ligger til grunn for fordelingen?","NRS (F) GRS for ideelle organisasjoner punkt 6.2.1",null,"","","","","",null,null,null,null,null,null,""]
[{"$f":"+A121+1","v":67},"Dersom det er vedtatt vesentlige bevilgninger som ikke er kostnadsført i regnskapet, er det opplyst om bevilgningens art og sannsynligheten for at betingelsene for bevilgningen vil inntreffe? Når det å gi bevilgninger til andre er en vesentlig del av organisasjonens aktivitet, bør det også opplyses i note om hvem/hva det er bevilget midler til.","NRS (F) GRS for ideelle organisasjoner punkt 6.4.1.1",null,{"$f":"IF(SUM(F122:I122)>1,\"Oppgi kun et alternativ!\",\"\")","v":""},{"$f":"IF(J122=\"\",\"\",1)","v":""},{"$f":"IF(K122=\"\",\"\",1)","v":""},{"$f":"IF(L122=\"\",\"\",1)","v":""},{"$f":"IF(M122=\"\",\"\",1)","v":""},null,null,null,null,null,null,""]
[{"$f":"+A122+1","v":68},"Er det opplyst om formålsprosenten for hvert av de 5 siste årene, beregnet med grunnlag i sum forbrukte midler, og er endringene i nøkkeltallet kommentert?","NRS (F) GRS for ideelle organisasjoner punkt 10.4.5",null,"","","","","",null,null,null,null,null,null,""]
["Spesifisering av poster i resultatregnskapet"]
[{"$f":"+A123+1","v":69},"Er eventuelle poster i oppstillingsplanen som er slått sammen spesifisert?","rskl § 7-38",null,{"$f":"IF(SUM(F125:I125)>1,\"Oppgi kun et alternativ!\",\"\")","v":""},{"$f":"IF(J125=\"\",\"\",1)","v":""},{"$f":"IF(K125=\"\",\"\",1)","v":""},{"$f":"IF(L125=\"\",\"\",1)","v":""},{"$f":"IF(M125=\"\",\"\",1)","v":""},null,null,null,null,null,null,{"$f":"IF(K125<>\"\",\"Du har satt X for at forholdet ikke er avklart. Gi en nærmere foklaring i kommentarfeltet.\",\"\")","v":""}]
[null,null,"NRS 8 pkt 8.3",null,{"$f":"IF(SUM(F126:I126)>1,\"Oppgi kun et alternativ!\",\"\")","v":""},{"$f":"IF(J126=\"\",\"\",1)","v":""},{"$f":"IF(K126=\"\",\"\",1)","v":""},{"$f":"IF(L126=\"\",\"\",1)","v":""},{"$f":"IF(M126=\"\",\"\",1)","v":""},null,null,null,null,null,null,{"$f":"IF(K126<>\"\",\"Du har satt X for at forholdet ikke er avklart. Gi en nærmere foklaring i kommentarfeltet.\",\"\")","v":""}]
[{"$f":"+A125+1","v":70},"Er tilsvarende sammenligningstall utarbeidet? ","rskl § 7-38",null,"","","","","",null,null,null,null,null,null,{"$f":"IF(K127<>\"\",\"Du har satt X for at forholdet ikke er avklart. Gi en nærmere foklaring i kommentarfeltet.\",\"\")","v":""}]
[null,null,"og 6-6",null,"","","","","",null,null,null,null,null,null,{"$f":"IF(K128<>\"\",\"Du har satt X for at forholdet ikke er avklart. Gi en nærmere foklaring i kommentarfeltet.\",\"\")","v":""}]
["Spesifisering av lønnskostnader"]
[{"$f":"+A127+1","v":71},"Er lønnskostnader spesifisert på lønninger, folketrygdavgift, regnskapsførte pensjonskostnader og andre ytelser?","rskl § 7-38\n",null,{"$f":"IF(SUM(F130:I130)>1,\"Oppgi kun et alternativ!\",\"\")","v":""},{"$f":"IF(J130=\"\",\"\",1)","v":""},{"$f":"IF(K130=\"\",\"\",1)","v":""},{"$f":"IF(L130=\"\",\"\",1)","v":""},{"$f":"IF(M130=\"\",\"\",1)","v":""},null,null,null,null,null,null,{"$f":"IF(K130<>\"\",\"Du har satt X for at forholdet ikke er avklart. Gi en nærmere foklaring i kommentarfeltet.\",\"\")","v":""}]
[null,null,"NRS 8 pkt 8.3",null,{"$f":"IF(SUM(F131:I131)>1,\"Oppgi kun et alternativ!\",\"\")","v":""},{"$f":"IF(J131=\"\",\"\",1)","v":""},{"$f":"IF(K131=\"\",\"\",1)","v":""},{"$f":"IF(L131=\"\",\"\",1)","v":""},{"$f":"IF(M131=\"\",\"\",1)","v":""},null,null,null,null,null,null,{"$f":"IF(K131<>\"\",\"Du har satt X for at forholdet ikke er avklart. Gi en nærmere foklaring i kommentarfeltet.\",\"\")","v":""}]
[{"$f":"+A130+1","v":72},"Er tilsvarende sammenligningstall utarbeidet?","rskl §§ 7-38 \n",null,"","","","","",null,null,null,null,null,null,{"$f":"IF(K132<>\"\",\"Du har satt X for at forholdet ikke er avklart. Gi en nærmere foklaring i kommentarfeltet.\",\"\")","v":""}]
[null,null,"og  6-6",null,"","","","","",null,null,null,null,null,null,{"$f":"IF(K133<>\"\",\"Du har satt X for at forholdet ikke er avklart. Gi en nærmere foklaring i kommentarfeltet.\",\"\")","v":""}]
["Skatt"]
[null,"For små foretak stilles det ikke krav om opplysning om beregning av skattekostnad, utsatt skatt eller utsatt skattefordel. Av rskl § 7-1 følger det imidlertid at det skal gis opplysninger som er nødvendige for å bedømme den regnskapspliktiges stilling og resultat og som ikke fremgår av årsregnskapet for øvrig.","NRS 8\npkt 6.1.1.2.3"]
[null,"Dersom foretaket har unnlatt balanseføring av fremtidig skattefordel bør det gis informasjon om dette og størrelsen på den mulige skattefordel som er unnlatt balanseført."]
[null,"Det bør gis spesifikasjon av skattekostnaden på betalbar skatt, og endring utsatt skatt."]
[{"$f":"+A132+1","v":73},"Anbefalt: Er det opplyst om omfanget av den økonomiske aktiviteten, beregningen av skattemessig overskudd eller underskudd og skattekostnaden?","NRS (F) GRS for ideelle organisasjoner punkt 10.4.6 jf punkt 2.3",null,{"$f":"IF(SUM(F138:I138)>1,\"Oppgi kun et alternativ!\",\"\")","v":""},{"$f":"IF(J138=\"\",\"\",1)","v":""},{"$f":"IF(K138=\"\",\"\",1)","v":""},{"$f":"IF(L138=\"\",\"\",1)","v":""},{"$f":"IF(M138=\"\",\"\",1)","v":""},null,null,null,null,null,null,{"$f":"IF(K138<>\"\",\"Du har satt X for at forholdet ikke er avklart. Gi en nærmere foklaring i kommentarfeltet.\",\"\")","v":""}]
["TILSKUDD"]
[{"$f":"+A138+1","v":74},"Er det for vesentlige tilskudd opplyst om hvem som har gitt tilskuddet og tilskuddets størrelse, samt evt. betingelser knyttet til tilskuddet? \nNår det ikke er mulig å estimere markedsverdi av tilskuddet skal tilskuddet beskrives, f.eks. en organisasjon som vederlagsfritt får stilt lokaler til disposisjon.","NRS (F) GRS for ideelle organisasjoner punkt 5.3.3",null,{"$f":"IF(SUM(F140:I140)>1,\"Oppgi kun et alternativ!\",\"\")","v":""},{"$f":"IF(J140=\"\",\"\",1)","v":""},{"$f":"IF(K140=\"\",\"\",1)","v":""},{"$f":"IF(L140=\"\",\"\",1)","v":""},{"$f":"IF(M140=\"\",\"\",1)","v":""},null,null,null,null,null,null,{"$f":"IF(K140<>\"\",\"Du har satt X for at forholdet ikke er avklart. Gi en nærmere foklaring i kommentarfeltet.\",\"\")","v":""}]
["ARV OG GAVER"]
[{"$f":"+A140+1","v":75},"Er det opplyst om vesentlige gaver? Dette gjelder også gaver som ikke kan måles pålitelig, og som derfor ikke er inntektsført i regnskapet.","NRS (F) GRS for ideelle organisasjoner punkt 7.1.3 og 5.4.2.1",null,{"$f":"IF(SUM(F142:I142)>1,\"Oppgi kun et alternativ!\",\"\")","v":""},{"$f":"IF(J142=\"\",\"\",1)","v":""},{"$f":"IF(K142=\"\",\"\",1)","v":""},{"$f":"IF(L142=\"\",\"\",1)","v":""},{"$f":"IF(M142=\"\",\"\",1)","v":""},null,null,null,null,null,null,{"$f":"IF(K142<>\"\",\"Du har satt X for at forholdet ikke er avklart. Gi en nærmere foklaring i kommentarfeltet.\",\"\")","v":""}]
[{"$f":"+A142+1","v":76},"Er det opplyst om prinsipper for verdsettelse av vesentlige gaver i naturalia som er verdsatt for inntektsføring i regnskapet?","NRS (F) GRS for ideelle organisasjoner punkt 5.4.2.1",null,{"$f":"IF(SUM(F143:I143)>1,\"Oppgi kun et alternativ!\",\"\")","v":""},{"$f":"IF(J143=\"\",\"\",1)","v":""},{"$f":"IF(K143=\"\",\"\",1)","v":""},{"$f":"IF(L143=\"\",\"\",1)","v":""},{"$f":"IF(M143=\"\",\"\",1)","v":""},null,null,null,null,null,null,{"$f":"IF(K143<>\"\",\"Du har satt X for at forholdet ikke er avklart. Gi en nærmere foklaring i kommentarfeltet.\",\"\")","v":""}]
[{"$f":"+A143+1","v":77},"Dersom organisasjonen har fått melding om en vesentlig arv hvor det ennå ikke er kartlagt hva arvens størrelse vil bli, er det opplyst om denne, herunder et estimat for beløpet der det er mulig?","NRS (F) GRS for ideelle organisasjoner punkt 5.4.3.1",null,"","","","","",null,null,null,null,null,null,{"$f":"IF(K144<>\"\",\"Du har satt X for at forholdet ikke er avklart. Gi en nærmere foklaring i kommentarfeltet.\",\"\")","v":""}]
["Sikring"]
[null,"Små foretak kan unnlate å gjennomføre sikringsføring, uavhengig av om vilkårene for sikring skulle være til stede.\nDersom sikring benyttes skal reglene i NRS 18 Finansielle eiendeler og forpliktelser følges.","rskl § 4-1 \nannet ledd\n"]
[null,null,"NRS 8 pkt 7.1.6"]
["Sysselsatte årsverk (pliktig)"]
[{"$f":"+A144+1","v":78}," Er det opplyst om antall sysselsatte årsverk i regnskapsåret?","rskl § 7-43\n",null,{"$f":"IF(SUM(F149:I149)>1,\"Oppgi kun et alternativ!\",\"\")","v":""},{"$f":"IF(J149=\"\",\"\",1)","v":""},{"$f":"IF(K149=\"\",\"\",1)","v":""},{"$f":"IF(L149=\"\",\"\",1)","v":""},{"$f":"IF(M149=\"\",\"\",1)","v":""},null,null,null,null,null,null,{"$f":"IF(K149<>\"\",\"Du har satt X for at forholdet ikke er avklart. Gi en nærmere foklaring i kommentarfeltet.\",\"\")","v":""}]
[null,null,"NRS 8 pkt 8. 7",null,"","","","","",null,null,null,null,null,null,{"$f":"IF(K150<>\"\",\"Du har satt X for at forholdet ikke er avklart. Gi en nærmere foklaring i kommentarfeltet.\",\"\")","v":""}]
[{"$f":"+A149+1","v":79},"Dersom det ikke har vært ansatte, er dette opplyst?","NRS 8 pkt 8.7",null,{"$f":"IF(SUM(F151:I151)>1,\"Oppgi kun et alternativ!\",\"\")","v":""},{"$f":"IF(J151=\"\",\"\",1)","v":""},{"$f":"IF(K151=\"\",\"\",1)","v":""},{"$f":"IF(L151=\"\",\"\",1)","v":""},{"$f":"IF(M151=\"\",\"\",1)","v":""},null,null,null,null,null,null,{"$f":"IF(K151<>\"\",\"Du har satt X for at forholdet ikke er avklart. Gi en nærmere foklaring i kommentarfeltet.\",\"\")","v":""}]
["Lån og sikkerhetsstillelse til ledende personer, aksjeeiere mv. (pliktig)"]
[{"$f":"+A151+1","v":80},"Er det opplyst om samlet lån til og samlet sikkerhetsstillelse til fordel for medlemmer av styret og andre administrasjons-, ledelses- eller kontrollorgan, med angivelse av rentesats, hovedvilkår og eventuelle tilbakebetalte, avskrevne eller frafalte beløp?","rskl § 7-45\n\n",null,{"$f":"IF(SUM(F153:I153)>1,\"Oppgi kun et alternativ!\",\"\")","v":""},{"$f":"IF(J153=\"\",\"\",1)","v":""},{"$f":"IF(K153=\"\",\"\",1)","v":""},{"$f":"IF(L153=\"\",\"\",1)","v":""},{"$f":"IF(M153=\"\",\"\",1)","v":""},null,null,null,null,null,null,{"$f":"IF(K153<>\"\",\"Du har satt X for at forholdet ikke er avklart. Gi en nærmere foklaring i kommentarfeltet.\",\"\")","v":""}]
[null,"Medlemmer av annet administrasjons-, ledelses- eller kontrollorgan kan for eksempel være daglige ledere eller deltakere i selskapsmøtet i ansvarlige selskaper som ikke har styre. ","NRS 8 pkt 4.3.3.6.3"]
["Datterselskaper"]
[{"$f":"+A153+1","v":81},"Har regnskapspliktig som er datterselskap opplyst om firma og forretningskontor for morselskap som utarbeider konsernregnskap der den regnskapspliktige inngår i konsolideringen?","rskl § 7-36 3.ledd\n",null,{"$f":"IF(SUM(F156:I156)>1,\"Oppgi kun et alternativ!\",\"\")","v":""},{"$f":"IF(J156=\"\",\"\",1)","v":""},{"$f":"IF(K156=\"\",\"\",1)","v":""},{"$f":"IF(L156=\"\",\"\",1)","v":""},{"$f":"IF(M156=\"\",\"\",1)","v":""},null,null,null,null,null,null,{"$f":"IF(K156<>\"\",\"Du har satt X for at forholdet ikke er avklart. Gi en nærmere foklaring i kommentarfeltet.\",\"\")","v":""}]
[null,null,"NRS 8 pkt 8.6",null,{"$f":"IF(SUM(F157:I157)>1,\"Oppgi kun et alternativ!\",\"\")","v":""},{"$f":"IF(J157=\"\",\"\",1)","v":""},{"$f":"IF(K157=\"\",\"\",1)","v":""},{"$f":"IF(L157=\"\",\"\",1)","v":""},{"$f":"IF(M157=\"\",\"\",1)","v":""},null,null,null,null,null,null,{"$f":"IF(K157<>\"\",\"Du har satt X for at forholdet ikke er avklart. Gi en nærmere foklaring i kommentarfeltet.\",\"\")","v":""}]
["Fortsatt drift"]
[{"$f":"+A156+1","v":82},"Dersom det er usikkerhet om fortsatt drift, er det opplyst om usikkerheten?","rskl § 7-46",null,{"$f":"IF(SUM(F159:I159)>1,\"Oppgi kun et alternativ!\",\"\")","v":""},{"$f":"IF(J159=\"\",\"\",1)","v":""},{"$f":"IF(K159=\"\",\"\",1)","v":""},{"$f":"IF(L159=\"\",\"\",1)","v":""},{"$f":"IF(M159=\"\",\"\",1)","v":""},null,null,null,null,null,null,{"$f":"IF(K159<>\"\",\"Du har satt X for at forholdet ikke er avklart. Gi en nærmere foklaring i kommentarfeltet.\",\"\")","v":""}]
["Avvikling"]
[null,"Foretaket skal ikke basere regnskapet på forutsetningen om fortsatt drift hvis det, innen regnskapet avlegges av styret, blir vedtatt en intensjon om å likvidere foretaket eller innstille driften, eller fortsatt drift ikke er noe realistisk alternativ. I så fall skal det  utarbeides et avviklingsregnskap.","NRS 8 pkt 8.10"]
[{"$f":"+A159+1","v":83},"I slike tilfeller som beskrevet ovenfor, angis noteopplysningene om anvendte regnskapsprinsipper at forutsetningen om fortsatt drift ikke er lagt til grunn og at eiedeler og gjeld vurderes til virkelig verdi ved avvikling, jf. rskl § 7-35 og § 4-5?",null,null,{"$f":"IF(SUM(F162:I162)>1,\"Oppgi kun et alternativ!\",\"\")","v":""},{"$f":"IF(J162=\"\",\"\",1)","v":""},{"$f":"IF(K162=\"\",\"\",1)","v":""},{"$f":"IF(L162=\"\",\"\",1)","v":""},{"$f":"IF(M162=\"\",\"\",1)","v":""},null,null,null,null,null,null,{"$f":"IF(K162<>\"\",\"Du har satt X for at forholdet ikke er avklart. Gi en nærmere foklaring i kommentarfeltet.\",\"\")","v":""}]

{"sheet":"N_Ubesv.","index":2,"n_rows":84,"n_cols":9,"rows_kept":84,"cut":false,"hidden":true,"merged":[]}
["Ikke besvart","Spørsmål",2018,"Kommentar",null,null,{"$f":"+Forside!B2","v":0},{"$f":"+Forside!B3","v":2023},"Kommentarer"]
[1,"Har noteopplysningene for poster i balanse og resultatregnskap samme rekkefølge som postene i oppstillingen for balanse og resultatregnskap?"]
[2,"Er det gitt opplysninger om anvendte regnskapsprinsipper?"]
[3," Er det ved vesentlige medlemsinntekter opplyst om hvilke kriterier som er lagt til grunn i regnskapet for inntektsføringen og periodiseringen av disse inntektene?"]
[4,"Er det ved vesentlige tilskudd opplyst om hvilke prinsipper som er lagt til grunn i regnskapet for inntektsføringen og periodiseringen av disse inntektene?"]
[5,"Dersom sammenligningstallene i regnskapet er omarbeidet, er omarbeidingen forklart?"]
[6,"Dersom det ikke er mulig å utarbeide sammenligningstall ved overgang til god regnskapsskikk for ideelle organisasjoner, er det opplyst om i note?"]
[7,"Anbefalt: Dersom mor-organisasjonen utarbeider sitt årsregnskap som aktivitetsregnskap, men konsernregnskapet utarbeides etter en artsinndelt oppstillingsplan, bør dette begrunnes i note til konsernregnskapet."]
[8,"Er alle de regnskapsprinsipper som er omtalt i notene aktuelle for selskapet?"]
[9,"Er det gitt følgende opplysninger vedr. goodwill:\n• Anskaffelseskost "]
[10,"• Tilgang og avgang i løpet av regnskapsåret"]
[11,"• Samlede avskrivninger og nedskrivninger, og"]
[12,"• Avskrivninger og nedskrivninger  i regnskapsåret"]
[13,"Er det opplyst om økonomisk levetid og valg av avskrivningsplan?"]
[14,"Er balanseført goodwill spesifisert for hvert enkelt virksomhetskjøp?"]
[15,"Er avskrivningsplan for goodwill som er lengre enn fem år begrunnet?"]
[16,"Er det gitt følgende opplysninger vedr. FoU og rettigheter:\n• anskaffelseskost med spesifikasjon av balanseførte lånekostnader knyttet til egentilvirkede anleggsmidler,"]
[17,"• tilgang og avgang i løpet av regnskapsåret,"]
[18,"• samlede avskrivninger, nedskrivninger og reverseringer av nedskrivninger, og"]
[19,"• avskrivninger, nedskrivninger og reverseringer av nedskrivninger i regnskapsåret"]
[20,"Er det opplyst om økonomisk levetid, avskrivningsplan og eventuell endring i avskrivningsplan?"]
[21,"Er det gitt følgende opplysninger for varige driftsmidler:\n• anskaffelseskost med spesifikasjon av balanseførte lånekostnader knyttet til egentilvirkede anleggsmidler,"]
[22,"• tilgang og avgang i løpet av regnskapsåret,"]
[23,"• samlede avskrivninger, nedskrivninger og reversering av nedskrivninger, og"]
[24,"• avskrivninger, nedskrivninger og reversering av nedskrivninger i regnskapsåret."]
[25,"Dersom organisasjonen har kostnadsført betydelige midler som etter sin art normalt balanseføres, er det opplyst om og begrunnet?"]
[26,"Er det gitt tilleggsopplysninger om bevaringsverdige eiendeler av betydning, uavhengig av regnskapsmessig behandling? Evt avskrivninger eller nedskrivninger skal spesifiseres."]
[27,"Er det gitt tilstrekkelig informasjon om finansielle anleggsmidler og omløpsmidler til å kunne vurdere hvorvidt organisasjonen har oppfylt evt instrukser og begrensninger i forhold til plassering og forvaltning av midler?"]
[28,"Dersom det ikke utarbeides konsernregnskap, er det opplyst om transaksjoner med og mellom datterselskaper og urealisert interngevinst på disse?"]
[29,"Er det for hver vesentlig enhet opplyst om;\n- forbindelsen mellom datterorganisasjonens aktiviteter og mor-organisasjonens aktiviteter, \n- totale eiendeler, gjeld og formålskapital, og\n- aktivitetsinntekter, -kostnader og aktivitetsresultat i året, oppsummert."]
[30,"For datterselskap som regnskapsføres etter egenkapitalmetoden, er det opplyst om anskaffelseskost og balanseført egenkapital på anskaffelsestidspunktet?"]
[31,"For datterselskap som regnskapsføres etter egenkapitalmetoden, er det for hver investering opplyst om inngående balanse, inntektsført resultat, andre endringer i løpet av året og utgående balanse?"]
[32,"For datterselskap som regnskapsføres etter egenkapitalmetoden, er det opplyst om merverdier og goodwill samt avskrivninger av merverdier og goodwill?"]
[33,"Dersom datterselskap er utelatt fra konsolideringen ihht rskl § 3-8, er dette opplyst og begrunnet?"]
[34,"For tilknyttet selskap som regnskapsføres etter egenkapitalmetoden, er det opplyst om anskaffelseskost og balanseført egenkapital på anskaffelsestidspunktet?"]
[35,"For tilknyttet selskap som regnskapsføres etter egenkapitalmetoden, er det for hver investering opplyst om inngående balanse, inntektsført resultat, andre endringer i løpet av året og utgående balanse?"]
[36,"For tilknyttet selskap som regnskapsføres etter egenkapitalmetoden, er det opplyst om merverdier og goodwill samt avskrivninger av merverdier og goodwill?"]
[37,"For felleskontrollert virksomhet som regnskapsføres etter egenkapital- eller bruttometoden, er det opplyst om anskaffelseskost og balanseført egenkapital på anskaffelsestidspunktet?"]
[38,"For felleskontrollert virksomhet som regnskapsføres etter egenkapital- eller bruttometoden, er det for hver investering opplyst om inngående balanse, inntektsført resultat, andre endringer i løpet av året og utgående balanse?"]
[39,"For felleskontrollert virksomhet som regnskapsføres etter egenkapital- eller bruttometoden, er det opplyst om merverdier og goodwill samt avskrivninger av merverdier og goodwill?"]
[40,"Dersom selskapet har en beholdning av egne aksjer etter aksjeloven kapittel 9, er det opplyst om antallet, aksjenes pålydende verdi og den andel aksjene utgjør av aksjekapitalen?"]
[41,"Dersom det har vært endringer i beholdning av egne aksjer og datterselskapenes beholdning av aksjer i morselskapet i løpet av regnskapsåret, er det minst opplyst om følgende:\n• bakgrunn for erverv som har funnet sted\n• antall aksjer som er ervervet, vederlag for disse og den andel de utgjør av aksjekapitalen\n• antall aksjer som er avhendet, vederlaget for disse og den andel de utgjør av aksjekapitalen?"]
[42,"Er det for hver kategori av markedsbaserte finansielle instrumenter og varederivater som er vurdert etter hovedregelen om virkelig verdi i rskl § 5-8 (markedsverdiprinsippet), gitt følgende informasjon:\n•  Virkelig verdi\n•  Periodens resultatførte verdiendring\n•  Vesentlige forutsetninger i verdivurderingen"]
[43,"Er det gitt opplysninger om egenskaper ved og omfang av finansielle derivater som er vurdert til virkelig verdi etter rskl § 5-8 (markedsverdiprinsippet), fordelt på klasser av derivater?"]
[44,"Omfatter opplysningene over vesentlige betingelser og forhold som kan påvirke beløpsstørrelse, tidfesting og usikkerhet ved framtidige kontantstrømmer?"]
[45,"Er det opplyst om hvor mye av den regnskapspliktiges fordringer som forfaller senere enn ett år etter regnskapsårets slutt, spesifisert på type fordring?"]
[46,"Er det opplyst om hvor stor del av den regnskapspliktig gjeld som forfaller til betaling mer enn fem år etter regnskapsårets slutt?"]
[47,"Er det opplyst om hvor stor del av den regnskapspliktiges gjeld som er sikret ved pant eller lignende sikkerhet i den regnskapspliktiges eiendeler?"]
[48,"Dersom det er stillet sikkerhet for gjeld som ikke er balanseført, er det gitt opplysninger om følgende:\n• hvor stor del av gjelden som er sikret ved pant"]
[49,"Er det opplyst om balanseført verdi av de pantsatte eiendeler?"]
[50,"Er det opplyst om summen av garantiforpliktelser som ikke er regnskapsført?"]
[51,"Er det opplyst om garantiforpliktelse som er sikret ved pant?"]
[52,"Er det opplyst om ikke-balanseførte forpliktelser av betydning knyttet til medlemsfordeler som strekker seg ut over perioden for betalt medlemskap?  "]
[53,"I små foretak som er morselskap, men som ikke avgir konsernregnskap, er det opplyst om mellomværende med datterselskap?"]
[54,"Er det opplyst om det samlede beløp for henholdsvis fordringer, annen langsiktig gjeld og kortsiktig gjeld som gjelder foretak i samme konsern, tilknyttet selskap og felleskontrollert virksomhet? "]
[55,"Er det vist tilsvarende tall fra foregående årsregnskap? "]
[56,"Er det opplyst om samlet forpliktelse i form av pantstillelse, annen sikkerhetsstillelse og garantier til fordel for foretak i samme konsern? "]
[57,"Er det opplyst om hvilke hovedtyper restriksjoner som foreligger for formålskapitalen, og hvordan organisasjonen overholder restriksjonene? Evt spesielle betingelser el.l. som følge av restriksjoner skal opplyses om."]
[58,"Dersom organisasjonen har negativ annen formålskapital, er det gitt tallmessige tilleggsopplysninger, hvor sum grunnkapital og formålskapital med restriksjoner vises, og hvor det fremkommer at negativ annen formålskapital utgjør differansen i forhold til netto formålskapital?"]
[59,"Når organisasjonen tar i bruk standarden for første gang, er det vist en oppstilling som forklarer endringene i formålskapitalen fra sist avlagte regnskap til inngående balanse i overgangsåret, spesifisert for alle poster som er endret i balansen? \nSmå foretak som velger å innarbeide endringene i aktivitetsregnskapet/resultatregnskapet i overgangsåret, må beskrive i note hvilke engangsvirkninger som er innarbeidet i årets aktivitets-regnskap/resultatregnskap."]
[60,"Anbefalt: Er det ved større samarbeidsprosjekt orientert om hvordan fordelingen av inntekter og kostnader mellom samarbeidspartnerne er gjennomført?"]
[61,"Anbefalt: Ved bruk av artsinndelt resultatregnskap, er det opplyst om hvilke aktiviteter som har vært gjennomført siste regnskapsår?"]
[62,"Ved bruk av aktivitetsregnskap, er det i note gitt spesifikasjon av organisasjonens driftskostnader etter art? \nDette innebærer følgende spesifikasjon:\n1. Endring i beholdning av varer under tilvirkning og ferdig tilvirkede varer\n2. Endring i beholdning av egentilvirkede anleggsmidler\n3. Varekostnad\n4. Lønnskostnad\n5. Avskrivning på varige driftsmidler og immaterielle eiendeler\n6. Nedskrivning på varige driftsmidler og immaterielle eiendeler\n7. Annen driftskostnad\n8. Finanskostnader"]
[63,"Ved bruk av aktivitetsregnskap, er det i note spesifisert ytterligere inndeling av anskaffede og/eller forbrukte midler, der dette er nødvendig for å gi et rettvisende bilde av organisasjonens aktiviteter?"]
[64,"Anbefalt: Er det opplyst om hvor stor andel av de innsamlede midlene som stammer fra de forskjellige innsamlingsaktivitetene som har foregått i regnskapsperioden, når dette er vurdert nyttig for brukerne av regnskapet?"]
[65,"Anbefalt: Er det opplyst om vesentlige sponsoravtaler, herunder beløp, kontraktstid og evt motytelser og prisinpper for periodisering?"]
[66,"Er det opplyst om hvilke prinsipper og metoder som er brukt ved fordelingen av kostnader på de ulike aktivitetene i organisasjonen, og hvilke beregninger som ligger til grunn for fordelingen?"]
[67,"Dersom det er vedtatt vesentlige bevilgninger som ikke er kostnadsført i regnskapet, er det opplyst om bevilgningens art og sannsynligheten for at betingelsene for bevilgningen vil inntreffe? Når det å gi bevilgninger til andre er en vesentlig del av organisasjonens aktivitet, bør det også opplyses i note om hvem/hva det er bevilget midler til."]
[68,"Er det opplyst om formålsprosenten for hvert av de 5 siste årene, beregnet med grunnlag i sum forbrukte midler, og er endringene i nøkkeltallet kommentert?"]
[69,"Er eventuelle poster i oppstillingsplanen som er slått sammen spesifisert?"]
[70,"Er tilsvarende sammenligningstall utarbeidet? "]
[71,"Er lønnskostnader spesifisert på lønninger, folketrygdavgift, regnskapsførte pensjonskostnader og andre ytelser?"]
[72,"Er tilsvarende sammenligningstall utarbeidet?"]
[73,"Anbefalt: Er det opplyst om omfanget av den økonomiske aktiviteten, beregningen av skattemessig overskudd eller underskudd og skattekostnaden?"]
[74,"Er det for vesentlige tilskudd opplyst om hvem som har gitt tilskuddet og tilskuddets størrelse, samt evt. betingelser knyttet til tilskuddet? \nNår det ikke er mulig å estimere markedsverdi av tilskuddet skal tilskuddet beskrives, f.eks. en organisasjon som vederlagsfritt får stilt lokaler til disposisjon."]
[75,"Er det opplyst om vesentlige gaver? Dette gjelder også gaver som ikke kan måles pålitelig, og som derfor ikke er inntektsført i regnskapet."]
[76,"Er det opplyst om prinsipper for verdsettelse av vesentlige gaver i naturalia som er verdsatt for inntektsføring i regnskapet?"]
[77,"Dersom organisasjonen har fått melding om en vesentlig arv hvor det ennå ikke er kartlagt hva arvens størrelse vil bli, er det opplyst om denne, herunder et estimat for beløpet der det er mulig?"]
[78," Er det opplyst om antall sysselsatte årsverk i regnskapsåret?"]
[79,"Dersom det ikke har vært ansatte, er dette opplyst?"]
[80,"Er det opplyst om samlet lån til og samlet sikkerhetsstillelse til fordel for medlemmer av styret og andre administrasjons-, ledelses- eller kontrollorgan, med angivelse av rentesats, hovedvilkår og eventuelle tilbakebetalte, avskrevne eller frafalte beløp?"]
[81,"Har regnskapspliktig som er datterselskap opplyst om firma og forretningskontor for morselskap som utarbeider konsernregnskap der den regnskapspliktige inngår i konsolideringen?"]
[82,"Dersom det er usikkerhet om fortsatt drift, er det opplyst om usikkerheten?"]
[83,"I slike tilfeller som beskrevet ovenfor, angis noteopplysningene om anvendte regnskapsprinsipper at forutsetningen om fortsatt drift ikke er lagt til grunn og at eiedeler og gjeld vurderes til virkelig verdi ved avvikling, jf. rskl § 7-35 og § 4-5?"]

{"sheet":"N_Ja","index":3,"n_rows":84,"n_cols":7,"rows_kept":84,"cut":false,"hidden":true,"merged":[]}
[null,null,{"$f":"COUNTIF(C2:C298,\"=1\")","v":0},"Ja-svar",{"$f":"+Forside!B2","v":0},{"$f":"+Forside!B3","v":2023},"Kommentarer"]
[{"$f":"'Sjekkliste noter'!A16","v":1},{"$f":"IF('Sjekkliste noter'!J16<>\"\",1,0)","v":0},{"$f":"SUM(B2:B2)","v":0},{"$f":"IF($C2=1,'Sjekkliste noter'!A16,\"\")","v":""},{"$f":"IF($C2=1,'Sjekkliste noter'!B16,\"\")","v":""},null,{"$f":"IF($C2=1,'Sjekkliste noter'!N16,\"\")","v":""}]
[{"$f":"'Sjekkliste noter'!A18","v":2},{"$f":"IF('Sjekkliste noter'!J18<>\"\",1,0)","v":0},0,{"$f":"IF($C3=1,'Sjekkliste noter'!A18,\"\")","v":""},{"$f":"IF($C3=1,'Sjekkliste noter'!B18,\"\")","v":""},null,{"$f":"IF($C3=1,'Sjekkliste noter'!N18,\"\")","v":""}]
[{"$f":"'Sjekkliste noter'!A19","v":3},{"$f":"IF('Sjekkliste noter'!J19<>\"\",1,0)","v":0},0,{"$f":"IF($C4=1,'Sjekkliste noter'!A19,\"\")","v":""},{"$f":"IF($C4=1,'Sjekkliste noter'!B19,\"\")","v":""},null,{"$f":"IF($C4=1,'Sjekkliste noter'!N19,\"\")","v":""}]
[{"$f":"'Sjekkliste noter'!A20","v":4},{"$f":"IF('Sjekkliste noter'!J20<>\"\",1,0)","v":0},0,{"$f":"IF($C5=1,'Sjekkliste noter'!A20,\"\")","v":""},{"$f":"IF($C5=1,'Sjekkliste noter'!B20,\"\")","v":""},null,{"$f":"IF($C5=1,'Sjekkliste noter'!N20,\"\")","v":""}]
[{"$f":"'Sjekkliste noter'!A22","v":5},{"$f":"IF('Sjekkliste noter'!J22<>\"\",1,0)","v":0},0,{"$f":"IF($C6=1,'Sjekkliste noter'!A22,\"\")","v":""},{"$f":"IF($C6=1,'Sjekkliste noter'!B22,\"\")","v":""},null,{"$f":"IF($C6=1,'Sjekkliste noter'!N22,\"\")","v":""}]
[{"$f":"'Sjekkliste noter'!A24","v":6},{"$f":"IF('Sjekkliste noter'!J24<>\"\",1,0)","v":0},0,{"$f":"IF($C7=1,'Sjekkliste noter'!A24,\"\")","v":""},{"$f":"IF($C7=1,'Sjekkliste noter'!B24,\"\")","v":""},null,{"$f":"IF($C7=1,'Sjekkliste noter'!N24,\"\")","v":""}]
[{"$f":"'Sjekkliste noter'!A25","v":7},{"$f":"IF('Sjekkliste noter'!J25<>\"\",1,0)","v":0},0,{"$f":"IF($C8=1,'Sjekkliste noter'!A25,\"\")","v":""},{"$f":"IF($C8=1,'Sjekkliste noter'!B25,\"\")","v":""},null,{"$f":"IF($C8=1,'Sjekkliste noter'!N25,\"\")","v":""}]
[{"$f":"'Sjekkliste noter'!A26","v":8},{"$f":"IF('Sjekkliste noter'!J26<>\"\",1,0)","v":0},0,{"$f":"IF($C9=1,'Sjekkliste noter'!A26,\"\")","v":""},{"$f":"IF($C9=1,'Sjekkliste noter'!B26,\"\")","v":""},null,{"$f":"IF($C9=1,'Sjekkliste noter'!N26,\"\")","v":""}]
[{"$f":"'Sjekkliste noter'!A28","v":9},{"$f":"IF('Sjekkliste noter'!J28<>\"\",1,0)","v":0},0,{"$f":"IF($C10=1,'Sjekkliste noter'!A28,\"\")","v":""},{"$f":"IF($C10=1,'Sjekkliste noter'!B28,\"\")","v":""},null,{"$f":"IF($C10=1,'Sjekkliste noter'!N28,\"\")","v":""}]
[{"$f":"'Sjekkliste noter'!A30","v":10},{"$f":"IF('Sjekkliste noter'!J30<>\"\",1,0)","v":0},0,{"$f":"IF($C11=1,'Sjekkliste noter'!A30,\"\")","v":""},{"$f":"IF($C11=1,'Sjekkliste noter'!B30,\"\")","v":""},null,{"$f":"IF($C11=1,'Sjekkliste noter'!N30,\"\")","v":""}]
[{"$f":"'Sjekkliste noter'!A31","v":11},{"$f":"IF('Sjekkliste noter'!J31<>\"\",1,0)","v":0},0,{"$f":"IF($C12=1,'Sjekkliste noter'!A31,\"\")","v":""},{"$f":"IF($C12=1,'Sjekkliste noter'!B31,\"\")","v":""},null,{"$f":"IF($C12=1,'Sjekkliste noter'!N31,\"\")","v":""}]
[{"$f":"'Sjekkliste noter'!A32","v":12},{"$f":"IF('Sjekkliste noter'!J32<>\"\",1,0)","v":0},0,{"$f":"IF($C13=1,'Sjekkliste noter'!A32,\"\")","v":""},{"$f":"IF($C13=1,'Sjekkliste noter'!B32,\"\")","v":""},null,{"$f":"IF($C13=1,'Sjekkliste noter'!N32,\"\")","v":""}]
[{"$f":"'Sjekkliste noter'!A33","v":13},{"$f":"IF('Sjekkliste noter'!J33<>\"\",1,0)","v":0},0,{"$f":"IF($C14=1,'Sjekkliste noter'!A33,\"\")","v":""},{"$f":"IF($C14=1,'Sjekkliste noter'!B33,\"\")","v":""},null,{"$f":"IF($C14=1,'Sjekkliste noter'!N33,\"\")","v":""}]
[{"$f":"'Sjekkliste noter'!A34","v":14},{"$f":"IF('Sjekkliste noter'!J34<>\"\",1,0)","v":0},0,{"$f":"IF($C15=1,'Sjekkliste noter'!A34,\"\")","v":""},{"$f":"IF($C15=1,'Sjekkliste noter'!B34,\"\")","v":""},null,{"$f":"IF($C15=1,'Sjekkliste noter'!N34,\"\")","v":""}]
[{"$f":"'Sjekkliste noter'!A35","v":15},{"$f":"IF('Sjekkliste noter'!J35<>\"\",1,0)","v":0},0,{"$f":"IF($C16=1,'Sjekkliste noter'!A35,\"\")","v":""},{"$f":"IF($C16=1,'Sjekkliste noter'!B35,\"\")","v":""},null,{"$f":"IF($C16=1,'Sjekkliste noter'!N35,\"\")","v":""}]
[{"$f":"'Sjekkliste noter'!A38","v":16},{"$f":"IF('Sjekkliste noter'!J38<>\"\",1,0)","v":0},0,{"$f":"IF($C17=1,'Sjekkliste noter'!A38,\"\")","v":""},{"$f":"IF($C17=1,'Sjekkliste noter'!B38,\"\")","v":""},null,{"$f":"IF($C17=1,'Sjekkliste noter'!N38,\"\")","v":""}]
[{"$f":"'Sjekkliste noter'!A39","v":17},{"$f":"IF('Sjekkliste noter'!J39<>\"\",1,0)","v":0},0,{"$f":"IF($C18=1,'Sjekkliste noter'!A39,\"\")","v":""},{"$f":"IF($C18=1,'Sjekkliste noter'!B39,\"\")","v":""},null,{"$f":"IF($C18=1,'Sjekkliste noter'!N39,\"\")","v":""}]
[{"$f":"'Sjekkliste noter'!A40","v":18},{"$f":"IF('Sjekkliste noter'!J40<>\"\",1,0)","v":0},0,{"$f":"IF($C19=1,'Sjekkliste noter'!A40,\"\")","v":""},{"$f":"IF($C19=1,'Sjekkliste noter'!B40,\"\")","v":""},null,{"$f":"IF($C19=1,'Sjekkliste noter'!N40,\"\")","v":""}]
[{"$f":"'Sjekkliste noter'!A41","v":19},{"$f":"IF('Sjekkliste noter'!J41<>\"\",1,0)","v":0},0,{"$f":"IF($C20=1,'Sjekkliste noter'!A41,\"\")","v":""},{"$f":"IF($C20=1,'Sjekkliste noter'!B41,\"\")","v":""},null,{"$f":"IF($C20=1,'Sjekkliste noter'!N41,\"\")","v":""}]
[{"$f":"'Sjekkliste noter'!A42","v":20},{"$f":"IF('Sjekkliste noter'!J42<>\"\",1,0)","v":0},0,{"$f":"IF($C21=1,'Sjekkliste noter'!A42,\"\")","v":""},{"$f":"IF($C21=1,'Sjekkliste noter'!B42,\"\")","v":""},null,{"$f":"IF($C21=1,'Sjekkliste noter'!N42,\"\")","v":""}]
[{"$f":"'Sjekkliste noter'!A44","v":21},{"$f":"IF('Sjekkliste noter'!J44<>\"\",1,0)","v":0},0,{"$f":"IF($C22=1,'Sjekkliste noter'!A44,\"\")","v":""},{"$f":"IF($C22=1,'Sjekkliste noter'!B44,\"\")","v":""},null,{"$f":"IF($C22=1,'Sjekkliste noter'!N44,\"\")","v":""}]
[{"$f":"'Sjekkliste noter'!A46","v":22},{"$f":"IF('Sjekkliste noter'!J46<>\"\",1,0)","v":0},0,{"$f":"IF($C23=1,'Sjekkliste noter'!A46,\"\")","v":""},{"$f":"IF($C23=1,'Sjekkliste noter'!B46,\"\")","v":""},null,{"$f":"IF($C23=1,'Sjekkliste noter'!N46,\"\")","v":""}]
[{"$f":"'Sjekkliste noter'!A47","v":23},{"$f":"IF('Sjekkliste noter'!J47<>\"\",1,0)","v":0},0,{"$f":"IF($C24=1,'Sjekkliste noter'!A47,\"\")","v":""},{"$f":"IF($C24=1,'Sjekkliste noter'!B47,\"\")","v":""},null,{"$f":"IF($C24=1,'Sjekkliste noter'!N47,\"\")","v":""}]
[{"$f":"'Sjekkliste noter'!A48","v":24},{"$f":"IF('Sjekkliste noter'!J48<>\"\",1,0)","v":0},0,{"$f":"IF($C25=1,'Sjekkliste noter'!A48,\"\")","v":""},{"$f":"IF($C25=1,'Sjekkliste noter'!B48,\"\")","v":""},null,{"$f":"IF($C25=1,'Sjekkliste noter'!N48,\"\")","v":""}]
[{"$f":"'Sjekkliste noter'!A50","v":25},{"$f":"IF('Sjekkliste noter'!J50<>\"\",1,0)","v":0},0,{"$f":"IF($C26=1,'Sjekkliste noter'!A50,\"\")","v":""},{"$f":"IF($C26=1,'Sjekkliste noter'!B50,\"\")","v":""},null,{"$f":"IF($C26=1,'Sjekkliste noter'!N50,\"\")","v":""}]
[{"$f":"'Sjekkliste noter'!A51","v":26},{"$f":"IF('Sjekkliste noter'!J51<>\"\",1,0)","v":0},0,{"$f":"IF($C27=1,'Sjekkliste noter'!A51,\"\")","v":""},{"$f":"IF($C27=1,'Sjekkliste noter'!B51,\"\")","v":""},null,{"$f":"IF($C27=1,'Sjekkliste noter'!N51,\"\")","v":""}]
[{"$f":"'Sjekkliste noter'!A52","v":27},{"$f":"IF('Sjekkliste noter'!J52<>\"\",1,0)","v":0},0,{"$f":"IF($C28=1,'Sjekkliste noter'!A52,\"\")","v":""},{"$f":"IF($C28=1,'Sjekkliste noter'!B52,\"\")","v":""},null,{"$f":"IF($C28=1,'Sjekkliste noter'!N52,\"\")","v":""}]
[{"$f":"'Sjekkliste noter'!A54","v":28},{"$f":"IF('Sjekkliste noter'!J54<>\"\",1,0)","v":0},0,{"$f":"IF($C29=1,'Sjekkliste noter'!A54,\"\")","v":""},{"$f":"IF($C29=1,'Sjekkliste noter'!B54,\"\")","v":""},null,{"$f":"IF($C29=1,'Sjekkliste noter'!N54,\"\")","v":""}]
[{"$f":"'Sjekkliste noter'!A55","v":29},{"$f":"IF('Sjekkliste noter'!J55<>\"\",1,0)","v":0},0,{"$f":"IF($C30=1,'Sjekkliste noter'!A55,\"\")","v":""},{"$f":"IF($C30=1,'Sjekkliste noter'!B55,\"\")","v":""},null,{"$f":"IF($C30=1,'Sjekkliste noter'!N55,\"\")","v":""}]
[{"$f":"'Sjekkliste noter'!A59","v":30},{"$f":"IF('Sjekkliste noter'!J59<>\"\",1,0)","v":0},0,{"$f":"IF($C31=1,'Sjekkliste noter'!A59,\"\")","v":""},{"$f":"IF($C31=1,'Sjekkliste noter'!B59,\"\")","v":""},null,{"$f":"IF($C31=1,'Sjekkliste noter'!N59,\"\")","v":""}]
[{"$f":"'Sjekkliste noter'!A60","v":31},{"$f":"IF('Sjekkliste noter'!J60<>\"\",1,0)","v":0},0,{"$f":"IF($C32=1,'Sjekkliste noter'!A60,\"\")","v":""},{"$f":"IF($C32=1,'Sjekkliste noter'!B60,\"\")","v":""},null,{"$f":"IF($C32=1,'Sjekkliste noter'!N60,\"\")","v":""}]
[{"$f":"'Sjekkliste noter'!A61","v":32},{"$f":"IF('Sjekkliste noter'!J61<>\"\",1,0)","v":0},0,{"$f":"IF($C33=1,'Sjekkliste noter'!A61,\"\")","v":""},{"$f":"IF($C33=1,'Sjekkliste noter'!B61,\"\")","v":""},null,{"$f":"IF($C33=1,'Sjekkliste noter'!N61,\"\")","v":""}]
[{"$f":"'Sjekkliste noter'!A63","v":33},{"$f":"IF('Sjekkliste noter'!J63<>\"\",1,0)","v":0},{"$f":"SUM(B34:B34)","v":0},{"$f":"IF($C34=1,'Sjekkliste noter'!A63,\"\")","v":""},{"$f":"IF($C34=1,'Sjekkliste noter'!B63,\"\")","v":""},null,{"$f":"IF($C34=1,'Sjekkliste noter'!N63,\"\")","v":""}]
[{"$f":"'Sjekkliste noter'!A67","v":34},{"$f":"IF('Sjekkliste noter'!J67<>\"\",1,0)","v":0},0,{"$f":"IF($C35=1,'Sjekkliste noter'!A67,\"\")","v":""},{"$f":"IF($C35=1,'Sjekkliste noter'!B67,\"\")","v":""},null,{"$f":"IF($C35=1,'Sjekkliste noter'!N67,\"\")","v":""}]
[{"$f":"'Sjekkliste noter'!A68","v":35},{"$f":"IF('Sjekkliste noter'!J68<>\"\",1,0)","v":0},0,{"$f":"IF($C36=1,'Sjekkliste noter'!A68,\"\")","v":""},{"$f":"IF($C36=1,'Sjekkliste noter'!B68,\"\")","v":""},null,{"$f":"IF($C36=1,'Sjekkliste noter'!N68,\"\")","v":""}]
[{"$f":"'Sjekkliste noter'!A69","v":36},{"$f":"IF('Sjekkliste noter'!J69<>\"\",1,0)","v":0},0,{"$f":"IF($C37=1,'Sjekkliste noter'!A69,\"\")","v":""},{"$f":"IF($C37=1,'Sjekkliste noter'!B69,\"\")","v":""},null,{"$f":"IF($C37=1,'Sjekkliste noter'!N69,\"\")","v":""}]
[{"$f":"'Sjekkliste noter'!A73","v":37},{"$f":"IF('Sjekkliste noter'!J73<>\"\",1,0)","v":0},0,{"$f":"IF($C38=1,'Sjekkliste noter'!A73,\"\")","v":""},{"$f":"IF($C38=1,'Sjekkliste noter'!B73,\"\")","v":""},null,{"$f":"IF($C38=1,'Sjekkliste noter'!N73,\"\")","v":""}]
[{"$f":"'Sjekkliste noter'!A74","v":38},{"$f":"IF('Sjekkliste noter'!J74<>\"\",1,0)","v":0},0,{"$f":"IF($C39=1,'Sjekkliste noter'!A74,\"\")","v":""},{"$f":"IF($C39=1,'Sjekkliste noter'!B74,\"\")","v":""},null,{"$f":"IF($C39=1,'Sjekkliste noter'!N74,\"\")","v":""}]
[{"$f":"'Sjekkliste noter'!A75","v":39},{"$f":"IF('Sjekkliste noter'!J75<>\"\",1,0)","v":0},0,{"$f":"IF($C40=1,'Sjekkliste noter'!A75,\"\")","v":""},{"$f":"IF($C40=1,'Sjekkliste noter'!B75,\"\")","v":""},null,{"$f":"IF($C40=1,'Sjekkliste noter'!N75,\"\")","v":""}]
[{"$f":"'Sjekkliste noter'!A77","v":40},{"$f":"IF('Sjekkliste noter'!J77<>\"\",1,0)","v":0},0,{"$f":"IF($C41=1,'Sjekkliste noter'!A77,\"\")","v":""},{"$f":"IF($C41=1,'Sjekkliste noter'!B77,\"\")","v":""},null,{"$f":"IF($C41=1,'Sjekkliste noter'!N77,\"\")","v":""}]
[{"$f":"'Sjekkliste noter'!A79","v":41},{"$f":"IF('Sjekkliste noter'!J79<>\"\",1,0)","v":0},0,{"$f":"IF($C42=1,'Sjekkliste noter'!A79,\"\")","v":""},{"$f":"IF($C42=1,'Sjekkliste noter'!B79,\"\")","v":""},null,{"$f":"IF($C42=1,'Sjekkliste noter'!N79,\"\")","v":""}]
[{"$f":"'Sjekkliste noter'!A82","v":42},{"$f":"IF('Sjekkliste noter'!J82<>\"\",1,0)","v":0},0,{"$f":"IF($C43=1,'Sjekkliste noter'!A82,\"\")","v":""},{"$f":"IF($C43=1,'Sjekkliste noter'!B82,\"\")","v":""},null,{"$f":"IF($C43=1,'Sjekkliste noter'!N82,\"\")","v":""}]
[{"$f":"'Sjekkliste noter'!A83","v":43},{"$f":"IF('Sjekkliste noter'!J83<>\"\",1,0)","v":0},0,{"$f":"IF($C44=1,'Sjekkliste noter'!A83,\"\")","v":""},{"$f":"IF($C44=1,'Sjekkliste noter'!B83,\"\")","v":""},null,{"$f":"IF($C44=1,'Sjekkliste noter'!N83,\"\")","v":""}]
[{"$f":"'Sjekkliste noter'!A84","v":44},{"$f":"IF('Sjekkliste noter'!J84<>\"\",1,0)","v":0},0,{"$f":"IF($C45=1,'Sjekkliste noter'!A84,\"\")","v":""},{"$f":"IF($C45=1,'Sjekkliste noter'!B84,\"\")","v":""},null,{"$f":"IF($C45=1,'Sjekkliste noter'!N84,\"\")","v":""}]
[{"$f":"'Sjekkliste noter'!A88","v":45},{"$f":"IF('Sjekkliste noter'!J88<>\"\",1,0)","v":0},0,{"$f":"IF($C46=1,'Sjekkliste noter'!A88,\"\")","v":""},{"$f":"IF($C46=1,'Sjekkliste noter'!B88,\"\")","v":""},null,{"$f":"IF($C46=1,'Sjekkliste noter'!N88,\"\")","v":""}]
[{"$f":"'Sjekkliste noter'!A91","v":46},{"$f":"IF('Sjekkliste noter'!J91<>\"\",1,0)","v":0},0,{"$f":"IF($C47=1,'Sjekkliste noter'!A91,\"\")","v":""},{"$f":"IF($C47=1,'Sjekkliste noter'!B91,\"\")","v":""},null,{"$f":"IF($C47=1,'Sjekkliste noter'!N91,\"\")","v":""}]
[{"$f":"'Sjekkliste noter'!A94","v":47},{"$f":"IF('Sjekkliste noter'!J94<>\"\",1,0)","v":0},0,{"$f":"IF($C48=1,'Sjekkliste noter'!A94,\"\")","v":""},{"$f":"IF($C48=1,'Sjekkliste noter'!B94,\"\")","v":""},null,{"$f":"IF($C48=1,'Sjekkliste noter'!N94,\"\")","v":""}]
[{"$f":"'Sjekkliste noter'!A95","v":48},{"$f":"IF('Sjekkliste noter'!J95<>\"\",1,0)","v":0},0,{"$f":"IF($C49=1,'Sjekkliste noter'!A95,\"\")","v":""},{"$f":"IF($C49=1,'Sjekkliste noter'!B95,\"\")","v":""},null,{"$f":"IF($C49=1,'Sjekkliste noter'!N95,\"\")","v":""}]
[{"$f":"'Sjekkliste noter'!A96","v":49},{"$f":"IF('Sjekkliste noter'!J96<>\"\",1,0)","v":0},0,{"$f":"IF($C50=1,'Sjekkliste noter'!A96,\"\")","v":""},{"$f":"IF($C50=1,'Sjekkliste noter'!B96,\"\")","v":""},null,{"$f":"IF($C50=1,'Sjekkliste noter'!N96,\"\")","v":""}]
[{"$f":"'Sjekkliste noter'!A98","v":50},{"$f":"IF('Sjekkliste noter'!J98<>\"\",1,0)","v":0},0,{"$f":"IF($C51=1,'Sjekkliste noter'!A98,\"\")","v":""},{"$f":"IF($C51=1,'Sjekkliste noter'!B98,\"\")","v":""},null,{"$f":"IF($C51=1,'Sjekkliste noter'!N98,\"\")","v":""}]
[{"$f":"'Sjekkliste noter'!A99","v":51},{"$f":"IF('Sjekkliste noter'!J99<>\"\",1,0)","v":0},0,{"$f":"IF($C52=1,'Sjekkliste noter'!A99,\"\")","v":""},{"$f":"IF($C52=1,'Sjekkliste noter'!B99,\"\")","v":""},null,{"$f":"IF($C52=1,'Sjekkliste noter'!N99,\"\")","v":""}]
[{"$f":"'Sjekkliste noter'!A101","v":52},{"$f":"IF('Sjekkliste noter'!J101<>\"\",1,0)","v":0},0,{"$f":"IF($C53=1,'Sjekkliste noter'!A101,\"\")","v":""},{"$f":"IF($C53=1,'Sjekkliste noter'!B101,\"\")","v":""},null,{"$f":"IF($C53=1,'Sjekkliste noter'!N101,\"\")","v":""}]
[{"$f":"'Sjekkliste noter'!A105","v":53},{"$f":"IF('Sjekkliste noter'!J105<>\"\",1,0)","v":0},0,{"$f":"IF($C54=1,'Sjekkliste noter'!A105,\"\")","v":""},{"$f":"IF($C54=1,'Sjekkliste noter'!B105,\"\")","v":""},null,{"$f":"IF($C54=1,'Sjekkliste noter'!N105,\"\")","v":""}]
[{"$f":"'Sjekkliste noter'!A106","v":54},{"$f":"IF('Sjekkliste noter'!J106<>\"\",1,0)","v":0},0,{"$f":"IF($C55=1,'Sjekkliste noter'!A106,\"\")","v":""},{"$f":"IF($C55=1,'Sjekkliste noter'!B106,\"\")","v":""},null,{"$f":"IF($C55=1,'Sjekkliste noter'!N106,\"\")","v":""}]
[{"$f":"'Sjekkliste noter'!A107","v":55},{"$f":"IF('Sjekkliste noter'!J107<>\"\",1,0)","v":0},0,{"$f":"IF($C56=1,'Sjekkliste noter'!A107,\"\")","v":""},{"$f":"IF($C56=1,'Sjekkliste noter'!B107,\"\")","v":""},null,{"$f":"IF($C56=1,'Sjekkliste noter'!N107,\"\")","v":""}]
[{"$f":"'Sjekkliste noter'!A108","v":56},{"$f":"IF('Sjekkliste noter'!J108<>\"\",1,0)","v":0},0,{"$f":"IF($C57=1,'Sjekkliste noter'!A108,\"\")","v":""},{"$f":"IF($C57=1,'Sjekkliste noter'!B108,\"\")","v":""},null,{"$f":"IF($C57=1,'Sjekkliste noter'!N108,\"\")","v":""}]
[{"$f":"'Sjekkliste noter'!A111","v":57},{"$f":"IF('Sjekkliste noter'!J111<>\"\",1,0)","v":0},0,{"$f":"IF($C58=1,'Sjekkliste noter'!A111,\"\")","v":""},{"$f":"IF($C58=1,'Sjekkliste noter'!B111,\"\")","v":""},null,{"$f":"IF($C58=1,'Sjekkliste noter'!N111,\"\")","v":""}]
[{"$f":"'Sjekkliste noter'!A112","v":58},{"$f":"IF('Sjekkliste noter'!J112<>\"\",1,0)","v":0},0,{"$f":"IF($C59=1,'Sjekkliste noter'!A112,\"\")","v":""},{"$f":"IF($C59=1,'Sjekkliste noter'!B112,\"\")","v":""},null,{"$f":"IF($C59=1,'Sjekkliste noter'!N112,\"\")","v":""}]
[{"$f":"'Sjekkliste noter'!A113","v":59},{"$f":"IF('Sjekkliste noter'!J113<>\"\",1,0)","v":0},0,{"$f":"IF($C60=1,'Sjekkliste noter'!A113,\"\")","v":""},{"$f":"IF($C60=1,'Sjekkliste noter'!B113,\"\")","v":""},null,{"$f":"IF($C60=1,'Sjekkliste noter'!N113,\"\")","v":""}]
[{"$f":"'Sjekkliste noter'!A115","v":60},{"$f":"IF('Sjekkliste noter'!J115<>\"\",1,0)","v":0},0,{"$f":"IF($C61=1,'Sjekkliste noter'!A115,\"\")","v":""},{"$f":"IF($C61=1,'Sjekkliste noter'!B115,\"\")","v":""},null,{"$f":"IF($C61=1,'Sjekkliste noter'!N115,\"\")","v":""}]
[{"$f":"'Sjekkliste noter'!A116","v":61},{"$f":"IF('Sjekkliste noter'!J116<>\"\",1,0)","v":0},0,{"$f":"IF($C62=1,'Sjekkliste noter'!A116,\"\")","v":""},{"$f":"IF($C62=1,'Sjekkliste noter'!B116,\"\")","v":""},null,{"$f":"IF($C62=1,'Sjekkliste noter'!N116,\"\")","v":""}]
[{"$f":"'Sjekkliste noter'!A117","v":62},{"$f":"IF('Sjekkliste noter'!J117<>\"\",1,0)","v":0},0,{"$f":"IF($C63=1,'Sjekkliste noter'!A117,\"\")","v":""},{"$f":"IF($C63=1,'Sjekkliste noter'!B117,\"\")","v":""},null,{"$f":"IF($C63=1,'Sjekkliste noter'!N117,\"\")","v":""}]
[{"$f":"'Sjekkliste noter'!A118","v":63},{"$f":"IF('Sjekkliste noter'!J118<>\"\",1,0)","v":0},0,{"$f":"IF($C64=1,'Sjekkliste noter'!A118,\"\")","v":""},{"$f":"IF($C64=1,'Sjekkliste noter'!B118,\"\")","v":""},null,{"$f":"IF($C64=1,'Sjekkliste noter'!N118,\"\")","v":""}]
[{"$f":"'Sjekkliste noter'!A119","v":64},{"$f":"IF('Sjekkliste noter'!J119<>\"\",1,0)","v":0},0,{"$f":"IF($C65=1,'Sjekkliste noter'!A119,\"\")","v":""},{"$f":"IF($C65=1,'Sjekkliste noter'!B119,\"\")","v":""},null,{"$f":"IF($C65=1,'Sjekkliste noter'!N119,\"\")","v":""}]
[{"$f":"'Sjekkliste noter'!A120","v":65},{"$f":"IF('Sjekkliste noter'!J120<>\"\",1,0)","v":0},{"$f":"SUM(B66:B66)","v":0},{"$f":"IF($C66=1,'Sjekkliste noter'!A120,\"\")","v":""},{"$f":"IF($C66=1,'Sjekkliste noter'!B120,\"\")","v":""},null,{"$f":"IF($C66=1,'Sjekkliste noter'!N120,\"\")","v":""}]
[{"$f":"'Sjekkliste noter'!A121","v":66},{"$f":"IF('Sjekkliste noter'!J121<>\"\",1,0)","v":0},0,{"$f":"IF($C67=1,'Sjekkliste noter'!A121,\"\")","v":""},{"$f":"IF($C67=1,'Sjekkliste noter'!B121,\"\")","v":""},null,{"$f":"IF($C67=1,'Sjekkliste noter'!N121,\"\")","v":""}]
[{"$f":"'Sjekkliste noter'!A122","v":67},{"$f":"IF('Sjekkliste noter'!J122<>\"\",1,0)","v":0},0,{"$f":"IF($C68=1,'Sjekkliste noter'!A122,\"\")","v":""},{"$f":"IF($C68=1,'Sjekkliste noter'!B122,\"\")","v":""},null,{"$f":"IF($C68=1,'Sjekkliste noter'!N122,\"\")","v":""}]
[{"$f":"'Sjekkliste noter'!A123","v":68},{"$f":"IF('Sjekkliste noter'!J123<>\"\",1,0)","v":0},0,{"$f":"IF($C69=1,'Sjekkliste noter'!A123,\"\")","v":""},{"$f":"IF($C69=1,'Sjekkliste noter'!B123,\"\")","v":""},null,{"$f":"IF($C69=1,'Sjekkliste noter'!N123,\"\")","v":""}]
[{"$f":"'Sjekkliste noter'!A125","v":69},{"$f":"IF('Sjekkliste noter'!J125<>\"\",1,0)","v":0},0,{"$f":"IF($C70=1,'Sjekkliste noter'!A125,\"\")","v":""},{"$f":"IF($C70=1,'Sjekkliste noter'!B125,\"\")","v":""},null,{"$f":"IF($C70=1,'Sjekkliste noter'!N125,\"\")","v":""}]
[{"$f":"'Sjekkliste noter'!A127","v":70},{"$f":"IF('Sjekkliste noter'!J127<>\"\",1,0)","v":0},0,{"$f":"IF($C71=1,'Sjekkliste noter'!A127,\"\")","v":""},{"$f":"IF($C71=1,'Sjekkliste noter'!B127,\"\")","v":""},null,{"$f":"IF($C71=1,'Sjekkliste noter'!N127,\"\")","v":""}]
[{"$f":"'Sjekkliste noter'!A130","v":71},{"$f":"IF('Sjekkliste noter'!J130<>\"\",1,0)","v":0},0,{"$f":"IF($C72=1,'Sjekkliste noter'!A130,\"\")","v":""},{"$f":"IF($C72=1,'Sjekkliste noter'!B130,\"\")","v":""},null,{"$f":"IF($C72=1,'Sjekkliste noter'!N130,\"\")","v":""}]
[{"$f":"'Sjekkliste noter'!A132","v":72},{"$f":"IF('Sjekkliste noter'!J132<>\"\",1,0)","v":0},0,{"$f":"IF($C73=1,'Sjekkliste noter'!A132,\"\")","v":""},{"$f":"IF($C73=1,'Sjekkliste noter'!B132,\"\")","v":""},null,{"$f":"IF($C73=1,'Sjekkliste noter'!N132,\"\")","v":""}]
[{"$f":"'Sjekkliste noter'!A138","v":73},{"$f":"IF('Sjekkliste noter'!J138<>\"\",1,0)","v":0},0,{"$f":"IF($C74=1,'Sjekkliste noter'!A138,\"\")","v":""},{"$f":"IF($C74=1,'Sjekkliste noter'!B138,\"\")","v":""},null,{"$f":"IF($C74=1,'Sjekkliste noter'!N138,\"\")","v":""}]
[{"$f":"'Sjekkliste noter'!A140","v":74},{"$f":"IF('Sjekkliste noter'!J140<>\"\",1,0)","v":0},0,{"$f":"IF($C75=1,'Sjekkliste noter'!A140,\"\")","v":""},{"$f":"IF($C75=1,'Sjekkliste noter'!B140,\"\")","v":""},null,{"$f":"IF($C75=1,'Sjekkliste noter'!N140,\"\")","v":""}]
[{"$f":"'Sjekkliste noter'!A142","v":75},{"$f":"IF('Sjekkliste noter'!J142<>\"\",1,0)","v":0},0,{"$f":"IF($C76=1,'Sjekkliste noter'!A142,\"\")","v":""},{"$f":"IF($C76=1,'Sjekkliste noter'!B142,\"\")","v":""},null,{"$f":"IF($C76=1,'Sjekkliste noter'!N142,\"\")","v":""}]
[{"$f":"'Sjekkliste noter'!A143","v":76},{"$f":"IF('Sjekkliste noter'!J143<>\"\",1,0)","v":0},0,{"$f":"IF($C77=1,'Sjekkliste noter'!A143,\"\")","v":""},{"$f":"IF($C77=1,'Sjekkliste noter'!B143,\"\")","v":""},null,{"$f":"IF($C77=1,'Sjekkliste noter'!N143,\"\")","v":""}]
[{"$f":"'Sjekkliste noter'!A144","v":77},{"$f":"IF('Sjekkliste noter'!J144<>\"\",1,0)","v":0},0,{"$f":"IF($C78=1,'Sjekkliste noter'!A144,\"\")","v":""},{"$f":"IF($C78=1,'Sjekkliste noter'!B144,\"\")","v":""},null,{"$f":"IF($C78=1,'Sjekkliste noter'!N144,\"\")","v":""}]
[{"$f":"'Sjekkliste noter'!A149","v":78},{"$f":"IF('Sjekkliste noter'!J149<>\"\",1,0)","v":0},0,{"$f":"IF($C79=1,'Sjekkliste noter'!A149,\"\")","v":""},{"$f":"IF($C79=1,'Sjekkliste noter'!B149,\"\")","v":""},null,{"$f":"IF($C79=1,'Sjekkliste noter'!N149,\"\")","v":""}]
[{"$f":"'Sjekkliste noter'!A151","v":79},{"$f":"IF('Sjekkliste noter'!J151<>\"\",1,0)","v":0},0,{"$f":"IF($C80=1,'Sjekkliste noter'!A151,\"\")","v":""},{"$f":"IF($C80=1,'Sjekkliste noter'!B151,\"\")","v":""},null,{"$f":"IF($C80=1,'Sjekkliste noter'!N151,\"\")","v":""}]
[{"$f":"'Sjekkliste noter'!A153","v":80},{"$f":"IF('Sjekkliste noter'!J153<>\"\",1,0)","v":0},0,{"$f":"IF($C81=1,'Sjekkliste noter'!A153,\"\")","v":""},{"$f":"IF($C81=1,'Sjekkliste noter'!B153,\"\")","v":""},null,{"$f":"IF($C81=1,'Sjekkliste noter'!N153,\"\")","v":""}]
[{"$f":"'Sjekkliste noter'!A156","v":81},{"$f":"IF('Sjekkliste noter'!J156<>\"\",1,0)","v":0},0,{"$f":"IF($C82=1,'Sjekkliste noter'!A156,\"\")","v":""},{"$f":"IF($C82=1,'Sjekkliste noter'!B156,\"\")","v":""},null,{"$f":"IF($C82=1,'Sjekkliste noter'!N156,\"\")","v":""}]
[{"$f":"'Sjekkliste noter'!A159","v":82},{"$f":"IF('Sjekkliste noter'!J159<>\"\",1,0)","v":0},0,{"$f":"IF($C83=1,'Sjekkliste noter'!A159,\"\")","v":""},{"$f":"IF($C83=1,'Sjekkliste noter'!B159,\"\")","v":""},null,{"$f":"IF($C83=1,'Sjekkliste noter'!N159,\"\")","v":""}]
[{"$f":"'Sjekkliste noter'!A162","v":83},{"$f":"IF('Sjekkliste noter'!J162<>\"\",1,0)","v":0},0,{"$f":"IF($C84=1,'Sjekkliste noter'!A162,\"\")","v":""},{"$f":"IF($C84=1,'Sjekkliste noter'!B162,\"\")","v":""},null,{"$f":"IF($C84=1,'Sjekkliste noter'!N162,\"\")","v":""}]

{"sheet":"N_Nei","index":4,"n_rows":84,"n_cols":7,"rows_kept":84,"cut":false,"hidden":true,"merged":[]}
[null,null,{"$f":"COUNTIF(C2:C84,\"=1\")","v":0},"Nei-svar",{"$f":"+Forside!B2","v":0},{"$f":"+Forside!B3","v":2023},"Kommentarer"]
[{"$f":"+'Sjekkliste noter'!A16","v":1},{"$f":"IF('Sjekkliste noter'!K16<>\"\",1,0)","v":0},{"$f":"SUM(B2:B2)","v":0},{"$f":"IF($C2=1,'Sjekkliste noter'!A16,\"\")","v":""},{"$f":"IF($C2=1,'Sjekkliste noter'!B16,\"\")","v":""},null,{"$f":"IF($C2=1,'Sjekkliste noter'!N16,\"\")","v":""}]
[{"$f":"+'Sjekkliste noter'!A20","v":4},{"$f":"IF('Sjekkliste noter'!K20<>\"\",1,0)","v":0},0,{"$f":"IF($C3=1,'Sjekkliste noter'!A20,\"\")","v":""},{"$f":"IF($C3=1,'Sjekkliste noter'!B20,\"\")","v":""},null,{"$f":"IF($C3=1,'Sjekkliste noter'!N20,\"\")","v":""}]
[{"$f":"+'Sjekkliste noter'!A18","v":2},{"$f":"IF('Sjekkliste noter'!K18<>\"\",1,0)","v":0},0,{"$f":"IF($C4=1,'Sjekkliste noter'!A18,\"\")","v":""},{"$f":"IF($C4=1,'Sjekkliste noter'!B18,\"\")","v":""},null,{"$f":"IF($C4=1,'Sjekkliste noter'!N18,\"\")","v":""}]
[{"$f":"+'Sjekkliste noter'!A19","v":3},{"$f":"IF('Sjekkliste noter'!K19<>\"\",1,0)","v":0},0,{"$f":"IF($C5=1,'Sjekkliste noter'!A19,\"\")","v":""},{"$f":"IF($C5=1,'Sjekkliste noter'!B19,\"\")","v":""},null,{"$f":"IF($C5=1,'Sjekkliste noter'!N19,\"\")","v":""}]
[{"$f":"+'Sjekkliste noter'!A22","v":5},{"$f":"IF('Sjekkliste noter'!K22<>\"\",1,0)","v":0},0,{"$f":"IF($C6=1,'Sjekkliste noter'!A22,\"\")","v":""},{"$f":"IF($C6=1,'Sjekkliste noter'!B22,\"\")","v":""},null,{"$f":"IF($C6=1,'Sjekkliste noter'!N22,\"\")","v":""}]
[{"$f":"+'Sjekkliste noter'!A24","v":6},{"$f":"IF('Sjekkliste noter'!K24<>\"\",1,0)","v":0},0,{"$f":"IF($C7=1,'Sjekkliste noter'!A24,\"\")","v":""},{"$f":"IF($C7=1,'Sjekkliste noter'!B24,\"\")","v":""},null,{"$f":"IF($C7=1,'Sjekkliste noter'!N24,\"\")","v":""}]
[{"$f":"+'Sjekkliste noter'!A25","v":7},{"$f":"IF('Sjekkliste noter'!K25<>\"\",1,0)","v":0},0,{"$f":"IF($C8=1,'Sjekkliste noter'!A25,\"\")","v":""},{"$f":"IF($C8=1,'Sjekkliste noter'!B25,\"\")","v":""},null,{"$f":"IF($C8=1,'Sjekkliste noter'!N25,\"\")","v":""}]
[{"$f":"+'Sjekkliste noter'!A26","v":8},{"$f":"IF('Sjekkliste noter'!K26<>\"\",1,0)","v":0},0,{"$f":"IF($C9=1,'Sjekkliste noter'!A26,\"\")","v":""},{"$f":"IF($C9=1,'Sjekkliste noter'!B26,\"\")","v":""},null,{"$f":"IF($C9=1,'Sjekkliste noter'!N26,\"\")","v":""}]
[{"$f":"+'Sjekkliste noter'!A28","v":9},{"$f":"IF('Sjekkliste noter'!K28<>\"\",1,0)","v":0},0,{"$f":"IF($C10=1,'Sjekkliste noter'!A28,\"\")","v":""},{"$f":"IF($C10=1,'Sjekkliste noter'!B28,\"\")","v":""},null,{"$f":"IF($C10=1,'Sjekkliste noter'!N28,\"\")","v":""}]
[{"$f":"+'Sjekkliste noter'!A30","v":10},{"$f":"IF('Sjekkliste noter'!K30<>\"\",1,0)","v":0},0,{"$f":"IF($C11=1,'Sjekkliste noter'!A30,\"\")","v":""},{"$f":"IF($C11=1,'Sjekkliste noter'!B30,\"\")","v":""},null,{"$f":"IF($C11=1,'Sjekkliste noter'!N30,\"\")","v":""}]
[{"$f":"+'Sjekkliste noter'!A31","v":11},{"$f":"IF('Sjekkliste noter'!K31<>\"\",1,0)","v":0},0,{"$f":"IF($C12=1,'Sjekkliste noter'!A31,\"\")","v":""},{"$f":"IF($C12=1,'Sjekkliste noter'!B31,\"\")","v":""},null,{"$f":"IF($C12=1,'Sjekkliste noter'!N31,\"\")","v":""}]
[{"$f":"+'Sjekkliste noter'!A32","v":12},{"$f":"IF('Sjekkliste noter'!K32<>\"\",1,0)","v":0},0,{"$f":"IF($C13=1,'Sjekkliste noter'!A32,\"\")","v":""},{"$f":"IF($C13=1,'Sjekkliste noter'!B32,\"\")","v":""},null,{"$f":"IF($C13=1,'Sjekkliste noter'!N32,\"\")","v":""}]
[{"$f":"+'Sjekkliste noter'!A33","v":13},{"$f":"IF('Sjekkliste noter'!K33<>\"\",1,0)","v":0},0,{"$f":"IF($C14=1,'Sjekkliste noter'!A33,\"\")","v":""},{"$f":"IF($C14=1,'Sjekkliste noter'!B33,\"\")","v":""},null,{"$f":"IF($C14=1,'Sjekkliste noter'!N33,\"\")","v":""}]
[{"$f":"+'Sjekkliste noter'!A34","v":14},{"$f":"IF('Sjekkliste noter'!K34<>\"\",1,0)","v":0},0,{"$f":"IF($C15=1,'Sjekkliste noter'!A34,\"\")","v":""},{"$f":"IF($C15=1,'Sjekkliste noter'!B34,\"\")","v":""},null,{"$f":"IF($C15=1,'Sjekkliste noter'!N34,\"\")","v":""}]
[{"$f":"+'Sjekkliste noter'!A35","v":15},{"$f":"IF('Sjekkliste noter'!K35<>\"\",1,0)","v":0},0,{"$f":"IF($C16=1,'Sjekkliste noter'!A35,\"\")","v":""},{"$f":"IF($C16=1,'Sjekkliste noter'!B35,\"\")","v":""},null,{"$f":"IF($C16=1,'Sjekkliste noter'!N35,\"\")","v":""}]
[{"$f":"+'Sjekkliste noter'!A38","v":16},{"$f":"IF('Sjekkliste noter'!K38<>\"\",1,0)","v":0},0,{"$f":"IF($C17=1,'Sjekkliste noter'!A38,\"\")","v":""},{"$f":"IF($C17=1,'Sjekkliste noter'!B38,\"\")","v":""},null,{"$f":"IF($C17=1,'Sjekkliste noter'!N38,\"\")","v":""}]
[{"$f":"+'Sjekkliste noter'!A39","v":17},{"$f":"IF('Sjekkliste noter'!K39<>\"\",1,0)","v":0},0,{"$f":"IF($C18=1,'Sjekkliste noter'!A39,\"\")","v":""},{"$f":"IF($C18=1,'Sjekkliste noter'!B39,\"\")","v":""},null,{"$f":"IF($C18=1,'Sjekkliste noter'!N39,\"\")","v":""}]
[{"$f":"+'Sjekkliste noter'!A40","v":18},{"$f":"IF('Sjekkliste noter'!K40<>\"\",1,0)","v":0},0,{"$f":"IF($C19=1,'Sjekkliste noter'!A40,\"\")","v":""},{"$f":"IF($C19=1,'Sjekkliste noter'!B40,\"\")","v":""},null,{"$f":"IF($C19=1,'Sjekkliste noter'!N40,\"\")","v":""}]
[{"$f":"+'Sjekkliste noter'!A41","v":19},{"$f":"IF('Sjekkliste noter'!K41<>\"\",1,0)","v":0},0,{"$f":"IF($C20=1,'Sjekkliste noter'!A41,\"\")","v":""},{"$f":"IF($C20=1,'Sjekkliste noter'!B41,\"\")","v":""},null,{"$f":"IF($C20=1,'Sjekkliste noter'!N41,\"\")","v":""}]
[{"$f":"+'Sjekkliste noter'!A42","v":20},{"$f":"IF('Sjekkliste noter'!K42<>\"\",1,0)","v":0},0,{"$f":"IF($C21=1,'Sjekkliste noter'!A42,\"\")","v":""},{"$f":"IF($C21=1,'Sjekkliste noter'!B42,\"\")","v":""},null,{"$f":"IF($C21=1,'Sjekkliste noter'!N42,\"\")","v":""}]
[{"$f":"+'Sjekkliste noter'!A44","v":21},{"$f":"IF('Sjekkliste noter'!K44<>\"\",1,0)","v":0},0,{"$f":"IF($C22=1,'Sjekkliste noter'!A44,\"\")","v":""},{"$f":"IF($C22=1,'Sjekkliste noter'!B44,\"\")","v":""},null,{"$f":"IF($C22=1,'Sjekkliste noter'!N44,\"\")","v":""}]
[{"$f":"+'Sjekkliste noter'!A46","v":22},{"$f":"IF('Sjekkliste noter'!K46<>\"\",1,0)","v":0},0,{"$f":"IF($C23=1,'Sjekkliste noter'!A46,\"\")","v":""},{"$f":"IF($C23=1,'Sjekkliste noter'!B46,\"\")","v":""},null,{"$f":"IF($C23=1,'Sjekkliste noter'!N46,\"\")","v":""}]
[{"$f":"+'Sjekkliste noter'!A47","v":23},{"$f":"IF('Sjekkliste noter'!K47<>\"\",1,0)","v":0},0,{"$f":"IF($C24=1,'Sjekkliste noter'!A47,\"\")","v":""},{"$f":"IF($C24=1,'Sjekkliste noter'!B47,\"\")","v":""},null,{"$f":"IF($C24=1,'Sjekkliste noter'!N47,\"\")","v":""}]
[{"$f":"+'Sjekkliste noter'!A48","v":24},{"$f":"IF('Sjekkliste noter'!K48<>\"\",1,0)","v":0},0,{"$f":"IF($C25=1,'Sjekkliste noter'!A48,\"\")","v":""},{"$f":"IF($C25=1,'Sjekkliste noter'!B48,\"\")","v":""},null,{"$f":"IF($C25=1,'Sjekkliste noter'!N48,\"\")","v":""}]
[{"$f":"+'Sjekkliste noter'!A50","v":25},{"$f":"IF('Sjekkliste noter'!K50<>\"\",1,0)","v":0},0,{"$f":"IF($C26=1,'Sjekkliste noter'!A50,\"\")","v":""},{"$f":"IF($C26=1,'Sjekkliste noter'!B50,\"\")","v":""},null,{"$f":"IF($C26=1,'Sjekkliste noter'!N50,\"\")","v":""}]
[{"$f":"+'Sjekkliste noter'!A51","v":26},{"$f":"IF('Sjekkliste noter'!K51<>\"\",1,0)","v":0},0,{"$f":"IF($C27=1,'Sjekkliste noter'!A51,\"\")","v":""},{"$f":"IF($C27=1,'Sjekkliste noter'!B51,\"\")","v":""},null,{"$f":"IF($C27=1,'Sjekkliste noter'!N51,\"\")","v":""}]
[{"$f":"+'Sjekkliste noter'!A52","v":27},{"$f":"IF('Sjekkliste noter'!K52<>\"\",1,0)","v":0},0,{"$f":"IF($C28=1,'Sjekkliste noter'!A52,\"\")","v":""},{"$f":"IF($C28=1,'Sjekkliste noter'!B52,\"\")","v":""},null,{"$f":"IF($C28=1,'Sjekkliste noter'!N52,\"\")","v":""}]
[{"$f":"+'Sjekkliste noter'!A54","v":28},{"$f":"IF('Sjekkliste noter'!K54<>\"\",1,0)","v":0},0,{"$f":"IF($C29=1,'Sjekkliste noter'!A54,\"\")","v":""},{"$f":"IF($C29=1,'Sjekkliste noter'!B54,\"\")","v":""},null,{"$f":"IF($C29=1,'Sjekkliste noter'!N54,\"\")","v":""}]
[{"$f":"+'Sjekkliste noter'!A55","v":29},{"$f":"IF('Sjekkliste noter'!K55<>\"\",1,0)","v":0},0,{"$f":"IF($C30=1,'Sjekkliste noter'!A55,\"\")","v":""},{"$f":"IF($C30=1,'Sjekkliste noter'!B55,\"\")","v":""},null,{"$f":"IF($C30=1,'Sjekkliste noter'!N55,\"\")","v":""}]
[{"$f":"+'Sjekkliste noter'!A59","v":30},{"$f":"IF('Sjekkliste noter'!K59<>\"\",1,0)","v":0},0,{"$f":"IF($C31=1,'Sjekkliste noter'!A59,\"\")","v":""},{"$f":"IF($C31=1,'Sjekkliste noter'!B59,\"\")","v":""},null,{"$f":"IF($C31=1,'Sjekkliste noter'!N59,\"\")","v":""}]
[{"$f":"+'Sjekkliste noter'!A60","v":31},{"$f":"IF('Sjekkliste noter'!K60<>\"\",1,0)","v":0},0,{"$f":"IF($C32=1,'Sjekkliste noter'!A60,\"\")","v":""},{"$f":"IF($C32=1,'Sjekkliste noter'!B60,\"\")","v":""},null,{"$f":"IF($C32=1,'Sjekkliste noter'!N60,\"\")","v":""}]
[{"$f":"+'Sjekkliste noter'!A61","v":32},{"$f":"IF('Sjekkliste noter'!K61<>\"\",1,0)","v":0},0,{"$f":"IF($C33=1,'Sjekkliste noter'!A61,\"\")","v":""},{"$f":"IF($C33=1,'Sjekkliste noter'!B61,\"\")","v":""},null,{"$f":"IF($C33=1,'Sjekkliste noter'!N61,\"\")","v":""}]
[{"$f":"+'Sjekkliste noter'!A63","v":33},{"$f":"IF('Sjekkliste noter'!K63<>\"\",1,0)","v":0},{"$f":"SUM(B34:B34)","v":0},{"$f":"IF($C34=1,'Sjekkliste noter'!A63,\"\")","v":""},{"$f":"IF($C34=1,'Sjekkliste noter'!B63,\"\")","v":""},null,{"$f":"IF($C34=1,'Sjekkliste noter'!N63,\"\")","v":""}]
[{"$f":"+'Sjekkliste noter'!A67","v":34},{"$f":"IF('Sjekkliste noter'!K67<>\"\",1,0)","v":0},0,{"$f":"IF($C35=1,'Sjekkliste noter'!A67,\"\")","v":""},{"$f":"IF($C35=1,'Sjekkliste noter'!B67,\"\")","v":""},null,{"$f":"IF($C35=1,'Sjekkliste noter'!N67,\"\")","v":""}]
[{"$f":"+'Sjekkliste noter'!A68","v":35},{"$f":"IF('Sjekkliste noter'!K68<>\"\",1,0)","v":0},0,{"$f":"IF($C36=1,'Sjekkliste noter'!A68,\"\")","v":""},{"$f":"IF($C36=1,'Sjekkliste noter'!B68,\"\")","v":""},null,{"$f":"IF($C36=1,'Sjekkliste noter'!N68,\"\")","v":""}]
[{"$f":"+'Sjekkliste noter'!A69","v":36},{"$f":"IF('Sjekkliste noter'!K69<>\"\",1,0)","v":0},0,{"$f":"IF($C37=1,'Sjekkliste noter'!A69,\"\")","v":""},{"$f":"IF($C37=1,'Sjekkliste noter'!B69,\"\")","v":""},null,{"$f":"IF($C37=1,'Sjekkliste noter'!N69,\"\")","v":""}]
[{"$f":"+'Sjekkliste noter'!A73","v":37},{"$f":"IF('Sjekkliste noter'!K73<>\"\",1,0)","v":0},0,{"$f":"IF($C38=1,'Sjekkliste noter'!A73,\"\")","v":""},{"$f":"IF($C38=1,'Sjekkliste noter'!B73,\"\")","v":""},null,{"$f":"IF($C38=1,'Sjekkliste noter'!N73,\"\")","v":""}]
[{"$f":"+'Sjekkliste noter'!A74","v":38},{"$f":"IF('Sjekkliste noter'!K74<>\"\",1,0)","v":0},0,{"$f":"IF($C39=1,'Sjekkliste noter'!A74,\"\")","v":""},{"$f":"IF($C39=1,'Sjekkliste noter'!B74,\"\")","v":""},null,{"$f":"IF($C39=1,'Sjekkliste noter'!N74,\"\")","v":""}]
[{"$f":"+'Sjekkliste noter'!A75","v":39},{"$f":"IF('Sjekkliste noter'!K75<>\"\",1,0)","v":0},0,{"$f":"IF($C40=1,'Sjekkliste noter'!A75,\"\")","v":""},{"$f":"IF($C40=1,'Sjekkliste noter'!B75,\"\")","v":""},null,{"$f":"IF($C40=1,'Sjekkliste noter'!N75,\"\")","v":""}]
[{"$f":"+'Sjekkliste noter'!A77","v":40},{"$f":"IF('Sjekkliste noter'!K77<>\"\",1,0)","v":0},0,{"$f":"IF($C41=1,'Sjekkliste noter'!A77,\"\")","v":""},{"$f":"IF($C41=1,'Sjekkliste noter'!B77,\"\")","v":""},null,{"$f":"IF($C41=1,'Sjekkliste noter'!N77,\"\")","v":""}]
[{"$f":"+'Sjekkliste noter'!A79","v":41},{"$f":"IF('Sjekkliste noter'!K79<>\"\",1,0)","v":0},0,{"$f":"IF($C42=1,'Sjekkliste noter'!A79,\"\")","v":""},{"$f":"IF($C42=1,'Sjekkliste noter'!B79,\"\")","v":""},null,{"$f":"IF($C42=1,'Sjekkliste noter'!N79,\"\")","v":""}]
[{"$f":"+'Sjekkliste noter'!A82","v":42},{"$f":"IF('Sjekkliste noter'!K82<>\"\",1,0)","v":0},0,{"$f":"IF($C43=1,'Sjekkliste noter'!A82,\"\")","v":""},{"$f":"IF($C43=1,'Sjekkliste noter'!B82,\"\")","v":""},null,{"$f":"IF($C43=1,'Sjekkliste noter'!N82,\"\")","v":""}]
[{"$f":"+'Sjekkliste noter'!A83","v":43},{"$f":"IF('Sjekkliste noter'!K83<>\"\",1,0)","v":0},0,{"$f":"IF($C44=1,'Sjekkliste noter'!A83,\"\")","v":""},{"$f":"IF($C44=1,'Sjekkliste noter'!B83,\"\")","v":""},null,{"$f":"IF($C44=1,'Sjekkliste noter'!N83,\"\")","v":""}]
[{"$f":"+'Sjekkliste noter'!A84","v":44},{"$f":"IF('Sjekkliste noter'!K84<>\"\",1,0)","v":0},0,{"$f":"IF($C45=1,'Sjekkliste noter'!A84,\"\")","v":""},{"$f":"IF($C45=1,'Sjekkliste noter'!B84,\"\")","v":""},null,{"$f":"IF($C45=1,'Sjekkliste noter'!N84,\"\")","v":""}]
[{"$f":"+'Sjekkliste noter'!A88","v":45},{"$f":"IF('Sjekkliste noter'!K88<>\"\",1,0)","v":0},0,{"$f":"IF($C46=1,'Sjekkliste noter'!A88,\"\")","v":""},{"$f":"IF($C46=1,'Sjekkliste noter'!B88,\"\")","v":""},null,{"$f":"IF($C46=1,'Sjekkliste noter'!N88,\"\")","v":""}]
[{"$f":"+'Sjekkliste noter'!A91","v":46},{"$f":"IF('Sjekkliste noter'!K91<>\"\",1,0)","v":0},0,{"$f":"IF($C47=1,'Sjekkliste noter'!A91,\"\")","v":""},{"$f":"IF($C47=1,'Sjekkliste noter'!B91,\"\")","v":""},null,{"$f":"IF($C47=1,'Sjekkliste noter'!N91,\"\")","v":""}]
[{"$f":"+'Sjekkliste noter'!A94","v":47},{"$f":"IF('Sjekkliste noter'!K94<>\"\",1,0)","v":0},0,{"$f":"IF($C48=1,'Sjekkliste noter'!A94,\"\")","v":""},{"$f":"IF($C48=1,'Sjekkliste noter'!B94,\"\")","v":""},null,{"$f":"IF($C48=1,'Sjekkliste noter'!N94,\"\")","v":""}]
[{"$f":"+'Sjekkliste noter'!A95","v":48},{"$f":"IF('Sjekkliste noter'!K95<>\"\",1,0)","v":0},0,{"$f":"IF($C49=1,'Sjekkliste noter'!A95,\"\")","v":""},{"$f":"IF($C49=1,'Sjekkliste noter'!B95,\"\")","v":""},null,{"$f":"IF($C49=1,'Sjekkliste noter'!N95,\"\")","v":""}]
[{"$f":"+'Sjekkliste noter'!A96","v":49},{"$f":"IF('Sjekkliste noter'!K96<>\"\",1,0)","v":0},0,{"$f":"IF($C50=1,'Sjekkliste noter'!A96,\"\")","v":""},{"$f":"IF($C50=1,'Sjekkliste noter'!B96,\"\")","v":""},null,{"$f":"IF($C50=1,'Sjekkliste noter'!N96,\"\")","v":""}]
[{"$f":"+'Sjekkliste noter'!A98","v":50},{"$f":"IF('Sjekkliste noter'!K98<>\"\",1,0)","v":0},0,{"$f":"IF($C51=1,'Sjekkliste noter'!A98,\"\")","v":""},{"$f":"IF($C51=1,'Sjekkliste noter'!B98,\"\")","v":""},null,{"$f":"IF($C51=1,'Sjekkliste noter'!N98,\"\")","v":""}]
[{"$f":"+'Sjekkliste noter'!A99","v":51},{"$f":"IF('Sjekkliste noter'!K99<>\"\",1,0)","v":0},0,{"$f":"IF($C52=1,'Sjekkliste noter'!A99,\"\")","v":""},{"$f":"IF($C52=1,'Sjekkliste noter'!B99,\"\")","v":""},null,{"$f":"IF($C52=1,'Sjekkliste noter'!N99,\"\")","v":""}]
[{"$f":"+'Sjekkliste noter'!A101","v":52},{"$f":"IF('Sjekkliste noter'!K101<>\"\",1,0)","v":0},0,{"$f":"IF($C53=1,'Sjekkliste noter'!A101,\"\")","v":""},{"$f":"IF($C53=1,'Sjekkliste noter'!B101,\"\")","v":""},null,{"$f":"IF($C53=1,'Sjekkliste noter'!N101,\"\")","v":""}]
[{"$f":"+'Sjekkliste noter'!A105","v":53},{"$f":"IF('Sjekkliste noter'!K105<>\"\",1,0)","v":0},0,{"$f":"IF($C54=1,'Sjekkliste noter'!A105,\"\")","v":""},{"$f":"IF($C54=1,'Sjekkliste noter'!B105,\"\")","v":""},null,{"$f":"IF($C54=1,'Sjekkliste noter'!N105,\"\")","v":""}]
[{"$f":"+'Sjekkliste noter'!A106","v":54},{"$f":"IF('Sjekkliste noter'!K106<>\"\",1,0)","v":0},0,{"$f":"IF($C55=1,'Sjekkliste noter'!A106,\"\")","v":""},{"$f":"IF($C55=1,'Sjekkliste noter'!B106,\"\")","v":""},null,{"$f":"IF($C55=1,'Sjekkliste noter'!N106,\"\")","v":""}]
[{"$f":"+'Sjekkliste noter'!A107","v":55},{"$f":"IF('Sjekkliste noter'!K107<>\"\",1,0)","v":0},0,{"$f":"IF($C56=1,'Sjekkliste noter'!A107,\"\")","v":""},{"$f":"IF($C56=1,'Sjekkliste noter'!B107,\"\")","v":""},null,{"$f":"IF($C56=1,'Sjekkliste noter'!N107,\"\")","v":""}]
[{"$f":"+'Sjekkliste noter'!A108","v":56},{"$f":"IF('Sjekkliste noter'!K108<>\"\",1,0)","v":0},0,{"$f":"IF($C57=1,'Sjekkliste noter'!A108,\"\")","v":""},{"$f":"IF($C57=1,'Sjekkliste noter'!B108,\"\")","v":""},null,{"$f":"IF($C57=1,'Sjekkliste noter'!N108,\"\")","v":""}]
[{"$f":"+'Sjekkliste noter'!A111","v":57},{"$f":"IF('Sjekkliste noter'!K111<>\"\",1,0)","v":0},0,{"$f":"IF($C58=1,'Sjekkliste noter'!A111,\"\")","v":""},{"$f":"IF($C58=1,'Sjekkliste noter'!B111,\"\")","v":""},null,{"$f":"IF($C58=1,'Sjekkliste noter'!N111,\"\")","v":""}]
[{"$f":"+'Sjekkliste noter'!A112","v":58},{"$f":"IF('Sjekkliste noter'!K112<>\"\",1,0)","v":0},0,{"$f":"IF($C59=1,'Sjekkliste noter'!A112,\"\")","v":""},{"$f":"IF($C59=1,'Sjekkliste noter'!B112,\"\")","v":""},null,{"$f":"IF($C59=1,'Sjekkliste noter'!N112,\"\")","v":""}]
[{"$f":"+'Sjekkliste noter'!A113","v":59},{"$f":"IF('Sjekkliste noter'!K113<>\"\",1,0)","v":0},0,{"$f":"IF($C60=1,'Sjekkliste noter'!A113,\"\")","v":""},{"$f":"IF($C60=1,'Sjekkliste noter'!B113,\"\")","v":""},null,{"$f":"IF($C60=1,'Sjekkliste noter'!N113,\"\")","v":""}]
[{"$f":"+'Sjekkliste noter'!A115","v":60},{"$f":"IF('Sjekkliste noter'!K115<>\"\",1,0)","v":0},0,{"$f":"IF($C61=1,'Sjekkliste noter'!A115,\"\")","v":""},{"$f":"IF($C61=1,'Sjekkliste noter'!B115,\"\")","v":""},null,{"$f":"IF($C61=1,'Sjekkliste noter'!N115,\"\")","v":""}]
[{"$f":"+'Sjekkliste noter'!A116","v":61},{"$f":"IF('Sjekkliste noter'!K116<>\"\",1,0)","v":0},0,{"$f":"IF($C62=1,'Sjekkliste noter'!A116,\"\")","v":""},{"$f":"IF($C62=1,'Sjekkliste noter'!B116,\"\")","v":""},null,{"$f":"IF($C62=1,'Sjekkliste noter'!N116,\"\")","v":""}]
[{"$f":"+'Sjekkliste noter'!A117","v":62},{"$f":"IF('Sjekkliste noter'!K117<>\"\",1,0)","v":0},0,{"$f":"IF($C63=1,'Sjekkliste noter'!A117,\"\")","v":""},{"$f":"IF($C63=1,'Sjekkliste noter'!B117,\"\")","v":""},null,{"$f":"IF($C63=1,'Sjekkliste noter'!N117,\"\")","v":""}]
[{"$f":"+'Sjekkliste noter'!A118","v":63},{"$f":"IF('Sjekkliste noter'!K118<>\"\",1,0)","v":0},0,{"$f":"IF($C64=1,'Sjekkliste noter'!A118,\"\")","v":""},{"$f":"IF($C64=1,'Sjekkliste noter'!B118,\"\")","v":""},null,{"$f":"IF($C64=1,'Sjekkliste noter'!N118,\"\")","v":""}]
[{"$f":"+'Sjekkliste noter'!A119","v":64},{"$f":"IF('Sjekkliste noter'!K119<>\"\",1,0)","v":0},0,{"$f":"IF($C65=1,'Sjekkliste noter'!A119,\"\")","v":""},{"$f":"IF($C65=1,'Sjekkliste noter'!B119,\"\")","v":""},null,{"$f":"IF($C65=1,'Sjekkliste noter'!N119,\"\")","v":""}]
[{"$f":"+'Sjekkliste noter'!A120","v":65},{"$f":"IF('Sjekkliste noter'!K120<>\"\",1,0)","v":0},{"$f":"SUM(B66:B66)","v":0},{"$f":"IF($C66=1,'Sjekkliste noter'!A120,\"\")","v":""},{"$f":"IF($C66=1,'Sjekkliste noter'!B120,\"\")","v":""},null,{"$f":"IF($C66=1,'Sjekkliste noter'!N120,\"\")","v":""}]
[{"$f":"+'Sjekkliste noter'!A121","v":66},{"$f":"IF('Sjekkliste noter'!K121<>\"\",1,0)","v":0},0,{"$f":"IF($C67=1,'Sjekkliste noter'!A121,\"\")","v":""},{"$f":"IF($C67=1,'Sjekkliste noter'!B121,\"\")","v":""},null,{"$f":"IF($C67=1,'Sjekkliste noter'!N121,\"\")","v":""}]
[{"$f":"+'Sjekkliste noter'!A122","v":67},{"$f":"IF('Sjekkliste noter'!K122<>\"\",1,0)","v":0},0,{"$f":"IF($C68=1,'Sjekkliste noter'!A122,\"\")","v":""},{"$f":"IF($C68=1,'Sjekkliste noter'!B122,\"\")","v":""},null,{"$f":"IF($C68=1,'Sjekkliste noter'!N122,\"\")","v":""}]
[{"$f":"+'Sjekkliste noter'!A123","v":68},{"$f":"IF('Sjekkliste noter'!K123<>\"\",1,0)","v":0},0,{"$f":"IF($C69=1,'Sjekkliste noter'!A123,\"\")","v":""},{"$f":"IF($C69=1,'Sjekkliste noter'!B123,\"\")","v":""},null,{"$f":"IF($C69=1,'Sjekkliste noter'!N123,\"\")","v":""}]
[{"$f":"+'Sjekkliste noter'!A125","v":69},{"$f":"IF('Sjekkliste noter'!K125<>\"\",1,0)","v":0},0,{"$f":"IF($C70=1,'Sjekkliste noter'!A125,\"\")","v":""},{"$f":"IF($C70=1,'Sjekkliste noter'!B125,\"\")","v":""},null,{"$f":"IF($C70=1,'Sjekkliste noter'!N125,\"\")","v":""}]
[{"$f":"+'Sjekkliste noter'!A127","v":70},{"$f":"IF('Sjekkliste noter'!K127<>\"\",1,0)","v":0},0,{"$f":"IF($C71=1,'Sjekkliste noter'!A127,\"\")","v":""},{"$f":"IF($C71=1,'Sjekkliste noter'!B127,\"\")","v":""},null,{"$f":"IF($C71=1,'Sjekkliste noter'!N127,\"\")","v":""}]
[{"$f":"+'Sjekkliste noter'!A130","v":71},{"$f":"IF('Sjekkliste noter'!K130<>\"\",1,0)","v":0},0,{"$f":"IF($C72=1,'Sjekkliste noter'!A130,\"\")","v":""},{"$f":"IF($C72=1,'Sjekkliste noter'!B130,\"\")","v":""},null,{"$f":"IF($C72=1,'Sjekkliste noter'!N130,\"\")","v":""}]
[{"$f":"+'Sjekkliste noter'!A132","v":72},{"$f":"IF('Sjekkliste noter'!K132<>\"\",1,0)","v":0},0,{"$f":"IF($C73=1,'Sjekkliste noter'!A132,\"\")","v":""},{"$f":"IF($C73=1,'Sjekkliste noter'!B132,\"\")","v":""},null,{"$f":"IF($C73=1,'Sjekkliste noter'!N132,\"\")","v":""}]
[{"$f":"+'Sjekkliste noter'!A138","v":73},{"$f":"IF('Sjekkliste noter'!K138<>\"\",1,0)","v":0},0,{"$f":"IF($C74=1,'Sjekkliste noter'!A138,\"\")","v":""},{"$f":"IF($C74=1,'Sjekkliste noter'!B138,\"\")","v":""},null,{"$f":"IF($C74=1,'Sjekkliste noter'!N138,\"\")","v":""}]
[{"$f":"+'Sjekkliste noter'!A140","v":74},{"$f":"IF('Sjekkliste noter'!K140<>\"\",1,0)","v":0},0,{"$f":"IF($C75=1,'Sjekkliste noter'!A140,\"\")","v":""},{"$f":"IF($C75=1,'Sjekkliste noter'!B140,\"\")","v":""},null,{"$f":"IF($C75=1,'Sjekkliste noter'!N140,\"\")","v":""}]
[{"$f":"+'Sjekkliste noter'!A142","v":75},{"$f":"IF('Sjekkliste noter'!K142<>\"\",1,0)","v":0},0,{"$f":"IF($C76=1,'Sjekkliste noter'!A142,\"\")","v":""},{"$f":"IF($C76=1,'Sjekkliste noter'!B142,\"\")","v":""},null,{"$f":"IF($C76=1,'Sjekkliste noter'!N142,\"\")","v":""}]
[{"$f":"+'Sjekkliste noter'!A143","v":76},{"$f":"IF('Sjekkliste noter'!K143<>\"\",1,0)","v":0},0,{"$f":"IF($C77=1,'Sjekkliste noter'!A143,\"\")","v":""},{"$f":"IF($C77=1,'Sjekkliste noter'!B143,\"\")","v":""},null,{"$f":"IF($C77=1,'Sjekkliste noter'!N143,\"\")","v":""}]
[{"$f":"+'Sjekkliste noter'!A144","v":77},{"$f":"IF('Sjekkliste noter'!K144<>\"\",1,0)","v":0},0,{"$f":"IF($C78=1,'Sjekkliste noter'!A144,\"\")","v":""},{"$f":"IF($C78=1,'Sjekkliste noter'!B144,\"\")","v":""},null,{"$f":"IF($C78=1,'Sjekkliste noter'!N144,\"\")","v":""}]
[{"$f":"+'Sjekkliste noter'!A149","v":78},{"$f":"IF('Sjekkliste noter'!K149<>\"\",1,0)","v":0},0,{"$f":"IF($C79=1,'Sjekkliste noter'!A149,\"\")","v":""},{"$f":"IF($C79=1,'Sjekkliste noter'!B149,\"\")","v":""},null,{"$f":"IF($C79=1,'Sjekkliste noter'!N149,\"\")","v":""}]
[{"$f":"+'Sjekkliste noter'!A151","v":79},{"$f":"IF('Sjekkliste noter'!K151<>\"\",1,0)","v":0},0,{"$f":"IF($C80=1,'Sjekkliste noter'!A151,\"\")","v":""},{"$f":"IF($C80=1,'Sjekkliste noter'!B151,\"\")","v":""},null,{"$f":"IF($C80=1,'Sjekkliste noter'!N151,\"\")","v":""}]
[{"$f":"+'Sjekkliste noter'!A153","v":80},{"$f":"IF('Sjekkliste noter'!K153<>\"\",1,0)","v":0},0,{"$f":"IF($C81=1,'Sjekkliste noter'!A153,\"\")","v":""},{"$f":"IF($C81=1,'Sjekkliste noter'!B153,\"\")","v":""},null,{"$f":"IF($C81=1,'Sjekkliste noter'!N153,\"\")","v":""}]
[{"$f":"+'Sjekkliste noter'!A156","v":81},{"$f":"IF('Sjekkliste noter'!K156<>\"\",1,0)","v":0},0,{"$f":"IF($C82=1,'Sjekkliste noter'!A156,\"\")","v":""},{"$f":"IF($C82=1,'Sjekkliste noter'!B156,\"\")","v":""},null,{"$f":"IF($C82=1,'Sjekkliste noter'!N156,\"\")","v":""}]
[{"$f":"+'Sjekkliste noter'!A159","v":82},{"$f":"IF('Sjekkliste noter'!K159<>\"\",1,0)","v":0},0,{"$f":"IF($C83=1,'Sjekkliste noter'!A159,\"\")","v":""},{"$f":"IF($C83=1,'Sjekkliste noter'!B159,\"\")","v":""},null,{"$f":"IF($C83=1,'Sjekkliste noter'!N159,\"\")","v":""}]
[{"$f":"+'Sjekkliste noter'!A162","v":83},{"$f":"IF('Sjekkliste noter'!K162<>\"\",1,0)","v":0},0,{"$f":"IF($C84=1,'Sjekkliste noter'!A162,\"\")","v":""},{"$f":"IF($C84=1,'Sjekkliste noter'!B162,\"\")","v":""},null,{"$f":"IF($C84=1,'Sjekkliste noter'!N162,\"\")","v":""}]

{"sheet":"N_IA","index":5,"n_rows":84,"n_cols":7,"rows_kept":84,"cut":false,"hidden":true,"merged":[]}
[null,null,{"$f":"COUNTIF(C2:C123,\"=1\")","v":0},"IA-svar",{"$f":"+Forside!B2","v":0},{"$f":"+Forside!B3","v":2023},"Kommentarer"]
[{"$f":"+'Sjekkliste noter'!A16","v":1},{"$f":"IF('Sjekkliste noter'!M16<>\"\",1,0)","v":0},{"$f":"SUM(B2:B2)","v":0},{"$f":"IF($C2=1,'Sjekkliste noter'!A16,\"\")","v":""},{"$f":"IF($C2=1,'Sjekkliste noter'!B16,\"\")","v":""},null,{"$f":"IF($C2=1,'Sjekkliste noter'!N16,\"\")","v":""}]
[{"$f":"+'Sjekkliste noter'!A19","v":3},{"$f":"IF('Sjekkliste noter'!M19<>\"\",1,0)","v":0},0,{"$f":"IF($C3=1,'Sjekkliste noter'!A19,\"\")","v":""},{"$f":"IF($C3=1,'Sjekkliste noter'!B19,\"\")","v":""},null,{"$f":"IF($C3=1,'Sjekkliste noter'!N19,\"\")","v":""}]
[{"$f":"+'Sjekkliste noter'!A18","v":2},{"$f":"IF('Sjekkliste noter'!M18<>\"\",1,0)","v":0},0,{"$f":"IF($C4=1,'Sjekkliste noter'!A18,\"\")","v":""},{"$f":"IF($C4=1,'Sjekkliste noter'!B18,\"\")","v":""},null,{"$f":"IF($C4=1,'Sjekkliste noter'!N18,\"\")","v":""}]
[{"$f":"+'Sjekkliste noter'!A20","v":4},{"$f":"IF('Sjekkliste noter'!M20<>\"\",1,0)","v":0},0,{"$f":"IF($C5=1,'Sjekkliste noter'!A20,\"\")","v":""},{"$f":"IF($C5=1,'Sjekkliste noter'!B20,\"\")","v":""},null,{"$f":"IF($C5=1,'Sjekkliste noter'!N20,\"\")","v":""}]
[{"$f":"+'Sjekkliste noter'!A22","v":5},{"$f":"IF('Sjekkliste noter'!M22<>\"\",1,0)","v":0},0,{"$f":"IF($C6=1,'Sjekkliste noter'!A22,\"\")","v":""},{"$f":"IF($C6=1,'Sjekkliste noter'!B22,\"\")","v":""},null,{"$f":"IF($C6=1,'Sjekkliste noter'!N22,\"\")","v":""}]
[{"$f":"+'Sjekkliste noter'!A24","v":6},{"$f":"IF('Sjekkliste noter'!M24<>\"\",1,0)","v":0},0,{"$f":"IF($C7=1,'Sjekkliste noter'!A24,\"\")","v":""},{"$f":"IF($C7=1,'Sjekkliste noter'!B24,\"\")","v":""},null,{"$f":"IF($C7=1,'Sjekkliste noter'!N24,\"\")","v":""}]
[{"$f":"+'Sjekkliste noter'!A25","v":7},{"$f":"IF('Sjekkliste noter'!M25<>\"\",1,0)","v":0},0,{"$f":"IF($C8=1,'Sjekkliste noter'!A25,\"\")","v":""},{"$f":"IF($C8=1,'Sjekkliste noter'!B25,\"\")","v":""},null,{"$f":"IF($C8=1,'Sjekkliste noter'!N25,\"\")","v":""}]
[{"$f":"+'Sjekkliste noter'!A26","v":8},{"$f":"IF('Sjekkliste noter'!M26<>\"\",1,0)","v":0},0,{"$f":"IF($C9=1,'Sjekkliste noter'!A26,\"\")","v":""},{"$f":"IF($C9=1,'Sjekkliste noter'!B26,\"\")","v":""},null,{"$f":"IF($C9=1,'Sjekkliste noter'!N26,\"\")","v":""}]
[{"$f":"+'Sjekkliste noter'!A28","v":9},{"$f":"IF('Sjekkliste noter'!M28<>\"\",1,0)","v":0},0,{"$f":"IF($C10=1,'Sjekkliste noter'!A28,\"\")","v":""},{"$f":"IF($C10=1,'Sjekkliste noter'!B28,\"\")","v":""},null,{"$f":"IF($C10=1,'Sjekkliste noter'!N28,\"\")","v":""}]
[{"$f":"+'Sjekkliste noter'!A30","v":10},{"$f":"IF('Sjekkliste noter'!M30<>\"\",1,0)","v":0},0,{"$f":"IF($C11=1,'Sjekkliste noter'!A30,\"\")","v":""},{"$f":"IF($C11=1,'Sjekkliste noter'!B30,\"\")","v":""},null,{"$f":"IF($C11=1,'Sjekkliste noter'!N30,\"\")","v":""}]
[{"$f":"+'Sjekkliste noter'!A31","v":11},{"$f":"IF('Sjekkliste noter'!M31<>\"\",1,0)","v":0},0,{"$f":"IF($C12=1,'Sjekkliste noter'!A31,\"\")","v":""},{"$f":"IF($C12=1,'Sjekkliste noter'!B31,\"\")","v":""},null,{"$f":"IF($C12=1,'Sjekkliste noter'!N31,\"\")","v":""}]
[{"$f":"+'Sjekkliste noter'!A32","v":12},{"$f":"IF('Sjekkliste noter'!M32<>\"\",1,0)","v":0},0,{"$f":"IF($C13=1,'Sjekkliste noter'!A32,\"\")","v":""},{"$f":"IF($C13=1,'Sjekkliste noter'!B32,\"\")","v":""},null,{"$f":"IF($C13=1,'Sjekkliste noter'!N32,\"\")","v":""}]
[{"$f":"+'Sjekkliste noter'!A33","v":13},{"$f":"IF('Sjekkliste noter'!M33<>\"\",1,0)","v":0},0,{"$f":"IF($C14=1,'Sjekkliste noter'!A33,\"\")","v":""},{"$f":"IF($C14=1,'Sjekkliste noter'!B33,\"\")","v":""},null,{"$f":"IF($C14=1,'Sjekkliste noter'!N33,\"\")","v":""}]
[{"$f":"+'Sjekkliste noter'!A34","v":14},{"$f":"IF('Sjekkliste noter'!M34<>\"\",1,0)","v":0},0,{"$f":"IF($C15=1,'Sjekkliste noter'!A34,\"\")","v":""},{"$f":"IF($C15=1,'Sjekkliste noter'!B34,\"\")","v":""},null,{"$f":"IF($C15=1,'Sjekkliste noter'!N34,\"\")","v":""}]
[{"$f":"+'Sjekkliste noter'!A35","v":15},{"$f":"IF('Sjekkliste noter'!M35<>\"\",1,0)","v":0},0,{"$f":"IF($C16=1,'Sjekkliste noter'!A35,\"\")","v":""},{"$f":"IF($C16=1,'Sjekkliste noter'!B35,\"\")","v":""},null,{"$f":"IF($C16=1,'Sjekkliste noter'!N35,\"\")","v":""}]
[{"$f":"+'Sjekkliste noter'!A38","v":16},{"$f":"IF('Sjekkliste noter'!M38<>\"\",1,0)","v":0},0,{"$f":"IF($C17=1,'Sjekkliste noter'!A38,\"\")","v":""},{"$f":"IF($C17=1,'Sjekkliste noter'!B38,\"\")","v":""},null,{"$f":"IF($C17=1,'Sjekkliste noter'!N38,\"\")","v":""}]
[{"$f":"+'Sjekkliste noter'!A39","v":17},{"$f":"IF('Sjekkliste noter'!M39<>\"\",1,0)","v":0},0,{"$f":"IF($C18=1,'Sjekkliste noter'!A39,\"\")","v":""},{"$f":"IF($C18=1,'Sjekkliste noter'!B39,\"\")","v":""},null,{"$f":"IF($C18=1,'Sjekkliste noter'!N39,\"\")","v":""}]
[{"$f":"+'Sjekkliste noter'!A40","v":18},{"$f":"IF('Sjekkliste noter'!M40<>\"\",1,0)","v":0},0,{"$f":"IF($C19=1,'Sjekkliste noter'!A40,\"\")","v":""},{"$f":"IF($C19=1,'Sjekkliste noter'!B40,\"\")","v":""},null,{"$f":"IF($C19=1,'Sjekkliste noter'!N40,\"\")","v":""}]
[{"$f":"+'Sjekkliste noter'!A41","v":19},{"$f":"IF('Sjekkliste noter'!M41<>\"\",1,0)","v":0},0,{"$f":"IF($C20=1,'Sjekkliste noter'!A41,\"\")","v":""},{"$f":"IF($C20=1,'Sjekkliste noter'!B41,\"\")","v":""},null,{"$f":"IF($C20=1,'Sjekkliste noter'!N41,\"\")","v":""}]
[{"$f":"+'Sjekkliste noter'!A42","v":20},{"$f":"IF('Sjekkliste noter'!M42<>\"\",1,0)","v":0},0,{"$f":"IF($C21=1,'Sjekkliste noter'!A42,\"\")","v":""},{"$f":"IF($C21=1,'Sjekkliste noter'!B42,\"\")","v":""},null,{"$f":"IF($C21=1,'Sjekkliste noter'!N42,\"\")","v":""}]
[{"$f":"+'Sjekkliste noter'!A44","v":21},{"$f":"IF('Sjekkliste noter'!M44<>\"\",1,0)","v":0},0,{"$f":"IF($C22=1,'Sjekkliste noter'!A44,\"\")","v":""},{"$f":"IF($C22=1,'Sjekkliste noter'!B44,\"\")","v":""},null,{"$f":"IF($C22=1,'Sjekkliste noter'!N44,\"\")","v":""}]
[{"$f":"+'Sjekkliste noter'!A46","v":22},{"$f":"IF('Sjekkliste noter'!M46<>\"\",1,0)","v":0},0,{"$f":"IF($C23=1,'Sjekkliste noter'!A46,\"\")","v":""},{"$f":"IF($C23=1,'Sjekkliste noter'!B46,\"\")","v":""},null,{"$f":"IF($C23=1,'Sjekkliste noter'!N46,\"\")","v":""}]
[{"$f":"+'Sjekkliste noter'!A47","v":23},{"$f":"IF('Sjekkliste noter'!M47<>\"\",1,0)","v":0},0,{"$f":"IF($C24=1,'Sjekkliste noter'!A47,\"\")","v":""},{"$f":"IF($C24=1,'Sjekkliste noter'!B47,\"\")","v":""},null,{"$f":"IF($C24=1,'Sjekkliste noter'!N47,\"\")","v":""}]
[{"$f":"+'Sjekkliste noter'!A48","v":24},{"$f":"IF('Sjekkliste noter'!M48<>\"\",1,0)","v":0},0,{"$f":"IF($C25=1,'Sjekkliste noter'!A48,\"\")","v":""},{"$f":"IF($C25=1,'Sjekkliste noter'!B48,\"\")","v":""},null,{"$f":"IF($C25=1,'Sjekkliste noter'!N48,\"\")","v":""}]
[{"$f":"+'Sjekkliste noter'!A50","v":25},{"$f":"IF('Sjekkliste noter'!M50<>\"\",1,0)","v":0},0,{"$f":"IF($C26=1,'Sjekkliste noter'!A50,\"\")","v":""},{"$f":"IF($C26=1,'Sjekkliste noter'!B50,\"\")","v":""},null,{"$f":"IF($C26=1,'Sjekkliste noter'!N50,\"\")","v":""}]
[{"$f":"+'Sjekkliste noter'!A51","v":26},{"$f":"IF('Sjekkliste noter'!M51<>\"\",1,0)","v":0},0,{"$f":"IF($C27=1,'Sjekkliste noter'!A51,\"\")","v":""},{"$f":"IF($C27=1,'Sjekkliste noter'!B51,\"\")","v":""},null,{"$f":"IF($C27=1,'Sjekkliste noter'!N51,\"\")","v":""}]
[{"$f":"+'Sjekkliste noter'!A52","v":27},{"$f":"IF('Sjekkliste noter'!M52<>\"\",1,0)","v":0},0,{"$f":"IF($C28=1,'Sjekkliste noter'!A52,\"\")","v":""},{"$f":"IF($C28=1,'Sjekkliste noter'!B52,\"\")","v":""},null,{"$f":"IF($C28=1,'Sjekkliste noter'!N52,\"\")","v":""}]
[{"$f":"+'Sjekkliste noter'!A54","v":28},{"$f":"IF('Sjekkliste noter'!M54<>\"\",1,0)","v":0},0,{"$f":"IF($C29=1,'Sjekkliste noter'!A54,\"\")","v":""},{"$f":"IF($C29=1,'Sjekkliste noter'!B54,\"\")","v":""},null,{"$f":"IF($C29=1,'Sjekkliste noter'!N54,\"\")","v":""}]
[{"$f":"+'Sjekkliste noter'!A55","v":29},{"$f":"IF('Sjekkliste noter'!M55<>\"\",1,0)","v":0},0,{"$f":"IF($C30=1,'Sjekkliste noter'!A55,\"\")","v":""},{"$f":"IF($C30=1,'Sjekkliste noter'!B55,\"\")","v":""},null,{"$f":"IF($C30=1,'Sjekkliste noter'!N55,\"\")","v":""}]
[{"$f":"+'Sjekkliste noter'!A59","v":30},{"$f":"IF('Sjekkliste noter'!M59<>\"\",1,0)","v":0},0,{"$f":"IF($C31=1,'Sjekkliste noter'!A59,\"\")","v":""},{"$f":"IF($C31=1,'Sjekkliste noter'!B59,\"\")","v":""},null,{"$f":"IF($C31=1,'Sjekkliste noter'!N59,\"\")","v":""}]
[{"$f":"+'Sjekkliste noter'!A60","v":31},{"$f":"IF('Sjekkliste noter'!M60<>\"\",1,0)","v":0},0,{"$f":"IF($C32=1,'Sjekkliste noter'!A60,\"\")","v":""},{"$f":"IF($C32=1,'Sjekkliste noter'!B60,\"\")","v":""},null,{"$f":"IF($C32=1,'Sjekkliste noter'!N60,\"\")","v":""}]
[{"$f":"+'Sjekkliste noter'!A61","v":32},{"$f":"IF('Sjekkliste noter'!M61<>\"\",1,0)","v":0},0,{"$f":"IF($C33=1,'Sjekkliste noter'!A61,\"\")","v":""},{"$f":"IF($C33=1,'Sjekkliste noter'!B61,\"\")","v":""},null,{"$f":"IF($C33=1,'Sjekkliste noter'!N61,\"\")","v":""}]
[{"$f":"+'Sjekkliste noter'!A63","v":33},{"$f":"IF('Sjekkliste noter'!M63<>\"\",1,0)","v":0},{"$f":"SUM(B34:B34)","v":0},{"$f":"IF($C34=1,'Sjekkliste noter'!A63,\"\")","v":""},{"$f":"IF($C34=1,'Sjekkliste noter'!B63,\"\")","v":""},null,{"$f":"IF($C34=1,'Sjekkliste noter'!N63,\"\")","v":""}]
[{"$f":"+'Sjekkliste noter'!A67","v":34},{"$f":"IF('Sjekkliste noter'!M67<>\"\",1,0)","v":0},0,{"$f":"IF($C35=1,'Sjekkliste noter'!A67,\"\")","v":""},{"$f":"IF($C35=1,'Sjekkliste noter'!B67,\"\")","v":""},null,{"$f":"IF($C35=1,'Sjekkliste noter'!N67,\"\")","v":""}]
[{"$f":"+'Sjekkliste noter'!A68","v":35},{"$f":"IF('Sjekkliste noter'!M68<>\"\",1,0)","v":0},0,{"$f":"IF($C36=1,'Sjekkliste noter'!A68,\"\")","v":""},{"$f":"IF($C36=1,'Sjekkliste noter'!B68,\"\")","v":""},null,{"$f":"IF($C36=1,'Sjekkliste noter'!N68,\"\")","v":""}]
[{"$f":"+'Sjekkliste noter'!A69","v":36},{"$f":"IF('Sjekkliste noter'!M69<>\"\",1,0)","v":0},0,{"$f":"IF($C37=1,'Sjekkliste noter'!A69,\"\")","v":""},{"$f":"IF($C37=1,'Sjekkliste noter'!B69,\"\")","v":""},null,{"$f":"IF($C37=1,'Sjekkliste noter'!N69,\"\")","v":""}]
[{"$f":"+'Sjekkliste noter'!A73","v":37},{"$f":"IF('Sjekkliste noter'!M73<>\"\",1,0)","v":0},0,{"$f":"IF($C38=1,'Sjekkliste noter'!A73,\"\")","v":""},{"$f":"IF($C38=1,'Sjekkliste noter'!B73,\"\")","v":""},null,{"$f":"IF($C38=1,'Sjekkliste noter'!N73,\"\")","v":""}]
[{"$f":"+'Sjekkliste noter'!A74","v":38},{"$f":"IF('Sjekkliste noter'!M74<>\"\",1,0)","v":0},0,{"$f":"IF($C39=1,'Sjekkliste noter'!A74,\"\")","v":""},{"$f":"IF($C39=1,'Sjekkliste noter'!B74,\"\")","v":""},null,{"$f":"IF($C39=1,'Sjekkliste noter'!N74,\"\")","v":""}]
[{"$f":"+'Sjekkliste noter'!A75","v":39},{"$f":"IF('Sjekkliste noter'!M75<>\"\",1,0)","v":0},0,{"$f":"IF($C40=1,'Sjekkliste noter'!A75,\"\")","v":""},{"$f":"IF($C40=1,'Sjekkliste noter'!B75,\"\")","v":""},null,{"$f":"IF($C40=1,'Sjekkliste noter'!N75,\"\")","v":""}]
[{"$f":"+'Sjekkliste noter'!A77","v":40},{"$f":"IF('Sjekkliste noter'!M77<>\"\",1,0)","v":0},0,{"$f":"IF($C41=1,'Sjekkliste noter'!A77,\"\")","v":""},{"$f":"IF($C41=1,'Sjekkliste noter'!B77,\"\")","v":""},null,{"$f":"IF($C41=1,'Sjekkliste noter'!N77,\"\")","v":""}]
[{"$f":"+'Sjekkliste noter'!A79","v":41},{"$f":"IF('Sjekkliste noter'!M79<>\"\",1,0)","v":0},0,{"$f":"IF($C42=1,'Sjekkliste noter'!A79,\"\")","v":""},{"$f":"IF($C42=1,'Sjekkliste noter'!B79,\"\")","v":""},null,{"$f":"IF($C42=1,'Sjekkliste noter'!N79,\"\")","v":""}]
[{"$f":"+'Sjekkliste noter'!A82","v":42},{"$f":"IF('Sjekkliste noter'!M82<>\"\",1,0)","v":0},0,{"$f":"IF($C43=1,'Sjekkliste noter'!A82,\"\")","v":""},{"$f":"IF($C43=1,'Sjekkliste noter'!B82,\"\")","v":""},null,{"$f":"IF($C43=1,'Sjekkliste noter'!N82,\"\")","v":""}]
[{"$f":"+'Sjekkliste noter'!A83","v":43},{"$f":"IF('Sjekkliste noter'!M83<>\"\",1,0)","v":0},0,{"$f":"IF($C44=1,'Sjekkliste noter'!A83,\"\")","v":""},{"$f":"IF($C44=1,'Sjekkliste noter'!B83,\"\")","v":""},null,{"$f":"IF($C44=1,'Sjekkliste noter'!N83,\"\")","v":""}]
[{"$f":"+'Sjekkliste noter'!A84","v":44},{"$f":"IF('Sjekkliste noter'!M84<>\"\",1,0)","v":0},0,{"$f":"IF($C45=1,'Sjekkliste noter'!A84,\"\")","v":""},{"$f":"IF($C45=1,'Sjekkliste noter'!B84,\"\")","v":""},null,{"$f":"IF($C45=1,'Sjekkliste noter'!N84,\"\")","v":""}]
[{"$f":"+'Sjekkliste noter'!A88","v":45},{"$f":"IF('Sjekkliste noter'!M88<>\"\",1,0)","v":0},0,{"$f":"IF($C46=1,'Sjekkliste noter'!A88,\"\")","v":""},{"$f":"IF($C46=1,'Sjekkliste noter'!B88,\"\")","v":""},null,{"$f":"IF($C46=1,'Sjekkliste noter'!N88,\"\")","v":""}]
[{"$f":"+'Sjekkliste noter'!A91","v":46},{"$f":"IF('Sjekkliste noter'!M91<>\"\",1,0)","v":0},0,{"$f":"IF($C47=1,'Sjekkliste noter'!A91,\"\")","v":""},{"$f":"IF($C47=1,'Sjekkliste noter'!B91,\"\")","v":""},null,{"$f":"IF($C47=1,'Sjekkliste noter'!N91,\"\")","v":""}]
[{"$f":"+'Sjekkliste noter'!A94","v":47},{"$f":"IF('Sjekkliste noter'!M94<>\"\",1,0)","v":0},0,{"$f":"IF($C48=1,'Sjekkliste noter'!A94,\"\")","v":""},{"$f":"IF($C48=1,'Sjekkliste noter'!B94,\"\")","v":""},null,{"$f":"IF($C48=1,'Sjekkliste noter'!N94,\"\")","v":""}]
[{"$f":"+'Sjekkliste noter'!A95","v":48},{"$f":"IF('Sjekkliste noter'!M95<>\"\",1,0)","v":0},0,{"$f":"IF($C49=1,'Sjekkliste noter'!A95,\"\")","v":""},{"$f":"IF($C49=1,'Sjekkliste noter'!B95,\"\")","v":""},null,{"$f":"IF($C49=1,'Sjekkliste noter'!N95,\"\")","v":""}]
[{"$f":"+'Sjekkliste noter'!A96","v":49},{"$f":"IF('Sjekkliste noter'!M96<>\"\",1,0)","v":0},0,{"$f":"IF($C50=1,'Sjekkliste noter'!A96,\"\")","v":""},{"$f":"IF($C50=1,'Sjekkliste noter'!B96,\"\")","v":""},null,{"$f":"IF($C50=1,'Sjekkliste noter'!N96,\"\")","v":""}]
[{"$f":"+'Sjekkliste noter'!A98","v":50},{"$f":"IF('Sjekkliste noter'!M98<>\"\",1,0)","v":0},0,{"$f":"IF($C51=1,'Sjekkliste noter'!A98,\"\")","v":""},{"$f":"IF($C51=1,'Sjekkliste noter'!B98,\"\")","v":""},null,{"$f":"IF($C51=1,'Sjekkliste noter'!N98,\"\")","v":""}]
[{"$f":"+'Sjekkliste noter'!A99","v":51},{"$f":"IF('Sjekkliste noter'!M99<>\"\",1,0)","v":0},0,{"$f":"IF($C52=1,'Sjekkliste noter'!A99,\"\")","v":""},{"$f":"IF($C52=1,'Sjekkliste noter'!B99,\"\")","v":""},null,{"$f":"IF($C52=1,'Sjekkliste noter'!N99,\"\")","v":""}]
[{"$f":"+'Sjekkliste noter'!A101","v":52},{"$f":"IF('Sjekkliste noter'!M101<>\"\",1,0)","v":0},0,{"$f":"IF($C53=1,'Sjekkliste noter'!A101,\"\")","v":""},{"$f":"IF($C53=1,'Sjekkliste noter'!B101,\"\")","v":""},null,{"$f":"IF($C53=1,'Sjekkliste noter'!N101,\"\")","v":""}]
[{"$f":"+'Sjekkliste noter'!A105","v":53},{"$f":"IF('Sjekkliste noter'!M105<>\"\",1,0)","v":0},0,{"$f":"IF($C54=1,'Sjekkliste noter'!A105,\"\")","v":""},{"$f":"IF($C54=1,'Sjekkliste noter'!B105,\"\")","v":""},null,{"$f":"IF($C54=1,'Sjekkliste noter'!N105,\"\")","v":""}]
[{"$f":"+'Sjekkliste noter'!A106","v":54},{"$f":"IF('Sjekkliste noter'!M106<>\"\",1,0)","v":0},0,{"$f":"IF($C55=1,'Sjekkliste noter'!A106,\"\")","v":""},{"$f":"IF($C55=1,'Sjekkliste noter'!B106,\"\")","v":""},null,{"$f":"IF($C55=1,'Sjekkliste noter'!N106,\"\")","v":""}]
[{"$f":"+'Sjekkliste noter'!A107","v":55},{"$f":"IF('Sjekkliste noter'!M107<>\"\",1,0)","v":0},0,{"$f":"IF($C56=1,'Sjekkliste noter'!A107,\"\")","v":""},{"$f":"IF($C56=1,'Sjekkliste noter'!B107,\"\")","v":""},null,{"$f":"IF($C56=1,'Sjekkliste noter'!N107,\"\")","v":""}]
[{"$f":"+'Sjekkliste noter'!A108","v":56},{"$f":"IF('Sjekkliste noter'!M108<>\"\",1,0)","v":0},0,{"$f":"IF($C57=1,'Sjekkliste noter'!A108,\"\")","v":""},{"$f":"IF($C57=1,'Sjekkliste noter'!B108,\"\")","v":""},null,{"$f":"IF($C57=1,'Sjekkliste noter'!N108,\"\")","v":""}]
[{"$f":"+'Sjekkliste noter'!A111","v":57},{"$f":"IF('Sjekkliste noter'!M111<>\"\",1,0)","v":0},0,{"$f":"IF($C58=1,'Sjekkliste noter'!A111,\"\")","v":""},{"$f":"IF($C58=1,'Sjekkliste noter'!B111,\"\")","v":""},null,{"$f":"IF($C58=1,'Sjekkliste noter'!N111,\"\")","v":""}]
[{"$f":"+'Sjekkliste noter'!A112","v":58},{"$f":"IF('Sjekkliste noter'!M112<>\"\",1,0)","v":0},0,{"$f":"IF($C59=1,'Sjekkliste noter'!A112,\"\")","v":""},{"$f":"IF($C59=1,'Sjekkliste noter'!B112,\"\")","v":""},null,{"$f":"IF($C59=1,'Sjekkliste noter'!N112,\"\")","v":""}]
[{"$f":"+'Sjekkliste noter'!A113","v":59},{"$f":"IF('Sjekkliste noter'!M113<>\"\",1,0)","v":0},0,{"$f":"IF($C60=1,'Sjekkliste noter'!A113,\"\")","v":""},{"$f":"IF($C60=1,'Sjekkliste noter'!B113,\"\")","v":""},null,{"$f":"IF($C60=1,'Sjekkliste noter'!N113,\"\")","v":""}]
[{"$f":"+'Sjekkliste noter'!A115","v":60},{"$f":"IF('Sjekkliste noter'!M115<>\"\",1,0)","v":0},0,{"$f":"IF($C61=1,'Sjekkliste noter'!A115,\"\")","v":""},{"$f":"IF($C61=1,'Sjekkliste noter'!B115,\"\")","v":""},null,{"$f":"IF($C61=1,'Sjekkliste noter'!N115,\"\")","v":""}]
[{"$f":"+'Sjekkliste noter'!A116","v":61},{"$f":"IF('Sjekkliste noter'!M116<>\"\",1,0)","v":0},0,{"$f":"IF($C62=1,'Sjekkliste noter'!A116,\"\")","v":""},{"$f":"IF($C62=1,'Sjekkliste noter'!B116,\"\")","v":""},null,{"$f":"IF($C62=1,'Sjekkliste noter'!N116,\"\")","v":""}]
[{"$f":"+'Sjekkliste noter'!A117","v":62},{"$f":"IF('Sjekkliste noter'!M117<>\"\",1,0)","v":0},0,{"$f":"IF($C63=1,'Sjekkliste noter'!A117,\"\")","v":""},{"$f":"IF($C63=1,'Sjekkliste noter'!B117,\"\")","v":""},null,{"$f":"IF($C63=1,'Sjekkliste noter'!N117,\"\")","v":""}]
[{"$f":"+'Sjekkliste noter'!A118","v":63},{"$f":"IF('Sjekkliste noter'!M118<>\"\",1,0)","v":0},0,{"$f":"IF($C64=1,'Sjekkliste noter'!A118,\"\")","v":""},{"$f":"IF($C64=1,'Sjekkliste noter'!B118,\"\")","v":""},null,{"$f":"IF($C64=1,'Sjekkliste noter'!N118,\"\")","v":""}]
[{"$f":"+'Sjekkliste noter'!A119","v":64},{"$f":"IF('Sjekkliste noter'!M119<>\"\",1,0)","v":0},0,{"$f":"IF($C65=1,'Sjekkliste noter'!A119,\"\")","v":""},{"$f":"IF($C65=1,'Sjekkliste noter'!B119,\"\")","v":""},null,{"$f":"IF($C65=1,'Sjekkliste noter'!N119,\"\")","v":""}]
[{"$f":"+'Sjekkliste noter'!A120","v":65},{"$f":"IF('Sjekkliste noter'!M120<>\"\",1,0)","v":0},{"$f":"SUM(B66:B66)","v":0},{"$f":"IF($C66=1,'Sjekkliste noter'!A120,\"\")","v":""},{"$f":"IF($C66=1,'Sjekkliste noter'!B120,\"\")","v":""},null,{"$f":"IF($C66=1,'Sjekkliste noter'!N120,\"\")","v":""}]
[{"$f":"+'Sjekkliste noter'!A121","v":66},{"$f":"IF('Sjekkliste noter'!M121<>\"\",1,0)","v":0},0,{"$f":"IF($C67=1,'Sjekkliste noter'!A121,\"\")","v":""},{"$f":"IF($C67=1,'Sjekkliste noter'!B121,\"\")","v":""},null,{"$f":"IF($C67=1,'Sjekkliste noter'!N121,\"\")","v":""}]
[{"$f":"+'Sjekkliste noter'!A122","v":67},{"$f":"IF('Sjekkliste noter'!M122<>\"\",1,0)","v":0},0,{"$f":"IF($C68=1,'Sjekkliste noter'!A122,\"\")","v":""},{"$f":"IF($C68=1,'Sjekkliste noter'!B122,\"\")","v":""},null,{"$f":"IF($C68=1,'Sjekkliste noter'!N122,\"\")","v":""}]
[{"$f":"+'Sjekkliste noter'!A123","v":68},{"$f":"IF('Sjekkliste noter'!M123<>\"\",1,0)","v":0},0,{"$f":"IF($C69=1,'Sjekkliste noter'!A123,\"\")","v":""},{"$f":"IF($C69=1,'Sjekkliste noter'!B123,\"\")","v":""},null,{"$f":"IF($C69=1,'Sjekkliste noter'!N123,\"\")","v":""}]
[{"$f":"+'Sjekkliste noter'!A125","v":69},{"$f":"IF('Sjekkliste noter'!M125<>\"\",1,0)","v":0},0,{"$f":"IF($C70=1,'Sjekkliste noter'!A125,\"\")","v":""},{"$f":"IF($C70=1,'Sjekkliste noter'!B125,\"\")","v":""},null,{"$f":"IF($C70=1,'Sjekkliste noter'!N125,\"\")","v":""}]
[{"$f":"+'Sjekkliste noter'!A127","v":70},{"$f":"IF('Sjekkliste noter'!M127<>\"\",1,0)","v":0},0,{"$f":"IF($C71=1,'Sjekkliste noter'!A127,\"\")","v":""},{"$f":"IF($C71=1,'Sjekkliste noter'!B127,\"\")","v":""},null,{"$f":"IF($C71=1,'Sjekkliste noter'!N127,\"\")","v":""}]
[{"$f":"+'Sjekkliste noter'!A130","v":71},{"$f":"IF('Sjekkliste noter'!M130<>\"\",1,0)","v":0},0,{"$f":"IF($C72=1,'Sjekkliste noter'!A130,\"\")","v":""},{"$f":"IF($C72=1,'Sjekkliste noter'!B130,\"\")","v":""},null,{"$f":"IF($C72=1,'Sjekkliste noter'!N130,\"\")","v":""}]
[{"$f":"+'Sjekkliste noter'!A132","v":72},{"$f":"IF('Sjekkliste noter'!M132<>\"\",1,0)","v":0},0,{"$f":"IF($C73=1,'Sjekkliste noter'!A132,\"\")","v":""},{"$f":"IF($C73=1,'Sjekkliste noter'!B132,\"\")","v":""},null,{"$f":"IF($C73=1,'Sjekkliste noter'!N132,\"\")","v":""}]
[{"$f":"+'Sjekkliste noter'!A138","v":73},{"$f":"IF('Sjekkliste noter'!M138<>\"\",1,0)","v":0},0,{"$f":"IF($C74=1,'Sjekkliste noter'!A138,\"\")","v":""},{"$f":"IF($C74=1,'Sjekkliste noter'!B138,\"\")","v":""},null,{"$f":"IF($C74=1,'Sjekkliste noter'!N138,\"\")","v":""}]
[{"$f":"+'Sjekkliste noter'!A140","v":74},{"$f":"IF('Sjekkliste noter'!M140<>\"\",1,0)","v":0},0,{"$f":"IF($C75=1,'Sjekkliste noter'!A140,\"\")","v":""},{"$f":"IF($C75=1,'Sjekkliste noter'!B140,\"\")","v":""},null,{"$f":"IF($C75=1,'Sjekkliste noter'!N140,\"\")","v":""}]
[{"$f":"+'Sjekkliste noter'!A142","v":75},{"$f":"IF('Sjekkliste noter'!M142<>\"\",1,0)","v":0},0,{"$f":"IF($C76=1,'Sjekkliste noter'!A142,\"\")","v":""},{"$f":"IF($C76=1,'Sjekkliste noter'!B142,\"\")","v":""},null,{"$f":"IF($C76=1,'Sjekkliste noter'!N142,\"\")","v":""}]
[{"$f":"+'Sjekkliste noter'!A143","v":76},{"$f":"IF('Sjekkliste noter'!M143<>\"\",1,0)","v":0},0,{"$f":"IF($C77=1,'Sjekkliste noter'!A143,\"\")","v":""},{"$f":"IF($C77=1,'Sjekkliste noter'!B143,\"\")","v":""},null,{"$f":"IF($C77=1,'Sjekkliste noter'!N143,\"\")","v":""}]
[{"$f":"+'Sjekkliste noter'!A144","v":77},{"$f":"IF('Sjekkliste noter'!M144<>\"\",1,0)","v":0},0,{"$f":"IF($C78=1,'Sjekkliste noter'!A144,\"\")","v":""},{"$f":"IF($C78=1,'Sjekkliste noter'!B144,\"\")","v":""},null,{"$f":"IF($C78=1,'Sjekkliste noter'!N144,\"\")","v":""}]
[{"$f":"+'Sjekkliste noter'!A149","v":78},{"$f":"IF('Sjekkliste noter'!M149<>\"\",1,0)","v":0},0,{"$f":"IF($C79=1,'Sjekkliste noter'!A149,\"\")","v":""},{"$f":"IF($C79=1,'Sjekkliste noter'!B149,\"\")","v":""},null,{"$f":"IF($C79=1,'Sjekkliste noter'!N149,\"\")","v":""}]
[{"$f":"+'Sjekkliste noter'!A151","v":79},{"$f":"IF('Sjekkliste noter'!M151<>\"\",1,0)","v":0},0,{"$f":"IF($C80=1,'Sjekkliste noter'!A151,\"\")","v":""},{"$f":"IF($C80=1,'Sjekkliste noter'!B151,\"\")","v":""},null,{"$f":"IF($C80=1,'Sjekkliste noter'!N151,\"\")","v":""}]
[{"$f":"+'Sjekkliste noter'!A153","v":80},{"$f":"IF('Sjekkliste noter'!M153<>\"\",1,0)","v":0},0,{"$f":"IF($C81=1,'Sjekkliste noter'!A153,\"\")","v":""},{"$f":"IF($C81=1,'Sjekkliste noter'!B153,\"\")","v":""},null,{"$f":"IF($C81=1,'Sjekkliste noter'!N153,\"\")","v":""}]
[{"$f":"+'Sjekkliste noter'!A156","v":81},{"$f":"IF('Sjekkliste noter'!M156<>\"\",1,0)","v":0},0,{"$f":"IF($C82=1,'Sjekkliste noter'!A156,\"\")","v":""},{"$f":"IF($C82=1,'Sjekkliste noter'!B156,\"\")","v":""},null,{"$f":"IF($C82=1,'Sjekkliste noter'!N156,\"\")","v":""}]
[{"$f":"+'Sjekkliste noter'!A159","v":82},{"$f":"IF('Sjekkliste noter'!M159<>\"\",1,0)","v":0},0,{"$f":"IF($C83=1,'Sjekkliste noter'!A159,\"\")","v":""},{"$f":"IF($C83=1,'Sjekkliste noter'!B159,\"\")","v":""},null,{"$f":"IF($C83=1,'Sjekkliste noter'!N159,\"\")","v":""}]
[{"$f":"+'Sjekkliste noter'!A162","v":83},{"$f":"IF('Sjekkliste noter'!M162<>\"\",1,0)","v":0},0,{"$f":"IF($C84=1,'Sjekkliste noter'!A162,\"\")","v":""},{"$f":"IF($C84=1,'Sjekkliste noter'!B162,\"\")","v":""},null,{"$f":"IF($C84=1,'Sjekkliste noter'!N162,\"\")","v":""}]

{"sheet":"N_IB","index":6,"n_rows":84,"n_cols":7,"rows_kept":84,"cut":false,"hidden":true,"merged":[]}
[null,null,{"$f":"COUNTIF(C2:C84,\"=1\")","v":0},"IBsvar",{"$f":"+Forside!B2","v":0},{"$f":"+Forside!B3","v":2023},"Kommentarer"]
[{"$f":"+'Sjekkliste noter'!A16","v":1},{"$f":"IF('Sjekkliste noter'!L16<>\"\",1,0)","v":0},{"$f":"SUM(B2:B2)","v":0},{"$f":"IF($C2=1,'Sjekkliste noter'!A16,\"\")","v":""},{"$f":"IF($C2=1,'Sjekkliste noter'!B16,\"\")","v":""},null,{"$f":"IF($C2=1,'Sjekkliste noter'!N16,\"\")","v":""}]
[{"$f":"+'Sjekkliste noter'!A18","v":2},{"$f":"IF('Sjekkliste noter'!L18<>\"\",1,0)","v":0},0,{"$f":"IF($C3=1,'Sjekkliste noter'!A18,\"\")","v":""},{"$f":"IF($C3=1,'Sjekkliste noter'!B18,\"\")","v":""},null,{"$f":"IF($C3=1,'Sjekkliste noter'!N18,\"\")","v":""}]
[{"$f":"+'Sjekkliste noter'!A20","v":4},{"$f":"IF('Sjekkliste noter'!L20<>\"\",1,0)","v":0},0,{"$f":"IF($C4=1,'Sjekkliste noter'!A20,\"\")","v":""},{"$f":"IF($C4=1,'Sjekkliste noter'!B20,\"\")","v":""},null,{"$f":"IF($C4=1,'Sjekkliste noter'!N20,\"\")","v":""}]
[{"$f":"+'Sjekkliste noter'!A19","v":3},{"$f":"IF('Sjekkliste noter'!L19<>\"\",1,0)","v":0},0,{"$f":"IF($C5=1,'Sjekkliste noter'!A19,\"\")","v":""},{"$f":"IF($C5=1,'Sjekkliste noter'!B19,\"\")","v":""},null,{"$f":"IF($C5=1,'Sjekkliste noter'!N19,\"\")","v":""}]
[{"$f":"+'Sjekkliste noter'!A22","v":5},{"$f":"IF('Sjekkliste noter'!L22<>\"\",1,0)","v":0},0,{"$f":"IF($C6=1,'Sjekkliste noter'!A22,\"\")","v":""},{"$f":"IF($C6=1,'Sjekkliste noter'!B22,\"\")","v":""},null,{"$f":"IF($C6=1,'Sjekkliste noter'!N22,\"\")","v":""}]
[{"$f":"+'Sjekkliste noter'!A24","v":6},{"$f":"IF('Sjekkliste noter'!L24<>\"\",1,0)","v":0},0,{"$f":"IF($C7=1,'Sjekkliste noter'!A24,\"\")","v":""},{"$f":"IF($C7=1,'Sjekkliste noter'!B24,\"\")","v":""},null,{"$f":"IF($C7=1,'Sjekkliste noter'!N24,\"\")","v":""}]
[{"$f":"+'Sjekkliste noter'!A25","v":7},{"$f":"IF('Sjekkliste noter'!L25<>\"\",1,0)","v":0},0,{"$f":"IF($C8=1,'Sjekkliste noter'!A25,\"\")","v":""},{"$f":"IF($C8=1,'Sjekkliste noter'!B25,\"\")","v":""},null,{"$f":"IF($C8=1,'Sjekkliste noter'!N25,\"\")","v":""}]
[{"$f":"+'Sjekkliste noter'!A26","v":8},{"$f":"IF('Sjekkliste noter'!L26<>\"\",1,0)","v":0},0,{"$f":"IF($C9=1,'Sjekkliste noter'!A26,\"\")","v":""},{"$f":"IF($C9=1,'Sjekkliste noter'!B26,\"\")","v":""},null,{"$f":"IF($C9=1,'Sjekkliste noter'!N26,\"\")","v":""}]
[{"$f":"+'Sjekkliste noter'!A28","v":9},{"$f":"IF('Sjekkliste noter'!L28<>\"\",1,0)","v":0},0,{"$f":"IF($C10=1,'Sjekkliste noter'!A28,\"\")","v":""},{"$f":"IF($C10=1,'Sjekkliste noter'!B28,\"\")","v":""},null,{"$f":"IF($C10=1,'Sjekkliste noter'!N28,\"\")","v":""}]
[{"$f":"+'Sjekkliste noter'!A30","v":10},{"$f":"IF('Sjekkliste noter'!L30<>\"\",1,0)","v":0},0,{"$f":"IF($C11=1,'Sjekkliste noter'!A30,\"\")","v":""},{"$f":"IF($C11=1,'Sjekkliste noter'!B30,\"\")","v":""},null,{"$f":"IF($C11=1,'Sjekkliste noter'!N30,\"\")","v":""}]
[{"$f":"+'Sjekkliste noter'!A31","v":11},{"$f":"IF('Sjekkliste noter'!L31<>\"\",1,0)","v":0},0,{"$f":"IF($C12=1,'Sjekkliste noter'!A31,\"\")","v":""},{"$f":"IF($C12=1,'Sjekkliste noter'!B31,\"\")","v":""},null,{"$f":"IF($C12=1,'Sjekkliste noter'!N31,\"\")","v":""}]
[{"$f":"+'Sjekkliste noter'!A32","v":12},{"$f":"IF('Sjekkliste noter'!L32<>\"\",1,0)","v":0},0,{"$f":"IF($C13=1,'Sjekkliste noter'!A32,\"\")","v":""},{"$f":"IF($C13=1,'Sjekkliste noter'!B32,\"\")","v":""},null,{"$f":"IF($C13=1,'Sjekkliste noter'!N32,\"\")","v":""}]
[{"$f":"+'Sjekkliste noter'!A33","v":13},{"$f":"IF('Sjekkliste noter'!L33<>\"\",1,0)","v":0},0,{"$f":"IF($C14=1,'Sjekkliste noter'!A33,\"\")","v":""},{"$f":"IF($C14=1,'Sjekkliste noter'!B33,\"\")","v":""},null,{"$f":"IF($C14=1,'Sjekkliste noter'!N33,\"\")","v":""}]
[{"$f":"+'Sjekkliste noter'!A34","v":14},{"$f":"IF('Sjekkliste noter'!L34<>\"\",1,0)","v":0},0,{"$f":"IF($C15=1,'Sjekkliste noter'!A34,\"\")","v":""},{"$f":"IF($C15=1,'Sjekkliste noter'!B34,\"\")","v":""},null,{"$f":"IF($C15=1,'Sjekkliste noter'!N34,\"\")","v":""}]
[{"$f":"+'Sjekkliste noter'!A35","v":15},{"$f":"IF('Sjekkliste noter'!L35<>\"\",1,0)","v":0},0,{"$f":"IF($C16=1,'Sjekkliste noter'!A35,\"\")","v":""},{"$f":"IF($C16=1,'Sjekkliste noter'!B35,\"\")","v":""},null,{"$f":"IF($C16=1,'Sjekkliste noter'!N35,\"\")","v":""}]
[{"$f":"+'Sjekkliste noter'!A38","v":16},{"$f":"IF('Sjekkliste noter'!L38<>\"\",1,0)","v":0},0,{"$f":"IF($C17=1,'Sjekkliste noter'!A38,\"\")","v":""},{"$f":"IF($C17=1,'Sjekkliste noter'!B38,\"\")","v":""},null,{"$f":"IF($C17=1,'Sjekkliste noter'!N38,\"\")","v":""}]
[{"$f":"+'Sjekkliste noter'!A39","v":17},{"$f":"IF('Sjekkliste noter'!L39<>\"\",1,0)","v":0},0,{"$f":"IF($C18=1,'Sjekkliste noter'!A39,\"\")","v":""},{"$f":"IF($C18=1,'Sjekkliste noter'!B39,\"\")","v":""},null,{"$f":"IF($C18=1,'Sjekkliste noter'!N39,\"\")","v":""}]
[{"$f":"+'Sjekkliste noter'!A40","v":18},{"$f":"IF('Sjekkliste noter'!L40<>\"\",1,0)","v":0},0,{"$f":"IF($C19=1,'Sjekkliste noter'!A40,\"\")","v":""},{"$f":"IF($C19=1,'Sjekkliste noter'!B40,\"\")","v":""},null,{"$f":"IF($C19=1,'Sjekkliste noter'!N40,\"\")","v":""}]
[{"$f":"+'Sjekkliste noter'!A41","v":19},{"$f":"IF('Sjekkliste noter'!L41<>\"\",1,0)","v":0},0,{"$f":"IF($C20=1,'Sjekkliste noter'!A41,\"\")","v":""},{"$f":"IF($C20=1,'Sjekkliste noter'!B41,\"\")","v":""},null,{"$f":"IF($C20=1,'Sjekkliste noter'!N41,\"\")","v":""}]
[{"$f":"+'Sjekkliste noter'!A42","v":20},{"$f":"IF('Sjekkliste noter'!L42<>\"\",1,0)","v":0},0,{"$f":"IF($C21=1,'Sjekkliste noter'!A42,\"\")","v":""},{"$f":"IF($C21=1,'Sjekkliste noter'!B42,\"\")","v":""},null,{"$f":"IF($C21=1,'Sjekkliste noter'!N42,\"\")","v":""}]
[{"$f":"+'Sjekkliste noter'!A44","v":21},{"$f":"IF('Sjekkliste noter'!L44<>\"\",1,0)","v":0},0,{"$f":"IF($C22=1,'Sjekkliste noter'!A44,\"\")","v":""},{"$f":"IF($C22=1,'Sjekkliste noter'!B44,\"\")","v":""},null,{"$f":"IF($C22=1,'Sjekkliste noter'!N44,\"\")","v":""}]
[{"$f":"+'Sjekkliste noter'!A46","v":22},{"$f":"IF('Sjekkliste noter'!L46<>\"\",1,0)","v":0},0,{"$f":"IF($C23=1,'Sjekkliste noter'!A46,\"\")","v":""},{"$f":"IF($C23=1,'Sjekkliste noter'!B46,\"\")","v":""},null,{"$f":"IF($C23=1,'Sjekkliste noter'!N46,\"\")","v":""}]
[{"$f":"+'Sjekkliste noter'!A47","v":23},{"$f":"IF('Sjekkliste noter'!L47<>\"\",1,0)","v":0},0,{"$f":"IF($C24=1,'Sjekkliste noter'!A47,\"\")","v":""},{"$f":"IF($C24=1,'Sjekkliste noter'!B47,\"\")","v":""},null,{"$f":"IF($C24=1,'Sjekkliste noter'!N47,\"\")","v":""}]
[{"$f":"+'Sjekkliste noter'!A48","v":24},{"$f":"IF('Sjekkliste noter'!L48<>\"\",1,0)","v":0},0,{"$f":"IF($C25=1,'Sjekkliste noter'!A48,\"\")","v":""},{"$f":"IF($C25=1,'Sjekkliste noter'!B48,\"\")","v":""},null,{"$f":"IF($C25=1,'Sjekkliste noter'!N48,\"\")","v":""}]
[{"$f":"+'Sjekkliste noter'!A50","v":25},{"$f":"IF('Sjekkliste noter'!L50<>\"\",1,0)","v":0},0,{"$f":"IF($C26=1,'Sjekkliste noter'!A50,\"\")","v":""},{"$f":"IF($C26=1,'Sjekkliste noter'!B50,\"\")","v":""},null,{"$f":"IF($C26=1,'Sjekkliste noter'!N50,\"\")","v":""}]
[{"$f":"+'Sjekkliste noter'!A51","v":26},{"$f":"IF('Sjekkliste noter'!L51<>\"\",1,0)","v":0},0,{"$f":"IF($C27=1,'Sjekkliste noter'!A51,\"\")","v":""},{"$f":"IF($C27=1,'Sjekkliste noter'!B51,\"\")","v":""},null,{"$f":"IF($C27=1,'Sjekkliste noter'!N51,\"\")","v":""}]
[{"$f":"+'Sjekkliste noter'!A52","v":27},{"$f":"IF('Sjekkliste noter'!L52<>\"\",1,0)","v":0},0,{"$f":"IF($C28=1,'Sjekkliste noter'!A52,\"\")","v":""},{"$f":"IF($C28=1,'Sjekkliste noter'!B52,\"\")","v":""},null,{"$f":"IF($C28=1,'Sjekkliste noter'!N52,\"\")","v":""}]
[{"$f":"+'Sjekkliste noter'!A54","v":28},{"$f":"IF('Sjekkliste noter'!L54<>\"\",1,0)","v":0},0,{"$f":"IF($C29=1,'Sjekkliste noter'!A54,\"\")","v":""},{"$f":"IF($C29=1,'Sjekkliste noter'!B54,\"\")","v":""},null,{"$f":"IF($C29=1,'Sjekkliste noter'!N54,\"\")","v":""}]
[{"$f":"+'Sjekkliste noter'!A55","v":29},{"$f":"IF('Sjekkliste noter'!L55<>\"\",1,0)","v":0},0,{"$f":"IF($C30=1,'Sjekkliste noter'!A55,\"\")","v":""},{"$f":"IF($C30=1,'Sjekkliste noter'!B55,\"\")","v":""},null,{"$f":"IF($C30=1,'Sjekkliste noter'!N55,\"\")","v":""}]
[{"$f":"+'Sjekkliste noter'!A59","v":30},{"$f":"IF('Sjekkliste noter'!L59<>\"\",1,0)","v":0},0,{"$f":"IF($C31=1,'Sjekkliste noter'!A59,\"\")","v":""},{"$f":"IF($C31=1,'Sjekkliste noter'!B59,\"\")","v":""},null,{"$f":"IF($C31=1,'Sjekkliste noter'!N59,\"\")","v":""}]
[{"$f":"+'Sjekkliste noter'!A60","v":31},{"$f":"IF('Sjekkliste noter'!L60<>\"\",1,0)","v":0},0,{"$f":"IF($C32=1,'Sjekkliste noter'!A60,\"\")","v":""},{"$f":"IF($C32=1,'Sjekkliste noter'!B60,\"\")","v":""},null,{"$f":"IF($C32=1,'Sjekkliste noter'!N60,\"\")","v":""}]
[{"$f":"+'Sjekkliste noter'!A61","v":32},{"$f":"IF('Sjekkliste noter'!L61<>\"\",1,0)","v":0},0,{"$f":"IF($C33=1,'Sjekkliste noter'!A61,\"\")","v":""},{"$f":"IF($C33=1,'Sjekkliste noter'!B61,\"\")","v":""},null,{"$f":"IF($C33=1,'Sjekkliste noter'!N61,\"\")","v":""}]
[{"$f":"+'Sjekkliste noter'!A63","v":33},{"$f":"IF('Sjekkliste noter'!L63<>\"\",1,0)","v":0},{"$f":"SUM(B34:B34)","v":0},{"$f":"IF($C34=1,'Sjekkliste noter'!A63,\"\")","v":""},{"$f":"IF($C34=1,'Sjekkliste noter'!B63,\"\")","v":""},null,{"$f":"IF($C34=1,'Sjekkliste noter'!N63,\"\")","v":""}]
[{"$f":"+'Sjekkliste noter'!A67","v":34},{"$f":"IF('Sjekkliste noter'!L67<>\"\",1,0)","v":0},0,{"$f":"IF($C35=1,'Sjekkliste noter'!A67,\"\")","v":""},{"$f":"IF($C35=1,'Sjekkliste noter'!B67,\"\")","v":""},null,{"$f":"IF($C35=1,'Sjekkliste noter'!N67,\"\")","v":""}]
[{"$f":"+'Sjekkliste noter'!A68","v":35},{"$f":"IF('Sjekkliste noter'!L68<>\"\",1,0)","v":0},0,{"$f":"IF($C36=1,'Sjekkliste noter'!A68,\"\")","v":""},{"$f":"IF($C36=1,'Sjekkliste noter'!B68,\"\")","v":""},null,{"$f":"IF($C36=1,'Sjekkliste noter'!N68,\"\")","v":""}]
[{"$f":"+'Sjekkliste noter'!A69","v":36},{"$f":"IF('Sjekkliste noter'!L69<>\"\",1,0)","v":0},0,{"$f":"IF($C37=1,'Sjekkliste noter'!A69,\"\")","v":""},{"$f":"IF($C37=1,'Sjekkliste noter'!B69,\"\")","v":""},null,{"$f":"IF($C37=1,'Sjekkliste noter'!N69,\"\")","v":""}]
[{"$f":"+'Sjekkliste noter'!A73","v":37},{"$f":"IF('Sjekkliste noter'!L73<>\"\",1,0)","v":0},0,{"$f":"IF($C38=1,'Sjekkliste noter'!A73,\"\")","v":""},{"$f":"IF($C38=1,'Sjekkliste noter'!B73,\"\")","v":""},null,{"$f":"IF($C38=1,'Sjekkliste noter'!N73,\"\")","v":""}]
[{"$f":"+'Sjekkliste noter'!A74","v":38},{"$f":"IF('Sjekkliste noter'!L74<>\"\",1,0)","v":0},0,{"$f":"IF($C39=1,'Sjekkliste noter'!A74,\"\")","v":""},{"$f":"IF($C39=1,'Sjekkliste noter'!B74,\"\")","v":""},null,{"$f":"IF($C39=1,'Sjekkliste noter'!N74,\"\")","v":""}]
[{"$f":"+'Sjekkliste noter'!A75","v":39},{"$f":"IF('Sjekkliste noter'!L75<>\"\",1,0)","v":0},0,{"$f":"IF($C40=1,'Sjekkliste noter'!A75,\"\")","v":""},{"$f":"IF($C40=1,'Sjekkliste noter'!B75,\"\")","v":""},null,{"$f":"IF($C40=1,'Sjekkliste noter'!N75,\"\")","v":""}]
[{"$f":"+'Sjekkliste noter'!A77","v":40},{"$f":"IF('Sjekkliste noter'!L77<>\"\",1,0)","v":0},0,{"$f":"IF($C41=1,'Sjekkliste noter'!A77,\"\")","v":""},{"$f":"IF($C41=1,'Sjekkliste noter'!B77,\"\")","v":""},null,{"$f":"IF($C41=1,'Sjekkliste noter'!N77,\"\")","v":""}]
[{"$f":"+'Sjekkliste noter'!A79","v":41},{"$f":"IF('Sjekkliste noter'!L79<>\"\",1,0)","v":0},0,{"$f":"IF($C42=1,'Sjekkliste noter'!A79,\"\")","v":""},{"$f":"IF($C42=1,'Sjekkliste noter'!B79,\"\")","v":""},null,{"$f":"IF($C42=1,'Sjekkliste noter'!N79,\"\")","v":""}]
[{"$f":"+'Sjekkliste noter'!A82","v":42},{"$f":"IF('Sjekkliste noter'!L82<>\"\",1,0)","v":0},0,{"$f":"IF($C43=1,'Sjekkliste noter'!A82,\"\")","v":""},{"$f":"IF($C43=1,'Sjekkliste noter'!B82,\"\")","v":""},null,{"$f":"IF($C43=1,'Sjekkliste noter'!N82,\"\")","v":""}]
[{"$f":"+'Sjekkliste noter'!A83","v":43},{"$f":"IF('Sjekkliste noter'!L83<>\"\",1,0)","v":0},0,{"$f":"IF($C44=1,'Sjekkliste noter'!A83,\"\")","v":""},{"$f":"IF($C44=1,'Sjekkliste noter'!B83,\"\")","v":""},null,{"$f":"IF($C44=1,'Sjekkliste noter'!N83,\"\")","v":""}]
[{"$f":"+'Sjekkliste noter'!A84","v":44},{"$f":"IF('Sjekkliste noter'!L84<>\"\",1,0)","v":0},0,{"$f":"IF($C45=1,'Sjekkliste noter'!A84,\"\")","v":""},{"$f":"IF($C45=1,'Sjekkliste noter'!B84,\"\")","v":""},null,{"$f":"IF($C45=1,'Sjekkliste noter'!N84,\"\")","v":""}]
[{"$f":"+'Sjekkliste noter'!A88","v":45},{"$f":"IF('Sjekkliste noter'!L88<>\"\",1,0)","v":0},0,{"$f":"IF($C46=1,'Sjekkliste noter'!A88,\"\")","v":""},{"$f":"IF($C46=1,'Sjekkliste noter'!B88,\"\")","v":""},null,{"$f":"IF($C46=1,'Sjekkliste noter'!N88,\"\")","v":""}]
[{"$f":"+'Sjekkliste noter'!A91","v":46},{"$f":"IF('Sjekkliste noter'!L91<>\"\",1,0)","v":0},0,{"$f":"IF($C47=1,'Sjekkliste noter'!A91,\"\")","v":""},{"$f":"IF($C47=1,'Sjekkliste noter'!B91,\"\")","v":""},null,{"$f":"IF($C47=1,'Sjekkliste noter'!N91,\"\")","v":""}]
[{"$f":"+'Sjekkliste noter'!A94","v":47},{"$f":"IF('Sjekkliste noter'!L94<>\"\",1,0)","v":0},0,{"$f":"IF($C48=1,'Sjekkliste noter'!A94,\"\")","v":""},{"$f":"IF($C48=1,'Sjekkliste noter'!B94,\"\")","v":""},null,{"$f":"IF($C48=1,'Sjekkliste noter'!N94,\"\")","v":""}]
[{"$f":"+'Sjekkliste noter'!A95","v":48},{"$f":"IF('Sjekkliste noter'!L95<>\"\",1,0)","v":0},0,{"$f":"IF($C49=1,'Sjekkliste noter'!A95,\"\")","v":""},{"$f":"IF($C49=1,'Sjekkliste noter'!B95,\"\")","v":""},null,{"$f":"IF($C49=1,'Sjekkliste noter'!N95,\"\")","v":""}]
[{"$f":"+'Sjekkliste noter'!A96","v":49},{"$f":"IF('Sjekkliste noter'!L96<>\"\",1,0)","v":0},0,{"$f":"IF($C50=1,'Sjekkliste noter'!A96,\"\")","v":""},{"$f":"IF($C50=1,'Sjekkliste noter'!B96,\"\")","v":""},null,{"$f":"IF($C50=1,'Sjekkliste noter'!N96,\"\")","v":""}]
[{"$f":"+'Sjekkliste noter'!A98","v":50},{"$f":"IF('Sjekkliste noter'!L98<>\"\",1,0)","v":0},0,{"$f":"IF($C51=1,'Sjekkliste noter'!A98,\"\")","v":""},{"$f":"IF($C51=1,'Sjekkliste noter'!B98,\"\")","v":""},null,{"$f":"IF($C51=1,'Sjekkliste noter'!N98,\"\")","v":""}]
[{"$f":"+'Sjekkliste noter'!A99","v":51},{"$f":"IF('Sjekkliste noter'!L99<>\"\",1,0)","v":0},0,{"$f":"IF($C52=1,'Sjekkliste noter'!A99,\"\")","v":""},{"$f":"IF($C52=1,'Sjekkliste noter'!B99,\"\")","v":""},null,{"$f":"IF($C52=1,'Sjekkliste noter'!N99,\"\")","v":""}]
[{"$f":"+'Sjekkliste noter'!A101","v":52},{"$f":"IF('Sjekkliste noter'!L101<>\"\",1,0)","v":0},0,{"$f":"IF($C53=1,'Sjekkliste noter'!A101,\"\")","v":""},{"$f":"IF($C53=1,'Sjekkliste noter'!B101,\"\")","v":""},null,{"$f":"IF($C53=1,'Sjekkliste noter'!N101,\"\")","v":""}]
[{"$f":"+'Sjekkliste noter'!A105","v":53},{"$f":"IF('Sjekkliste noter'!L105<>\"\",1,0)","v":0},0,{"$f":"IF($C54=1,'Sjekkliste noter'!A105,\"\")","v":""},{"$f":"IF($C54=1,'Sjekkliste noter'!B105,\"\")","v":""},null,{"$f":"IF($C54=1,'Sjekkliste noter'!N105,\"\")","v":""}]
[{"$f":"+'Sjekkliste noter'!A106","v":54},{"$f":"IF('Sjekkliste noter'!L106<>\"\",1,0)","v":0},0,{"$f":"IF($C55=1,'Sjekkliste noter'!A106,\"\")","v":""},{"$f":"IF($C55=1,'Sjekkliste noter'!B106,\"\")","v":""},null,{"$f":"IF($C55=1,'Sjekkliste noter'!N106,\"\")","v":""}]
[{"$f":"+'Sjekkliste noter'!A107","v":55},{"$f":"IF('Sjekkliste noter'!L107<>\"\",1,0)","v":0},0,{"$f":"IF($C56=1,'Sjekkliste noter'!A107,\"\")","v":""},{"$f":"IF($C56=1,'Sjekkliste noter'!B107,\"\")","v":""},null,{"$f":"IF($C56=1,'Sjekkliste noter'!N107,\"\")","v":""}]
[{"$f":"+'Sjekkliste noter'!A108","v":56},{"$f":"IF('Sjekkliste noter'!L108<>\"\",1,0)","v":0},0,{"$f":"IF($C57=1,'Sjekkliste noter'!A108,\"\")","v":""},{"$f":"IF($C57=1,'Sjekkliste noter'!B108,\"\")","v":""},null,{"$f":"IF($C57=1,'Sjekkliste noter'!N108,\"\")","v":""}]
[{"$f":"+'Sjekkliste noter'!A111","v":57},{"$f":"IF('Sjekkliste noter'!L111<>\"\",1,0)","v":0},0,{"$f":"IF($C58=1,'Sjekkliste noter'!A111,\"\")","v":""},{"$f":"IF($C58=1,'Sjekkliste noter'!B111,\"\")","v":""},null,{"$f":"IF($C58=1,'Sjekkliste noter'!N111,\"\")","v":""}]
[{"$f":"+'Sjekkliste noter'!A112","v":58},{"$f":"IF('Sjekkliste noter'!L112<>\"\",1,0)","v":0},0,{"$f":"IF($C59=1,'Sjekkliste noter'!A112,\"\")","v":""},{"$f":"IF($C59=1,'Sjekkliste noter'!B112,\"\")","v":""},null,{"$f":"IF($C59=1,'Sjekkliste noter'!N112,\"\")","v":""}]
[{"$f":"+'Sjekkliste noter'!A113","v":59},{"$f":"IF('Sjekkliste noter'!L113<>\"\",1,0)","v":0},0,{"$f":"IF($C60=1,'Sjekkliste noter'!A113,\"\")","v":""},{"$f":"IF($C60=1,'Sjekkliste noter'!B113,\"\")","v":""},null,{"$f":"IF($C60=1,'Sjekkliste noter'!N113,\"\")","v":""}]
[{"$f":"+'Sjekkliste noter'!A115","v":60},{"$f":"IF('Sjekkliste noter'!L115<>\"\",1,0)","v":0},0,{"$f":"IF($C61=1,'Sjekkliste noter'!A115,\"\")","v":""},{"$f":"IF($C61=1,'Sjekkliste noter'!B115,\"\")","v":""},null,{"$f":"IF($C61=1,'Sjekkliste noter'!N115,\"\")","v":""}]
[{"$f":"+'Sjekkliste noter'!A116","v":61},{"$f":"IF('Sjekkliste noter'!L116<>\"\",1,0)","v":0},0,{"$f":"IF($C62=1,'Sjekkliste noter'!A116,\"\")","v":""},{"$f":"IF($C62=1,'Sjekkliste noter'!B116,\"\")","v":""},null,{"$f":"IF($C62=1,'Sjekkliste noter'!N116,\"\")","v":""}]
[{"$f":"+'Sjekkliste noter'!A117","v":62},{"$f":"IF('Sjekkliste noter'!L117<>\"\",1,0)","v":0},0,{"$f":"IF($C63=1,'Sjekkliste noter'!A117,\"\")","v":""},{"$f":"IF($C63=1,'Sjekkliste noter'!B117,\"\")","v":""},null,{"$f":"IF($C63=1,'Sjekkliste noter'!N117,\"\")","v":""}]
[{"$f":"+'Sjekkliste noter'!A118","v":63},{"$f":"IF('Sjekkliste noter'!L118<>\"\",1,0)","v":0},0,{"$f":"IF($C64=1,'Sjekkliste noter'!A118,\"\")","v":""},{"$f":"IF($C64=1,'Sjekkliste noter'!B118,\"\")","v":""},null,{"$f":"IF($C64=1,'Sjekkliste noter'!N118,\"\")","v":""}]
[{"$f":"+'Sjekkliste noter'!A119","v":64},{"$f":"IF('Sjekkliste noter'!L119<>\"\",1,0)","v":0},0,{"$f":"IF($C65=1,'Sjekkliste noter'!A119,\"\")","v":""},{"$f":"IF($C65=1,'Sjekkliste noter'!B119,\"\")","v":""},null,{"$f":"IF($C65=1,'Sjekkliste noter'!N119,\"\")","v":""}]
[{"$f":"+'Sjekkliste noter'!A120","v":65},{"$f":"IF('Sjekkliste noter'!L120<>\"\",1,0)","v":0},{"$f":"SUM(B66:B66)","v":0},{"$f":"IF($C66=1,'Sjekkliste noter'!A120,\"\")","v":""},{"$f":"IF($C66=1,'Sjekkliste noter'!B120,\"\")","v":""},null,{"$f":"IF($C66=1,'Sjekkliste noter'!N120,\"\")","v":""}]
[{"$f":"+'Sjekkliste noter'!A121","v":66},{"$f":"IF('Sjekkliste noter'!L121<>\"\",1,0)","v":0},0,{"$f":"IF($C67=1,'Sjekkliste noter'!A121,\"\")","v":""},{"$f":"IF($C67=1,'Sjekkliste noter'!B121,\"\")","v":""},null,{"$f":"IF($C67=1,'Sjekkliste noter'!N121,\"\")","v":""}]
[{"$f":"+'Sjekkliste noter'!A122","v":67},{"$f":"IF('Sjekkliste noter'!L122<>\"\",1,0)","v":0},0,{"$f":"IF($C68=1,'Sjekkliste noter'!A122,\"\")","v":""},{"$f":"IF($C68=1,'Sjekkliste noter'!B122,\"\")","v":""},null,{"$f":"IF($C68=1,'Sjekkliste noter'!N122,\"\")","v":""}]
[{"$f":"+'Sjekkliste noter'!A123","v":68},{"$f":"IF('Sjekkliste noter'!L123<>\"\",1,0)","v":0},0,{"$f":"IF($C69=1,'Sjekkliste noter'!A123,\"\")","v":""},{"$f":"IF($C69=1,'Sjekkliste noter'!B123,\"\")","v":""},null,{"$f":"IF($C69=1,'Sjekkliste noter'!N123,\"\")","v":""}]
[{"$f":"+'Sjekkliste noter'!A125","v":69},{"$f":"IF('Sjekkliste noter'!L125<>\"\",1,0)","v":0},0,{"$f":"IF($C70=1,'Sjekkliste noter'!A125,\"\")","v":""},{"$f":"IF($C70=1,'Sjekkliste noter'!B125,\"\")","v":""},null,{"$f":"IF($C70=1,'Sjekkliste noter'!N125,\"\")","v":""}]
[{"$f":"+'Sjekkliste noter'!A127","v":70},{"$f":"IF('Sjekkliste noter'!L127<>\"\",1,0)","v":0},0,{"$f":"IF($C71=1,'Sjekkliste noter'!A127,\"\")","v":""},{"$f":"IF($C71=1,'Sjekkliste noter'!B127,\"\")","v":""},null,{"$f":"IF($C71=1,'Sjekkliste noter'!N127,\"\")","v":""}]
[{"$f":"+'Sjekkliste noter'!A130","v":71},{"$f":"IF('Sjekkliste noter'!L130<>\"\",1,0)","v":0},0,{"$f":"IF($C72=1,'Sjekkliste noter'!A130,\"\")","v":""},{"$f":"IF($C72=1,'Sjekkliste noter'!B130,\"\")","v":""},null,{"$f":"IF($C72=1,'Sjekkliste noter'!N130,\"\")","v":""}]
[{"$f":"+'Sjekkliste noter'!A132","v":72},{"$f":"IF('Sjekkliste noter'!L132<>\"\",1,0)","v":0},0,{"$f":"IF($C73=1,'Sjekkliste noter'!A132,\"\")","v":""},{"$f":"IF($C73=1,'Sjekkliste noter'!B132,\"\")","v":""},null,{"$f":"IF($C73=1,'Sjekkliste noter'!N132,\"\")","v":""}]
[{"$f":"+'Sjekkliste noter'!A138","v":73},{"$f":"IF('Sjekkliste noter'!L138<>\"\",1,0)","v":0},0,{"$f":"IF($C74=1,'Sjekkliste noter'!A138,\"\")","v":""},{"$f":"IF($C74=1,'Sjekkliste noter'!B138,\"\")","v":""},null,{"$f":"IF($C74=1,'Sjekkliste noter'!N138,\"\")","v":""}]
[{"$f":"+'Sjekkliste noter'!A140","v":74},{"$f":"IF('Sjekkliste noter'!L140<>\"\",1,0)","v":0},0,{"$f":"IF($C75=1,'Sjekkliste noter'!A140,\"\")","v":""},{"$f":"IF($C75=1,'Sjekkliste noter'!B140,\"\")","v":""},null,{"$f":"IF($C75=1,'Sjekkliste noter'!N140,\"\")","v":""}]
[{"$f":"+'Sjekkliste noter'!A142","v":75},{"$f":"IF('Sjekkliste noter'!L142<>\"\",1,0)","v":0},0,{"$f":"IF($C76=1,'Sjekkliste noter'!A142,\"\")","v":""},{"$f":"IF($C76=1,'Sjekkliste noter'!B142,\"\")","v":""},null,{"$f":"IF($C76=1,'Sjekkliste noter'!N142,\"\")","v":""}]
[{"$f":"+'Sjekkliste noter'!A143","v":76},{"$f":"IF('Sjekkliste noter'!L143<>\"\",1,0)","v":0},0,{"$f":"IF($C77=1,'Sjekkliste noter'!A143,\"\")","v":""},{"$f":"IF($C77=1,'Sjekkliste noter'!B143,\"\")","v":""},null,{"$f":"IF($C77=1,'Sjekkliste noter'!N143,\"\")","v":""}]
[{"$f":"+'Sjekkliste noter'!A144","v":77},{"$f":"IF('Sjekkliste noter'!L144<>\"\",1,0)","v":0},0,{"$f":"IF($C78=1,'Sjekkliste noter'!A144,\"\")","v":""},{"$f":"IF($C78=1,'Sjekkliste noter'!B144,\"\")","v":""},null,{"$f":"IF($C78=1,'Sjekkliste noter'!N144,\"\")","v":""}]
[{"$f":"+'Sjekkliste noter'!A149","v":78},{"$f":"IF('Sjekkliste noter'!L149<>\"\",1,0)","v":0},0,{"$f":"IF($C79=1,'Sjekkliste noter'!A149,\"\")","v":""},{"$f":"IF($C79=1,'Sjekkliste noter'!B149,\"\")","v":""},null,{"$f":"IF($C79=1,'Sjekkliste noter'!N149,\"\")","v":""}]
[{"$f":"+'Sjekkliste noter'!A151","v":79},{"$f":"IF('Sjekkliste noter'!L151<>\"\",1,0)","v":0},0,{"$f":"IF($C80=1,'Sjekkliste noter'!A151,\"\")","v":""},{"$f":"IF($C80=1,'Sjekkliste noter'!B151,\"\")","v":""},null,{"$f":"IF($C80=1,'Sjekkliste noter'!N151,\"\")","v":""}]
[{"$f":"+'Sjekkliste noter'!A153","v":80},{"$f":"IF('Sjekkliste noter'!L153<>\"\",1,0)","v":0},0,{"$f":"IF($C81=1,'Sjekkliste noter'!A153,\"\")","v":""},{"$f":"IF($C81=1,'Sjekkliste noter'!B153,\"\")","v":""},null,{"$f":"IF($C81=1,'Sjekkliste noter'!N153,\"\")","v":""}]
[{"$f":"+'Sjekkliste noter'!A156","v":81},{"$f":"IF('Sjekkliste noter'!L156<>\"\",1,0)","v":0},0,{"$f":"IF($C82=1,'Sjekkliste noter'!A156,\"\")","v":""},{"$f":"IF($C82=1,'Sjekkliste noter'!B156,\"\")","v":""},null,{"$f":"IF($C82=1,'Sjekkliste noter'!N156,\"\")","v":""}]
[{"$f":"+'Sjekkliste noter'!A159","v":82},{"$f":"IF('Sjekkliste noter'!L159<>\"\",1,0)","v":0},0,{"$f":"IF($C83=1,'Sjekkliste noter'!A159,\"\")","v":""},{"$f":"IF($C83=1,'Sjekkliste noter'!B159,\"\")","v":""},null,{"$f":"IF($C83=1,'Sjekkliste noter'!N159,\"\")","v":""}]
[{"$f":"+'Sjekkliste noter'!A162","v":83},{"$f":"IF('Sjekkliste noter'!L162<>\"\",1,0)","v":0},0,{"$f":"IF($C84=1,'Sjekkliste noter'!A162,\"\")","v":""},{"$f":"IF($C84=1,'Sjekkliste noter'!B162,\"\")","v":""},null,{"$f":"IF($C84=1,'Sjekkliste noter'!N162,\"\")","v":""}]

{"sheet":"sjekkliste_noter_matrix","index":7,"n_rows":162,"n_cols":39,"rows_kept":162,"cut":false,"hidden":true,"merged":[]}
["F0","E0",{"$f":"\"F\"&COLUMN(A1)","v":"F1"},{"$f":"\"F\"&COLUMN(B1)","v":"F2"},"F3","F4","F5","F6","F7","F8","F9","F8F9",{"$f":"\"F\"&COLUMN(J1)","v":"F10"},{"$f":"\"F\"&COLUMN(K1)","v":"F11"},{"$f":"\"F\"&COLUMN(L1)","v":"F12"},"F13","F14","F15","F16","F17",{"$f":"\"F\"&COLUMN(R1)","v":"F18"},{"$f":"\"F\"&COLUMN(S1)","v":"F19"},{"$f":"\"F\"&COLUMN(T1)","v":"F20"},"F21",{"$f":"\"E\"&COLUMN(A1)","v":"E1"},"E2","E3","E4","E5","E6","E7","E8","E9",{"$f":"\"E\"&COLUMN(J1)","v":"E10"},"E11",{"$f":"\"E\"&COLUMN(L1)","v":"E12"},{"$f":"\"E\"&COLUMN(M1)","v":"E13"},{"$f":"\"E\"&COLUMN(N1)","v":"E14"},{"$f":"\"E\"&COLUMN(O1)","v":"E15"}]
["x","x","x","x","x","x","x","x","x","x","x","x","x","x","x","x","x","x","x","x","x","x","x","x","x","x","x","x","x","x","x","x","x","x","x","x","x","x","x"]
["x","x","x","x","x","x","x","x","x","x","x","x","x","x","x","x","x","x","x","x","x","x","x","x","x","x","x","x","x","x","x","x","x","x","x","x","x","x","x"]
["x","x","x","x","x","x","x","x","x","x","x","x","x","x","x","x","x","x","x","x","x","x","x","x","x","x","x","x","x","x","x","x","x","x","x","x","x","x","x"]
["x","x","x","x","x","x","x","x","x","x","x","x","x","x","x","x","x","x","x","x","x","x","x","x","x","x","x","x","x","x","x","x","x","x","x","x","x","x","x"]
["x","x","x","x","x","x","x","x","x","x","x","x","x","x","x","x","x","x","x","x","x","x","x","x","x","x","x","x","x","x","x","x","x","x","x","x","x","x","x"]
["x","x","x","x","x","x","x","x","x","x","x","x","x","x","x","x","x","x","x","x","x","x","x","x","x","x","x","x","x","x","x","x","x","x","x","x","x","x","x"]
["x",null,"x","x","x","x","x","x","x","x","x","x","x","x","x","x","x","x","x","x","x","x","x","x",null,"","","","x","","","","",""]
["x",null,"x","x","x","x","x","x","x","x","x","x","x","x","x","x","x","x","x","x","x","x","x","x",null,"","","","x","","","","",""]
["x",null,"x","x","x","x","x","x","x","x","x","x","x","x","x","x","x","x","x","x","x","x","x","x",null,"","","","","","","","",""]
["x",null,"x","x","x","x","x","x","x","x","x","x","x","x","x","x","x","x","x","x","x","x","x","x",null,"","","","","","","","",""]
["x",null,"x","x","x","x","x","x","x","x","x","x","x","x","x","x","x","x","x","x","x","x","x","x",null,"","","","","","","","",""]
["x",null,"x","x","x","x","x","x","x","x","x","x","x","x","x","x","x","x","x","x","x","x","x","x",null,"","","","","","","","",""]
["x",null,"x","x","x","x","x","x","x","x","x","x","x","x","x","x","x","x","x","x","x","x","x","x",null,"","","","","","","","x",""]
["x","x","x","x","x","x","x","x","x","x","x","x","x","x","x","x","x","x","x","x","x","x","x","x","x","","","","","","","","x",""]
["x",null,"x","x","x","x","x","x","x","x","x","x","x","x","x","x","x","x","x","x","x","x","x","x",null,"","","",null,"","","","x",""]
["x","x","x","x","x","x","x","x","x","x","x","x","x","x","x","x","x","x","x","x","x","x","x","x","x","","","","","","","","x",""]
["x",null,"x","x","x","x","x","x","x","x","x","x","x","x","x","x","x","x","x","x","x","x","x","x",null,"","","",null,"","","","x",""]
["x",null,"x","x","x","x","x","x","x","x","x","x","x","x","x","x","x","x","x","x","x","x","x","x",null,"","","","x","","","","x"]
["x",null,"x","x","x","x","x","x","x","x","x","x","x","x","x","x","x","x","x","x","x","x","x","x",null,"","","","x","","","","x"]
["x",null,"x","x","x","x","x","x","x","x","x","x","x","x","x","x","x","x","x","x","x","x","x","x",null,"","","","","","","","x",""]
["x",null,"x","x","x","x","x","x","x","x","x","x","x","x","x","x","x","x","x","x","x","x","x","x",null,"","","","","","","","x",""]
["x",null,"x","x","x","x","x","x","x","x","x","x","x","x","x","x","x","x","x","x","x","x","x","x",null,"","","","","","","","x",""]
["x",null,"x","x","x","x","x","x","x","x","x","x","x","x","x","x","x","x","x","x","x","x","x","x",null,"","","","x","","","","x",""]
["x",null,"x","x","x","x",null,"x","x","x","x","x","x","x","x","x","x","x","x","x","x","x","x","x",null,"","","","x","","","",null,""]
["x",null,"x","x","x","x","x","x","x","x","x","x","x","x","x","x","x","x","x","x","x","x","x","x",null,"","","","","","","","",""]
["x","x","x","x","x","x","x","x","x","x","x","x","x","x","x","x","x","x","x","x","x","x","x","x","x","","","","","","","","",""]
["x",null,"x","x","x","x","x","x","x","x","x","x","x",null,"x","x","x","x","x","x","x","x","x","x",null,"","","","","","","","",""]
["x",null,"x","x","x","x","x","x","x","x","x","x","x",null,"x","x","x","x","x","x","x","x","x","x",null,"","","","","","","","",""]
["x",null,"x","x","x","x","x","x","x","x","x","x","x",null,"x","x","x","x","x","x","x","x","x","x",null,"","","","","","","","",""]
["x",null,"x","x","x","x","x","x","x","x","x","x","x",null,"x","x","x","x","x","x","x","x","x","x",null,"","","","","","","","",""]
["x",null,"x","x","x","x","x","x","x","x","x","x","x",null,"x","x","x","x","x","x","x","x","x","x",null,"","","","","","","","",""]
["x",null,"x","x","x","x","x","x","x","x","x","x","x",null,"x","x","x","x","x","x","x","x","x","x"]
["x",null,"x","x","x","x","x","x","x","x","x","x","x",null,"x","x","x","x","x","x","x","x","x","x"]
["x",null,"x","x","x","x","x","x","x","x","x","x","x",null,"x","x","x","x","x","x","x","x","x","x"]
["x","x","x","x","x","x","x","x","x","x","x","x","x","x","x","x","x","x","x","x","x","x","x","x","x","","","","","","","","",""]
["x",null,"x","x",null,"x","x","x","x","x","x","x","x","x","x","x","x","x","x","x","x","x","x","x",null,"","","","","","","","",""]
["x",null,"x","x",null,"x","x","x","x","x","x","x","x","x","x","x","x","x","x","x","x","x","x","x",null,"","","","","","","","",""]
["x",null,"x","x",null,"x","x","x","x","x","x","x","x","x","x","x","x","x","x","x","x","x","x","x",null,"","","","","","","","",""]
["x",null,"x","x",null,"x","x","x","x","x","x","x","x","x","x","x","x","x","x","x","x","x","x","x",null,"","","","","","","","",""]
["x",null,"x","x",null,"x","x","x","x","x","x","x","x","x","x","x","x","x","x","x","x","x","x","x",null,"","","","","","","","",""]
["x",null,"x","x",null,"x","x","x","x","x","x","x","x","x","x","x","x","x","x","x","x","x","x","x",null,"","","","","","","","",""]
["x","x","x","x","x","x","x","x","x","x","x","x","x","x","x","x","x","x","x","x","x","x","x","x","x","","","","","","","","",""]
["x",null,"x","x","x","x","x","x","x","x","x","x","x","x","x","x","x","x","x","x","x","x","x","x",null,"x","","","","","","","",""]
["x",null,"x","x","x","x","x","x","x","x","x","x","x","x","x","x","x","x","x","x","x","x","x","x",null,"x","","","","","","","",""]
["x",null,"x","x","x","x","x","x","x","x","x","x","x","x","x","x","x","x","x","x","x","x","x","x",null,"x","","","","","","","",""]
["x",null,"x","x","x","x","x","x","x","x","x","x","x","x","x","x","x","x","x","x","x","x","x","x",null,"x","","","","","","","",""]
["x",null,"x","x","x","x","x","x","x","x","x","x","x","x","x","x","x","x","x","x","x","x","x","x",null,"x","","","","","","","",""]
["x","x","x","x","x","x","x","x","x","x","x","x","x","x","x","x","x","x","x","x","x","x","x","x","x","","","","","","","","",""]
["x",null,"x","x","x","x","x","x","x","x","x","x","x","x","x","x","x","x","x","x","x","x","x","x",null,"x","","","x","","","","",""]
["x",null,"x","x","x","x","x","x","x","x","x","x","x","x","x","x","x","x","x","x","x","x","x","x",null,"x","","","x","","","","",""]
["x",null,"x","x","x","x","x","x","x","x","x","x","x","x","x","x","x","x","x","x","x","x","x","x",null,"x","","","x","","","","",""]
["x","x","x","x","x","x","x","x","x","x","x","x","x","x","x","x","x","x","x","x","x","x","x","x","x","","","","","","","","",""]
["x",null,"x","x","x","x","x","x","x","x","x","x","x","x","x","x","x","x","x","x",null,"x","x","x",null,"","x","","","","","","",""]
["x",null,"x","x","x","x",null,"x","x","x","x","x","x","x","x","x","x","x","x","x",null,"x","x","x",null,"","x",null,"x"]
["x","x","x","x","x","x","x","x","x","x","x","x","x","x","x","x","x","x","x","x",null,"x","x","x","x","","x","","","","","","",""]
["x",null,"x","x","x","x","x","x","x","x","x","x","x","x","x","x","x","x","x","x",null,"x","x","x",null,"","x","","","","","","",""]
["x",null,"x","x","x","x","x","x","x","x","x","x","x","x","x","x","x","x","x","x",null,"x","x","x",null,"","x","","","","","","",""]
["x",null,"x","x","x","x","x","x","x","x","x","x","x","x","x","x","x","x","x","x",null,"x","x","x",null,"","x","","","","","","",""]
["x",null,"x","x","x","x","x","x","x","x","x","x","x","x","x","x","x","x","x","x",null,"x","x","x",null,"","x","","","","","","",""]
["x",null,"x","x","x","x","x","x","x","x","x","x","x","x","x","x","x","x","x","x",null,"x","x","x",null,"","x","","","","","","",""]
["x",null,"x","x","x","x","x",null,"x","x","x","x","x","x","x","x","x","x","x","x",null,"x","x","x",null,"","x","","","","","","",""]
["x",null,"x","x","x","x","x",null,"x","x","x","x","x","x","x","x","x","x","x","x",null,"x","x","x",null,"","x","","","","","","",""]
["x","x","x","x","x","x","x","x","x","x","x","x","x","x","x","x","x","x","x","x","x","x","x","x","x","","","","","","","","",""]
["x",null,"x","x","x","x","x","x","x","x","x","x","x","x","x","x","x","x","x","x","x",null,"x","x",null,"","","x","","","","","",""]
["x",null,"x","x","x","x","x","x","x","x","x","x","x","x","x","x","x","x","x","x","x",null,"x","x",null,"","","x","","","","","",""]
["x",null,"x","x","x","x","x","x","x","x","x","x","x","x","x","x","x","x","x","x","x",null,"x","x",null,"","","x","","","","","",""]
["x",null,"x","x","x","x","x","x","x","x","x","x","x","x","x","x","x","x","x","x","x",null,"x","x",null,"","","x","","","","","",""]
["x",null,"x","x","x","x","x","x","x","x","x","x","x","x","x","x","x","x","x","x","x",null,"x","x",null,"","","x","","","","","",""]
["x","x","x","x","x","x","x","x","x","x","x","x","x","x","x","x","x","x","x","x","x","x","x","x","x","","","","","","","","",""]
["x",null,"x","x","x","x","x","x","x","x","x","x","x","x","x","x","x","x","x","x","x","x",null,"x",null,"","","",null,"","","","",""]
["x",null,"x","x","x","x","x","x","x","x","x","x","x","x","x","x","x","x","x","x","x","x",null,"x",null,"","","",null,"","","","",""]
["x",null,"x","x","x","x","x","x","x","x","x","x","x","x","x","x","x","x","x","x","x","x",null,"x",null,"","","",null,"","","","",""]
["x",null,"x","x","x","x","x","x","x","x","x","x","x","x","x","x","x","x","x","x","x","x",null,"x",null,"","","",null,"","","","",""]
["x",null,"x","x","x","x","x","x","x","x","x","x","x","x","x","x","x","x","x","x","x","x",null,"x",null,"","","",null,"","","","",""]
["x","x","x","x","x","x","x","x","x","x","x","x","x","x","x","x","x","x","x","x","x","x","x","x","x","","","","","","","","",""]
["x",null,"x","x","x","x","x","x","x","x","x","x","x","x","x","x","x","x","x","x","x","x","x","x",null,"","","","","","","","",""]
["x",null,"x","x","x","x","x","x","x","x","x","x","x","x","x","x","x","x","x","x","x","x","x","x",null,"","","","","","","","",""]
["x",null,"x","x","x","x","x","x","x","x","x","x","x","x","x","x","x","x","x","x","x","x","x","x",null,"","","","","","","","",""]
["x",null,"x","x","x","x","x","x","x","x","x","x","x","x","x","x","x","x","x","x","x","x","x","x",null,"","","","","","","","",""]
["x","x","x","x","x","x","x","x","x","x","x","x","x","x","x","x","x","x","x","x","x","x","x","x","x","","","","","","","","",""]
["x",null,"x","x","x","x","x","x","x","x","x","x","x","x","x","x","x","x","x","x","x","x","x","x",null,"","","","","","","","",""]
["x",null,"x","x","x","x","x","x","x","x","x","x","x","x","x","x","x","x","x","x","x","x","x","x",null,"","","","","","","","",""]
["x",null,"x","x","x","x","x","x","x","x","x","x","x","x","x","x","x","x","x","x","x","x","x","x",null,"","","","","","","","",""]
["x","x","x","x","x","x","x","x","x","x","x","x","x","x","x","x","x","x","x","x","x","x","x","x","x","","","","","","","","",""]
["x",null,"x","x","x","x","x","x","x","x","x","x","x","x","x","x","x","x","x","x","x","x","x","x",null,"","","","","x","","","",""]
["x",null,"x","x","x","x","x","x","x","x","x","x","x","x","x","x","x","x","x","x","x","x","x","x",null,"","","","","x","","","",""]
["x",null,"x","x","x","x","x","x","x","x","x","x","x","x","x","x","x","x","x","x","x","x","x","x",null,"","","","","x","","","",""]
["x",null,"x","x","x","x","x","x","x","x","x","x","x","x","x","x","x","x","x","x","x","x","x","x",null,"","","","","x","","","",""]
["x",null,"x","x","x","x","x","x","x","x","x","x","x","x","x","x","x","x","x","x","x","x","x","x",null,"","","","","x","","","",""]
["x",null,"x","x","x","x","x","x","x","x","x","x","x","x","x","x","x","x","x","x","x","x","x","x",null,"","","","","x","","","",""]
["x",null,"x","x","x","x","x","x","x","x","x","x","x","x","x","x","x","x","x","x","x","x","x","x",null,"","","","","x","","","",""]
["x",null,"x","x","x","x","x","x","x","x","x","x","x","x","x","x","x","x","x","x","x","x","x","x",null,"","","","","x","","","",""]
["x",null,"x","x","x","x","x","x","x","x","x","x","x","x","x","x","x","x","x","x","x","x","x","x",null,"","","","","x","","","",""]
["x",null,"x","x","x","x","x","x","x","x","x","x","x","x","x","x","x","x","x","x","x","x","x","x",null,"","","","","x","","","",""]
["x",null,"x","x","x","x","x","x","x","x","x","x","x","x","x","x","x","x","x","x","x","x","x","x",null,"","","","","x","","","",""]
["x",null,"x","x","x","x","x","x","x","x","x","x","x","x","x","x","x","x","x","x","x","x","x","x",null,"","","","","x","","","",""]
["x",null,"x","x","x","x","x","x","x","x","x","x","x","x","x","x","x","x","x","x","x","x","x","x",null,"","","","","x","","","",""]
["x",null,"x","x","x","x","x","x","x","x","x","x","x","x","x","x","x","x","x","x","x","x","x","x",null,"","","","","x","","","",""]
["x",null,"x","x","x","x","x","x","x","x","x","x","x","x","x","x","x","x","x","x","x","x","x","x",null,"","","","","x"]
["x",null,"x","x","x","x","x","x","x","x","x","x","x","x","x","x","x","x","x","x","x","x","x","x",null,"","","","x","x"]
["x","x","x","x","x","x","x","x","x","x","x","x","x","x","x","x","x","x","x","x","x","x","x","x","x","","","","","","","","",""]
["x",null,"x","x","x","x","x","x","x","x","x","x","x","x","x","x","x","x","x","x","x","x","x","x",null,"","","","","","","","",""]
["x",null,"x","x","x","x","x","x","x","x","x","x","x","x","x","x","x","x","x","x","x","x","x","x",null,"","","","","","","","",""]
["x",null,"x","x","x","x","x","x","x","x","x","x","x","x","x","x","x","x","x","x","x","x","x","x",null,"","","","","","","","",""]
["x",null,"x","x","x","x","x","x","x","x","x","x","x","x","x","x","x","x","x","x","x","x","x","x",null,"","","","","","","","",""]
["x",null,"x","x","x","x","x","x","x","x","x","x","x","x","x","x","x","x","x","x","x","x","x","x",null,"","","","","","","","",""]
["x",null,"x","x","x","x","x","x","x","x","x","x","x","x","x","x","x","x","x","x","x","x","x","x",null,"","","","","","","","",""]
["x",null,"x","x","x","x","x","x","x","x","x","x","x","x","x","x","x","x","x","x","x","x","x","x",null,"","","","","","","","",""]
["x","x","x","x","x","x","x","x","x","x","x","x","x","x","x","x","x","x","x","x","x","x","x","x","x","","","","","","","","",""]
["x",null,"x","x","x","x","x","x","x","x","x","x","x","x","x","x","x","x","x","x","x","x","x","x",null,null,null,null,"x"]
["x",null,"x","x","x","x","x","x","x","x","x","x","x","x","x","x","x","x","x","x","x","x","x","x",null,null,null,null,"x"]
["x",null,"x","x","x","x","x","x","x","x","x","x","x","x","x","x","x","x","x","x","x","x","x","x",null,"","","","x","","","","",""]
["x","x","x","x","x","x","x","x","x","x","x","x","x","x","x","x","x","x","x","x","x","x","x","x","x","","","","","","","","",""]
["x",null,"x","x","x","x","x","x","x","x","x","x","x","x","x","x","x","x","x","x","x","x","x","x",null,null,null,null,"x"]
["x",null,"x","x","x","x","x","x","x","x","x","x","x","x","x","x","x","x","x","x","x","x","x","x",null,null,null,null,"x"]
["x",null,"x","x","x","x","x","x","x","x","x","x","x","x","x","x","x","x","x","x","x","x","x","x",null,null,null,null,"x"]
["x",null,"x","x","x","x","x","x","x","x","x","x","x","x","x","x","x","x","x","x","x","x","x","x",null,null,null,null,"x"]
["x",null,"x","x","x","x","x","x","x","x","x","x","x","x","x","x","x","x","x","x","x","x","x","x",null,null,null,null,"x"]
["x",null,"x","x","x","x","x","x","x","x","x","x","x","x","x","x","x","x","x","x","x","x","x","x",null,null,null,null,"x"]
["x",null,"x","x","x","x","x","x","x","x","x","x","x","x","x","x","x","x","x","x","x","x","x","x",null,null,null,null,"x"]
["x",null,"x","x","x","x","x","x","x","x","x","x","x","x","x","x","x","x","x","x","x","x","x","x",null,null,null,null,"x"]
["x",null,"x","x","x","x","x","x","x","x","x","x","x","x","x","x","x","x","x","x","x","x","x","x",null,null,null,null,"x"]
["x","x","x","x","x","x","x","x","x","x","x","x","x","x","x","x","x","x","x","x","x","x","x","x","x","","","","","","","","",""]
["x",null,"x","x","x","x","x","x","x","x","x","x","x","x","x","x","x","x","x","x","x","x","x","x",null,"","","",null,"","","","",""]
["x",null,"x","x","x","x","x","x","x","x","x","x","x","x","x","x","x","x","x","x","x","x","x","x",null,"","","","","","","","",""]
["x",null,"x","x","x","x","x","x","x","x","x","x","x","x","x","x","x","x","x","x","x","x","x","x",null,"","","","","","","","",""]
["x",null,"x","x","x","x","x","x","x","x","x","x","x","x","x","x","x","x","x","x","x","x","x","x",null,"","","","","","","","",""]
["x","x","x","x","x","x","x","x","x","x","x","x","x","x","x","x","x","x","x","x","x","x","x","x","x"]
["x",null,null,"x","x","x","x","x","x","x","x","x","x","x","x","x","x","x","x","x","x","x","x","x"]
["x",null,null,"x","x","x","x","x","x","x","x","x","x","x","x","x","x","x","x","x","x","x","x","x"]
["x",null,null,"x","x","x","x","x","x","x","x","x","x","x","x","x","x","x","x","x","x","x","x","x"]
["x",null,null,"x","x","x","x","x","x","x","x","x","x","x","x","x","x","x","x","x","x","x","x","x"]
["x","x","x","x","x","x","x","x","x","x","x","x","x","x","x","x","x","x","x","x","x","x","x","x","x","","","","","","","","",""]
["x",null,"x","x","x","x","x","x","x","x","x","x","x","x","x","x","x","x","x","x","x","x","x","x",null,"","","","","","","","",""]
["x",null,"x","x","x","x","x","x","x","x","x","x","x","x","x","x","x","x","x","x","x","x","x","x"]
["x",null,"x","x","x","x","x","x","x","x","x","x","x","x","x","x","x","x","x","x","x","x","x","x"]
["x",null,"x","x","x","x","x","x","x","x","x","x","x","x","x","x","x","x","x","x","x","x","x","x",null,null,null,null,"x"]
["x","x","x","x","x","x","x","x","x","x","x","x","x","x","x","x","x","x","x","x","x","x","x","x","x","","","","","","","","",""]
["x",null,"x","x","x","x","x","x","x","x","x","x","x","x","x","x","x","x","x","x","x","x","x","x",null,"","","","x","","","","",""]
["x","x","x","x","x","x","x","x","x","x","x","x","x","x","x","x","x","x","x","x","x","x","x","x","x","","","","","","","","",""]
["x",null,"x","x","x","x","x","x","x","x","x","x","x","x","x","x","x","x","x","x","x","x","x","x",null,"","","","x","","","","",""]
["x",null,"x","x","x","x","x","x","x","x","x","x","x","x","x","x","x","x","x","x","x","x","x","x",null,"","","","x","","","","",""]
["x",null,"x","x","x","x","x","x","x","x","x","x","x","x","x","x","x","x","x","x","x","x","x","x",null,"","","","x","","","","",""]
["x","x","x","x","x","x","x","x","x","x","x","x","x","x","x","x","x","x","x","x","x","x","x","x","x","","","","","","","","",""]
["x",null,"x","x","x","x","x","x","x","x","x","x","x","x","x","x","x","x","x","x","x","x","x","x",null,"","","","","","","","",""]
["x",null,"x","x","x","x","x","x","x","x","x","x","x","x","x","x","x","x","x","x","x","x","x","x",null,"","","","","","","","",""]
["x","x","x","x","x","x","x","x","x","x","x","x","x","x","x","x","x","x","x","x","x","x","x","x","x","","","","","","",null,"",""]
["x",null,"x","x","x","x","x","x","x","x","x","x","x","x","x","x","x","x","x","x","x","x","x","x",null,"","","","","","","x","",""]
["x",null,"x","x","x","x","x","x","x","x","x","x","x","x","x","x","x","x","x","x","x","x","x","x",null,"","","","","","","x","",""]
["x",null,"x","x","x","x","x","x","x","x","x","x","x","x","x","x","x","x","x","x","x","x","x","x",null,"","","","","","","x","",""]
["x","x","x","x","x","x","x","x","x","x","x","x","x","x","x","x","x","x","x","x","x","x","x","x","x","","","","","","","","",""]
["x",null,"x","x","x","x","x","x","x","x","x","x","x","x","x","x","x","x","x","x","x","x","x","x",null,"","","","","","","","",""]
["x",null,"x","x","x","x","x","x","x","x","x","x","x","x","x","x","x","x","x","x","x","x","x","x",null,"","","","","","","","",""]
["x","x","x","x","x","x","x","x","x","x","x","x","x","x","x","x","x","x","x","x","x","x","x","x","x","","","","","","","","",""]
["x",null,"x","x","x","x",null,"x","x","x","x","x","x","x","x","x","x","x","x","x","x","x","x","x",null,"","","","","","","","",""]
["x",null,"x","x","x","x",null,"x","x","x","x","x","x","x","x","x","x","x","x","x","x","x","x","x",null,"","","","","","","","",""]
["x","x","x","x","x","x","x","x","x","x","x","x","x","x","x","x","x","x","x","x","x","x","x","x","x","","","","","","","","",""]
["x",null,"x","x","x","x","x","x","x","x","x","x","x","x","x","x","x","x","x","x","x","x","x","x",null,"","","","","","","","",""]
["x","x","x","x","x","x","x","x","x","x","x","x","x","x","x","x","x","x","x","x","x","x","x","x","x","","","","","","","","",""]
["x",null,"x","x","x","x","x","x","x","x","x","x","x","x","x","x","x","x","x","x","x","x","x","x",null,"","","","","","","","",""]
["x",null,"x","x","x","x","x","x","x","x","x","x","x","x","x","x","x","x","x","x","x","x","x","x",null,"","","","","","","","",""]

{"sheet":"meta_data","index":8,"n_rows":40,"n_cols":6,"rows_kept":40,"cut":false,"hidden":true,"merged":[]}
["Key","Beskrivelse","trigger_code","Indicates wether the algo shall loop through the matrix on releated column"]
[{"$f":"TRANSPOSE(sjekkliste_noter_matrix!A1:AM21)","v":"F0"},"Full",true]
["E0","Endring",false]
["F1","Har selskapet ansatte",true]
["F2","Ytelsespensjon",true,null,null,"ikke lengre i bruk"]
["F3","FOU",true]
["F4","langs. Tilvirkningskontrakter",true,null,null,"ikke lengre i bruk"]
["F5","Datter",true]
["F6","Konsernregnskap",true]
["F7","Restrukturering",true,null,null,"ikke lengre i bruk"]
["F8","Fusjon",true,null,null,"ikke lengre i bruk"]
["F9","Fisjon",true,null,null,"ikke lengre i bruk"]
["F8F9","Fusjon og Fisjon",false,null,null,"ikke lengre i bruk"]
["F10","Samvirkeforetak",true]
["F11","Goodwill",true]
["F12","Borettslag",true,null,null,"ikke lengre i bruk"]
["F13","Betalingsforetak",true,null,null,"ikke lengre i bruk"]
["F14","E-pengeforetak",true,null,null,"ikke lengre i bruk"]
["F15","Eiendomsmegler",true,null,null,"ikke lengre i bruk"]
["F16","Inkassovirksomhet",true,null,null,"ikke lengre i bruk"]
["F17","Ingen av delene",false,null,null,"ikke lengre i bruk"]
["F18","Datter",true]
["F19","TS",true]
["F20","FKV",true]
["F21","Andre aksjer",true,null,null,"ikke lengre i bruk"]
["E1","Policy",true]
["E2","Driftsmidler",false]
["E3","Datter",false]
["E4","TS",false]
["E5","NRS (F) krav",false]
["E6","Fordring mm",false]
["E7","Pensjon",false,null,null,"ikke lengre i bruk"]
["E8","Ytelser",false,null,null,"ikke lengre i bruk"]
["E9","Regnskaprinsipper",false]
["E10","Borettslag",false,null,null,"ikke lengre i bruk"]
["E11","Betalingsforetak",false,null,null,"ikke lengre i bruk"]
["E12","E-pengeforetak",false,null,null,"ikke lengre i bruk"]
["E13","Eiendomsmegler",false,null,null,"ikke lengre i bruk"]
["E14","Inkassovirksomhet",false,null,null,"ikke lengre i bruk"]
["E15","Ingen av delene",true,null,null,"ikke lengre i bruk"]

{"sheet":"sjekkliste_formelle_matrix","index":9,"n_rows":65,"n_cols":39,"rows_kept":65,"cut":false,"hidden":true,"merged":[]}
[{"$f":"sjekkliste_noter_matrix!A1","v":"F0"},{"$f":"sjekkliste_noter_matrix!B1","v":"E0"},{"$f":"sjekkliste_noter_matrix!C1","v":"F1"},{"$f":"sjekkliste_noter_matrix!D1","v":"F2"},{"$f":"sjekkliste_noter_matrix!E1","v":"F3"},{"$f":"sjekkliste_noter_matrix!F1","v":"F4"},{"$f":"sjekkliste_noter_matrix!G1","v":"F5"},{"$f":"sjekkliste_noter_matrix!H1","v":"F6"},{"$f":"sjekkliste_noter_matrix!I1","v":"F7"},{"$f":"sjekkliste_noter_matrix!J1","v":"F8"},{"$f":"sjekkliste_noter_matrix!K1","v":"F9"},{"$f":"sjekkliste_noter_matrix!L1","v":"F8F9"},{"$f":"sjekkliste_noter_matrix!M1","v":"F10"},{"$f":"sjekkliste_noter_matrix!N1","v":"F11"},{"$f":"sjekkliste_noter_matrix!O1","v":"F12"},{"$f":"sjekkliste_noter_matrix!P1","v":"F13"},{"$f":"sjekkliste_noter_matrix!Q1","v":"F14"},{"$f":"sjekkliste_noter_matrix!R1","v":"F15"},{"$f":"sjekkliste_noter_matrix!S1","v":"F16"},{"$f":"sjekkliste_noter_matrix!T1","v":"F17"},{"$f":"sjekkliste_noter_matrix!U1","v":"F18"},{"$f":"sjekkliste_noter_matrix!V1","v":"F19"},{"$f":"sjekkliste_noter_matrix!W1","v":"F20"},{"$f":"sjekkliste_noter_matrix!X1","v":"F21"},{"$f":"sjekkliste_noter_matrix!Y1","v":"E1"},{"$f":"sjekkliste_noter_matrix!Z1","v":"E2"},{"$f":"sjekkliste_noter_matrix!AA1","v":"E3"},{"$f":"sjekkliste_noter_matrix!AB1","v":"E4"},{"$f":"sjekkliste_noter_matrix!AC1","v":"E5"},{"$f":"sjekkliste_noter_matrix!AD1","v":"E6"},{"$f":"sjekkliste_noter_matrix!AE1","v":"E7"},{"$f":"sjekkliste_noter_matrix!AF1","v":"E8"},{"$f":"sjekkliste_noter_matrix!AG1","v":"E9"},{"$f":"sjekkliste_noter_matrix!AH1","v":"E10"},{"$f":"sjekkliste_noter_matrix!AI1","v":"E11"},{"$f":"sjekkliste_noter_matrix!AJ1","v":"E12"},{"$f":"sjekkliste_noter_matrix!AK1","v":"E13"},{"$f":"sjekkliste_noter_matrix!AL1","v":"E14"},{"$f":"sjekkliste_noter_matrix!AM1","v":"E15"}]
["x","x","x","x","x","x","x","x","x","x","x","x","x","x","x","x","x","x","x","x","x","x","x","x","x","x","x","x","x","x","x","x","x","x","x","x","x","x","x"]
["x","x","x","x","x","x","x","x","x","x","x","x","x","x","x","x","x","x","x","x","x","x","x","x","x","x","x","x","x","x","x","x","x","x","x","x","x","x","x"]
["x","x","x","x","x","x","x","x","x","x","x","x","x","x","x","x","x","x","x","x","x","x","x","x","x","x","x","x","x","x","x","x","x","x","x","x","x","x","x"]
["x","x","x","x","x","x","x","x","x","x","x","x","x","x","x","x","x","x","x","x","x","x","x","x","x","x","x","x","x","x","x","x","x","x","x","x","x","x","x"]
["x","x","x","x","x","x","x","x","x","x","x","x","x","x","x","x","x","x","x","x","x","x","x","x","x","x","x","x","x","x","x","x","x","x","x","x","x","x","x"]
["x","x","x","x","x","x","x","x","x","x","x","x","x","x","x","x","x","x","x","x","x","x","x","x","x","x","x","x","x","x","x","x","x","x","x","x","x","x","x"]
["x","x","x","x","x","x","x","x","x","x","x","x","x","x","x","x","x","x","x","x","x","x","x","x","x","x","x","x","x","x","x","x","x","x","x","x","x","x","x"]
["x",null,"x","x","x","x","x","x","x","x","x","x","x","x","x","x","x","x","x","x","x","x","x","x"]
["x",null,"x","x","x","x","x","x","x","x","x","x","x","x","x","x","x","x","x","x","x","x","x","x"]
["x",null,"x","x","x","x","x","x","x","x","x","x","x","x","x","x","x","x","x","x","x","x","x","x"]
["x",null,"x","x","x","x","x","x","x","x","x","x","x","x","x","x","x","x","x","x","x","x","x","x"]
["x",null,"x","x","x","x","x","x","x","x","x","x","x","x","x","x","x","x","x","x","x","x","x","x"]
["x",null,"x","x","x","x","x","x","x","x","x","x","x","x","x","x","x","x","x","x","x","x","x","x"]
["x","x","x","x","x","x","x","x","x","x","x","x","x","x","x","x","x","x","x","x","x","x","x","x","x"]
["x",null,"x","x","x","x","x","x","x","x","x","x","x","x","x","x","x","x","x","x","x","x","x","x"]
["x",null,"x","x","x","x","x","x","x","x","x","x","x","x","x","x","x","x","x","x","x","x","x","x"]
["x",null,"x","x","x","x","x","x","x","x","x","x","x","x","x","x","x","x","x","x","x","x","x","x"]
["x","x","x","x","x","x","x","x","x","x","x","x","x","x","x","x","x","x","x","x","x","x","x","x","x"]
["x",null,"x","x","x","x","x","x","x","x","x","x","x","x","x","x","x","x","x","x","x","x","x","x"]
["x",null,"x","x","x","x","x","x","x","x","x","x","x","x","x","x","x","x","x","x","x","x","x","x"]
["x",null,"x","x","x","x","x","x","x","x","x","x","x","x","x","x","x","x","x","x","x","x","x","x"]
["x","x","x","x","x","x","x","x","x","x","x","x","x","x","x","x","x","x","x","x","x","x","x","x","x"]
["x",null,"x","x","x","x","x","x","x","x","x","x","x","x","x","x","x","x","x","x","x","x","x","x"]
["x",null,"x","x","x","x","x","x","x","x","x","x","x","x","x","x","x","x","x","x","x","x","x","x"]
["x",null,"x","x","x","x","x","x","x","x","x","x","x","x","x","x","x","x","x","x","x","x","x","x"]
["x",null,"x","x","x","x","x","x","x","x","x","x","x","x","x","x","x","x","x","x","x","x","x","x"]
["x",null,"x","x","x","x","x","x","x","x","x","x","x","x","x","x","x","x","x","x","x","x","x","x"]
["x",null,"x","x","x","x","x","x","x","x","x","x","x","x","x","x","x","x","x","x","x","x","x","x"]
["x","x","x","x","x","x","x","x","x","x","x","x","x","x","x","x","x","x","x","x","x","x","x","x","x"]
["x",null,"x","x","x","x","x","x","x","x","x","x","x","x","x","x","x","x","x","x","x","x","x","x"]
["x",null,"x","x","x","x","x","x","x","x","x","x","x","x","x","x","x","x","x","x","x","x","x","x"]
["x",null,"x","x","x","x","x","x","x","x","x","x","x","x","x","x","x","x","x","x","x","x","x","x"]
["x","x","x","x","x","x","x","x","x","x","x","x","x","x","x","x","x","x","x","x","x","x","x","x","x"]
["x",null,"x","x","x","x","x","x","x","x","x","x","x","x","x","x","x","x","x","x","x","x","x","x"]
["x",null,"x","x","x","x","x","x","x","x","x","x","x","x","x","x","x","x","x","x","x","x","x","x"]
["x",null,"x","x","x","x","x","x","x","x","x","x","x","x","x","x","x","x","x","x","x","x","x","x",null,null,null,null,"x"]
["x",null,"x","x","x","x","x","x","x","x","x","x","x","x","x","x","x","x","x","x","x","x","x","x"]
["x",null,"x","x","x","x","x","x","x","x","x","x","x","x","x","x","x","x","x","x","x","x","x","x"]
["x",null,"x","x","x","x","x","x","x","x","x","x","x","x","x","x","x","x","x","x","x","x","x","x"]
["x",null,"x","x","x","x","x","x","x","x","x","x","x","x","x","x","x","x","x","x","x","x","x","x"]
["x",null,"x","x","x","x","x","x","x","x","x","x","x","x","x","x","x","x","x","x","x","x","x","x"]
["x",null,"x","x","x","x","x","x","x","x","x","x","x","x","x","x","x","x","x","x","x","x","x","x"]
["x",null,"x","x","x","x","x","x","x","x","x","x","x","x","x","x","x","x","x","x","x","x","x","x"]
["x","x","x","x","x","x","x","x","x","x","x","x","x","x","x","x","x","x","x","x","x","x","x","x","x"]
["x",null,"x","x","x","x","x","x","x","x","x","x","x","x","x","x","x","x","x","x","x","x","x","x"]
["x",null,"x","x","x","x","x","x","x","x","x","x","x","x","x","x","x","x","x","x","x","x","x","x"]
["x",null,"x","x","x","x","x","x","x","x","x","x","x","x","x","x","x","x","x","x","x","x","x","x"]
["x",null,"x","x","x","x","x","x","x","x","x","x","x","x","x","x","x","x","x","x","x","x","x","x"]
["x",null,"x","x","x","x","x","x","x","x","x","x","x","x","x","x","x","x","x","x","x","x","x","x"]
["x","x","x","x","x","x","x","x","x","x","x","x","x","x","x","x","x","x","x","x","x","x","x","x","x"]
["x",null,"x","x","x","x","x","x","x","x","x","x","x","x","x","x","x","x","x","x","x","x","x","x"]
["x",null,"x","x","x","x","x","x","x","x","x","x","x","x","x","x","x","x","x","x","x","x","x","x",null,null,null,null,"x"]
["x",null,"x","x","x","x","x","x","x","x","x","x","x","x","x","x","x","x","x","x","x","x","x","x"]
["x",null,"x","x","x","x","x","x","x","x","x","x","x","x","x","x","x","x","x","x","x","x","x","x"]
["x",null,"x","x","x","x","x","x","x","x","x","x","x","x","x","x","x","x","x","x","x","x","x","x"]
["x",null,"x","x","x","x","x","x","x","x","x","x","x","x","x","x","x","x","x","x","x","x","x","x"]
["x","x","x","x","x","x","x","x","x","x","x","x","x","x","x","x","x","x","x","x","x","x","x","x","x"]
["x",null,"x","x","x","x","x",null,"x","x","x","x","x","x","x","x","x","x","x","x","x","x","x","x"]
["x",null,"x","x","x","x","x",null,"x","x","x","x","x","x","x","x","x","x","x","x","x","x","x","x"]
["x",null,"x","x","x","x","x",null,"x","x","x","x","x","x","x","x","x","x","x","x","x","x","x","x"]
["x",null,"x","x","x","x","x",null,"x","x","x","x","x","x","x","x","x","x","x","x","x","x","x","x"]
["x",null,"x","x","x","x","x",null,"x","x","x","x","x","x","x","x","x","x","x","x","x","x","x","x"]
["x",null,"x","x","x","x","x",null,"x","x","x","x","x","x","x","x","x","x","x","x","x","x","x","x"]
["x",null,"x","x","x","x","x",null,"x","x","x","x","x","x","x","x","x","x","x","x","x","x","x","x"]

{"sheet":"Sjekkliste formelle forhold","index":10,"n_rows":65,"n_cols":17,"rows_kept":65,"cut":false,"hidden":false,"merged":[[48,13,49,13],[3,0,4,10],[19,1,20,1],[48,1,49,1],[48,9,49,9],[48,10,49,10],[48,12,49,12]]}
["Formelle forhold i årsregnskapet - små foretak - Ideelle organisasjoner",null,null,"Utfylt:"]
["Klient:",{"$f":"+Forside!B2","v":0},null,"Review:",null,null,null,null,null,null,null,null,null,null,null,"Ikke besvart:",{"$f":"Forside!B10","v":33}]
["År:",{"$f":"+Forside!B3","v":2023},null,null,null,null,null,null,null,null,null,null,null,null,null,"Ja-svar:",{"$f":"Forside!C10","v":0}]
["Sjekklisten gjelder for ideelle organisasjoner som følger NRS (F) God regnskapsskikk for ideelle organisasjoner. ",null,null,null,null,null,null,null,null,null,null,null,null,null,null,"Nei-svar:",{"$f":"Forside!D10","v":0}]
[null,null,null,null,null,null,null,null,null,null,null,null,null,null,null,"Ikke av betydning:",{"$f":"+Forside!E10","v":0}]
[null,null,null,null,null,null,null,null,null,null,null,"Ikke av",null,null,null,"IA-svar:",{"$f":"Forside!F10","v":0}]
[null,"Spørsmål",null,"Ref. ",null,null,null,null,null,"Ja","Nei","betydning","I/A","Kommentar",null,"Sum:",{"$f":"SUM(Q2:Q6)","v":33}]
["Generelt"]
[null,"Inneholder årsregnskapet:",null,"rskl § 3-2"]
[1,"• resultatregnskap/aktivitetsregnskap",null,null,{"$f":"IF(SUM(F10:I10)>1,\"Oppgi kun et alternativ!\",\"\")","v":""},{"$f":"IF(J10=\"\",\"\",1)","v":""},{"$f":"IF(K10=\"\",\"\",1)","v":""},"","",null,null,null,null,null,null,{"$f":"IF(K10<>\"\",\"Du har satt X for at forholdet ikke er avklart. Gi en nærmere foklaring i kommentarfeltet.\",\"\")","v":""}]
[{"$f":"1+A10","v":2},"• balanse",null,null,{"$f":"IF(SUM(F11:I11)>1,\"Oppgi kun et alternativ!\",\"\")","v":""},{"$f":"IF(J11=\"\",\"\",1)","v":""},{"$f":"IF(K11=\"\",\"\",1)","v":""},{"$f":"IF(L11=\"\",\"\",1)","v":""},{"$f":"IF(M11=\"\",\"\",1)","v":""},null,null,null,null,null,null,{"$f":"IF(K11<>\"\",\"Du har satt X for at forholdet ikke er avklart. Gi en nærmere foklaring i kommentarfeltet.\",\"\")","v":""}]
[{"$f":"1+A11","v":3},"• noter",null,null,"","","","","",null,null,null,null,null,null,{"$f":"IF(K12<>\"\",\"Du har satt X for at forholdet ikke er avklart. Gi en nærmere foklaring i kommentarfeltet.\",\"\")","v":""}]
[{"$f":"1+A12","v":4},"• eventuelt en egen oppstilling over endringer i egenkapitalen",null,null,"","","","","",null,null,null,null,null,null,{"$f":"IF(K13<>\"\",\"Du har satt X for at forholdet ikke er avklart. Gi en nærmere foklaring i kommentarfeltet.\",\"\")","v":""}]
[{"$f":"1+A13","v":5},"Er det gitt referanser til noteopplysninger fra resultatregnskap og balanse?",null,null,"","","","","",null,null,null,null,null,null,{"$f":"IF(K14<>\"\",\"Du har satt X for at forholdet ikke er avklart. Gi en nærmere foklaring i kommentarfeltet.\",\"\")","v":""}]
["Valuta og språk"]
[{"$f":"+A14+1","v":6},"Er regnskapsvalutaen norske kroner, alternativt den funksjonelle valutaen?",null,"rskl § 3-4",{"$f":"IF(SUM(F16:I16)>1,\"Oppgi kun et alternativ!\",\"\")","v":""},{"$f":"IF(J16=\"\",\"\",1)","v":""},{"$f":"IF(K16=\"\",\"\",1)","v":""},{"$f":"IF(L16=\"\",\"\",1)","v":""},{"$f":"IF(M16=\"\",\"\",1)","v":""},null,null,null,null,null,null,{"$f":"IF(K16<>\"\",\"Du har satt X for at forholdet ikke er avklart. Gi en nærmere foklaring i kommentarfeltet.\",\"\")","v":""}]
[{"$f":"+A16+1","v":7},"Er årsregnskapet presentert i norske kroner, euro, eller den funksjonelle valutaen?",null,null,{"$f":"IF(SUM(F17:I17)>1,\"Oppgi kun et alternativ!\",\"\")","v":""},{"$f":"IF(J17=\"\",\"\",1)","v":""},"","","",null,null,null,null,null,null,{"$f":"IF(K17<>\"\",\"Du har satt X for at forholdet ikke er avklart. Gi en nærmere foklaring i kommentarfeltet.\",\"\")","v":""}]
[{"$f":"+A17+1","v":8},"Er årsregnskapet og årsberetningen på norsk?",null,null,{"$f":"IF(SUM(F18:I18)>1,\"Oppgi kun et alternativ!\",\"\")","v":""},{"$f":"IF(J18=\"\",\"\",1)","v":""},"","","",null,null,null,null,null,null,{"$f":"IF(K18<>\"\",\"Du har satt X for at forholdet ikke er avklart. Gi en nærmere foklaring i kommentarfeltet.\",\"\")","v":""}]
["Sammenligning med foregående årsregnskap"]
[null,"Etter hovedregelen i rskl skal tallene omarbeides for å bli sammenlignbare, med mindre annet følger av god regnskapsskikk. Små foretak kan unnlate å omarbeide sammenligningstallene. ",null,"rskl § 6-6 "]
[null,null,null,"NRS 8 pkt 3.3.1"]
[{"$f":"+A18+1","v":9},"Er det vist tilsvarende tall fra foregående årsregnskap, og er de omarbeidet i nødvendig grad? ",null,"rskl § 6-6",{"$f":"IF(SUM(F22:I22)>1,\"Oppgi kun et alternativ!\",\"\")","v":""},{"$f":"IF(J22=\"\",\"\",1)","v":""},{"$f":"IF(K22=\"\",\"\",1)","v":""},{"$f":"IF(L22=\"\",\"\",1)","v":""},{"$f":"IF(M22=\"\",\"\",1)","v":""},null,null,null,null,null,null,{"$f":"IF(K22<>\"\",\"Du har satt X for at forholdet ikke er avklart. Gi en nærmere foklaring i kommentarfeltet.\",\"\")","v":""}]
["Oppdeling eller sammenslåing av poster"]
[null,"Når den regnskapspliktiges forhold tilsier det, skal det i resultatregnskap og balanse foretas en ytterligere oppdeling av poster og tilføyelser av poster og delsummer som ikke inngår i oppstillingsplanene.",null,"rskl § 6-3"]
[null,"Dette kan for eksempel gjelde lån fra aksjonær."]
[{"$f":"+A22+1","v":10},"Er det foretatt en ytterligere oppdeling av resultatregnskap og balanse eller tilføyelse av poster eller delsummer der foretakets forhold tilsier det?",null,"rskl § 6-3",{"$f":"IF(SUM(F26:I26)>1,\"Oppgi kun et alternativ!\",\"\")","v":""},{"$f":"IF(J26=\"\",\"\",1)","v":""},{"$f":"IF(K26=\"\",\"\",1)","v":""},{"$f":"IF(L26=\"\",\"\",1)","v":""},{"$f":"IF(M26=\"\",\"\",1)","v":""},null,null,null,null,null,null,{"$f":"IF(K26<>\"\",\"Du har satt X for at forholdet ikke er avklart. Gi en nærmere foklaring i kommentarfeltet.\",\"\")","v":""}]
[null,"Poster skal slås sammen hvis sammenslåingen fører til et mer oversiktlig årsregnskap, med følgende unntak:\n• Bare linjer innenfor hvert romertall kan slås sammen, og linjer kan ikke slås sammen på tvers av romertall\n• Egenkapitalposter kan ikke slås sammen",null,"rskl § 6-3"]
[{"$f":"+A26+1","v":11},"Er poster slått sammen i resultatregnskap og balanse hvis sammenslåingen fører til et mer oversiktlig årsregnskap?",null,"rskl § 6-3",{"$f":"IF(SUM(F28:I28)>1,\"Oppgi kun et alternativ!\",\"\")","v":""},{"$f":"IF(J28=\"\",\"\",1)","v":""},{"$f":"IF(K28=\"\",\"\",1)","v":""},{"$f":"IF(L28=\"\",\"\",1)","v":""},{"$f":"IF(M28=\"\",\"\",1)","v":""},null,null,null,null,null,null,{"$f":"IF(K28<>\"\",\"Du har satt X for at forholdet ikke er avklart. Gi en nærmere foklaring i kommentarfeltet.\",\"\")","v":""}]
[{"$f":"+A28+1","v":12},"Er poster i oppstillingsplanen for resultatregnskapet som er slått sammen spesifisert i note?",null,"rskl § 7-38",{"$f":"IF(SUM(F29:I29)>1,\"Oppgi kun et alternativ!\",\"\")","v":""},{"$f":"IF(J29=\"\",\"\",1)","v":""},"","","",null,null,null,null,null,null,{"$f":"IF(K29<>\"\",\"Du har satt X for at forholdet ikke er avklart. Gi en nærmere foklaring i kommentarfeltet.\",\"\")","v":""}]
["Underskrift"]
[{"$f":"+A29+1","v":13},"Er årsregnskapet underskrevet av samtlige styremedlemmer og eventuelt av daglig leder, alternativt av deltakerne eller medlemmene hvis foretaket ikke har styre eller daglig leder?",null,"rskl § 3-5",{"$f":"IF(SUM(F31:I31)>1,\"Oppgi kun et alternativ!\",\"\")","v":""},{"$f":"IF(J31=\"\",\"\",1)","v":""},{"$f":"IF(K31=\"\",\"\",1)","v":""},{"$f":"IF(L31=\"\",\"\",1)","v":""},{"$f":"IF(M31=\"\",\"\",1)","v":""},null,null,null,null,null,null,{"$f":"IF(K31<>\"\",\"Du har satt X for at forholdet ikke er avklart. Gi en nærmere foklaring i kommentarfeltet.\",\"\")","v":""}]
[{"$f":"+A31+1","v":14},"Dersom den som skal underskrive har innvendinger mot årsregnskapet, har vedkommende underskrevet med påtegnet forbehold og gitt nærmere redegjørelse i årsberetningen?",null,"rskl § 3-5",{"$f":"IF(SUM(F32:I32)>1,\"Oppgi kun et alternativ!\",\"\")","v":""},{"$f":"IF(J32=\"\",\"\",1)","v":""},"","","",null,null,null,null,null,null,{"$f":"IF(K32<>\"\",\"Du har satt X for at forholdet ikke er avklart. Gi en nærmere foklaring i kommentarfeltet.\",\"\")","v":""}]
[{"$f":"+A32+1","v":15},"Er årsregnskapet avlagt innenfor lovens frist?",null,"rskl § 3-1",{"$f":"IF(SUM(F33:I33)>1,\"Oppgi kun et alternativ!\",\"\")","v":""},{"$f":"IF(J33=\"\",\"\",1)","v":""},"","","",null,null,null,null,null,null,{"$f":"IF(K33<>\"\",\"Du har satt X for at forholdet ikke er avklart. Gi en nærmere foklaring i kommentarfeltet.\",\"\")","v":""}]
["Resultatregnskapet"]
[{"$f":"+A33+1","v":16},"Er resultatregnskapet satt opp i henhold til Regnskapslovens oppstillingsplan?",null,"rskl § 6-1",{"$f":"IF(SUM(F35:I35)>1,\"Oppgi kun et alternativ!\",\"\")","v":""},{"$f":"IF(J35=\"\",\"\",1)","v":""},{"$f":"IF(K35=\"\",\"\",1)","v":""},{"$f":"IF(L35=\"\",\"\",1)","v":""},{"$f":"IF(M35=\"\",\"\",1)","v":""},null,null,null,null,null,null,{"$f":"IF(K35<>\"\",\"Du har satt X for at forholdet ikke er avklart. Gi en nærmere foklaring i kommentarfeltet.\",\"\")","v":""}]
[{"$f":"+A35+1","v":17},"Hvis driftskostnadene er inndelt etter funksjon, er da artsinndeling vist i note?",null,"rskl § 7-38",{"$f":"IF(SUM(F36:I36)>1,\"Oppgi kun et alternativ!\",\"\")","v":""},{"$f":"IF(J36=\"\",\"\",1)","v":""},"","","",null,null,null,null,null,null,{"$f":"IF(K36<>\"\",\"Du har satt X for at forholdet ikke er avklart. Gi en nærmere foklaring i kommentarfeltet.\",\"\")","v":""}]
[{"$f":"+A36+1","v":18},"Dersom det er valgt å benytte en aktivitetsbasert oppstillingsplan iht unntaket i regnskapslovens 6-3 tredje ledd, er dette inndelt iht NRS (F) God regnskapsskikk for ideelle organisasjoner? Er ytterligere inndeling gjort der dette er nødvendig for å gi et rettvisende bilde av organisasjonens aktiviteter?",null,"NRS (F) GRS for ideelle organisasjoner pkt 4.3",{"$f":"IF(SUM(F37:I37)>1,\"Oppgi kun et alternativ!\",\"\")","v":""},{"$f":"IF(J37=\"\",\"\",1)","v":""},"","","",null,null,null,null,null,null,{"$f":"IF(K37<>\"\",\"Du har satt X for at forholdet ikke er avklart. Gi en nærmere foklaring i kommentarfeltet.\",\"\")","v":""}]
[null,"Ihht NRS 8 er det ikke tillatt å klassifisere resultatposter som ekstraordinære, bortsett fra prinsippendringer og korrigering av feil som omtales nedenfor. Det kan imidlertid foreligge særlige poster som krever spesifikasjon på egen linje, for eksempel en uvanlig stor nedskrivning av varelager eller restruktureringskostnader. ",null,"NRS 8 pkt 7.3 "]
[{"$f":"+A37+1","v":19},"Er det påsett at regnskapet ikke inneholder ekstraordinære poster utover virkning av prinsippendring og korrigering av feil?",null,"NRS 8 pkt 7.3 ",{"$f":"IF(SUM(F39:I39)>1,\"Oppgi kun et alternativ!\",\"\")","v":""},{"$f":"IF(J39=\"\",\"\",1)","v":""},{"$f":"IF(K39=\"\",\"\",1)","v":""},{"$f":"IF(L39=\"\",\"\",1)","v":""},{"$f":"IF(M39=\"\",\"\",1)","v":""}]
[{"$f":"+A39+1","v":20},"Dersom det foreligger særlige poster, er disse spesifisert og benevnt etter inntektens eller kostnadens innhold?",null,"NRS 8 pkt 7.3 ",{"$f":"IF(SUM(F40:I40)>1,\"Oppgi kun et alternativ!\",\"\")","v":""},{"$f":"IF(J40=\"\",\"\",1)","v":""},"","",""]
[null,"Små foretak kan velge om prinsippendringer og korrigeringer av tidligere års feil skal føres etter hovedregelen, dvs direkte over egenkapitalen, eller resultatføres. Dersom dette resultatføres skal det presenteres på egne linjer etter ordinært resultat, og spesifiseres etter sin art som hhv \"korrigering av feil\" eller \"virkning av prinsippendring\"."]
[{"$f":"+A40+1","v":21},"Dersom prinsippendring eller korrigering av feil er resultatført, er de presentert etter ordinært resultat, og spesifisert som \"virkning av prinsippendring\" eller \"korrigering av feil\"?",null,"NRS 8 pkt 7.3.2",{"$f":"IF(SUM(F42:I42)>1,\"Oppgi kun et alternativ!\",\"\")","v":""},{"$f":"IF(J42=\"\",\"\",1)","v":""},{"$f":"IF(K42=\"\",\"\",1)","v":""},{"$f":"IF(L42=\"\",\"\",1)","v":""},{"$f":"IF(M42=\"\",\"\",1)","v":""},null,null,null,null,null,null,{"$f":"IF(K42<>\"\",\"Du har satt X for at forholdet ikke er avklart. Gi en nærmere foklaring i kommentarfeltet.\",\"\")","v":""}]
[null,"Skatteeffekten av prinsippendringer eller korrigering av feil som resultatføres skal etter NRS 8 presenteres på en av følgende måter: \n• Presentert separat, benevnt som \"skattekostnad på virkning av prinsippendring / korrigering av feil\"\n• Skattekostnaden kan presenteres samlet på skattekostnadslinjen før ordinært resultat\n• Skattekostnaden kan presenteres samlet etter postene \"virkning av prinsippendring\" / \"korrigering av feil\""]
[{"$f":"+A42+1","v":22},"Er skatteeffekten av prinsippendringer eller korrigering av feil korrekt presentert?",null,"NRS 8 pkt 7.3.2",{"$f":"IF(SUM(F44:I44)>1,\"Oppgi kun et alternativ!\",\"\")","v":""},{"$f":"IF(J44=\"\",\"\",1)","v":""},{"$f":"IF(K44=\"\",\"\",1)","v":""},{"$f":"IF(L44=\"\",\"\",1)","v":""},{"$f":"IF(M44=\"\",\"\",1)","v":""}]
["Resultatdisponering",null,null,null,null,null,null,null,null,null,null,null,null,{"$f":"IF(K45<>\"\",\"Du har satt X for at forholdet ikke er avklart. Gi en nærmere foklaring i kommentarfeltet.\",\"\")","v":""}]
[null,"Små foretak kan velge om forslag til anvendelse av overskudd eller dekning av tap skal stå i tilknytning til resultatregnskapet, i eventuell oppstilling over endringer i egenkapitalen, i noter eller årsberetningen. NRS 8 anbefaler at opplysningen gis i tilknytning til resultatregnskapet, eventuelt i årsberetningen.",null,"NRS 8 pkt 3.1",null,null,null,null,null,null,null,null,null,null,null,{"$f":"IF(K46<>\"\",\"Du har satt X for at forholdet ikke er avklart. Gi en nærmere foklaring i kommentarfeltet.\",\"\")","v":""}]
[{"$f":"+A44+1","v":23},"Er det opplyst om forslag til anvendelse av overskudd eller dekning av tap i samsvar med bestemmelsene i regnskapsstandarden?",null,"NRS 8 pkt 3.1",{"$f":"IF(SUM(F47:I47)>1,\"Oppgi kun et alternativ!\",\"\")","v":""},{"$f":"IF(J47=\"\",\"\",1)","v":""},{"$f":"IF(K47=\"\",\"\",1)","v":""},{"$f":"IF(L47=\"\",\"\",1)","v":""},{"$f":"IF(M47=\"\",\"\",1)","v":""},null,null,null,null,null,null,{"$f":"IF(K47<>\"\",\"Du har satt X for at forholdet ikke er avklart. Gi en nærmere foklaring i kommentarfeltet.\",\"\")","v":""}]
[{"$f":"+A47+1","v":24},"Hvis det er delt ut tilleggsutbytte eller ekstraordinært utbytte som er regnskapsført i uttaksåret, er det da gitt opplysning om dette utbyttet sammen med disponeringen av årets resultat?",null,"NRS 8 pkt 5.3.1",{"$f":"IF(SUM(F48:I48)>1,\"Oppgi kun et alternativ!\",\"\")","v":""},{"$f":"IF(J48=\"\",\"\",1)","v":""},"","","",null,null,null,null,null,null,{"$f":"IF(K48<>\"\",\"Du har satt X for at forholdet ikke er avklart. Gi en nærmere foklaring i kommentarfeltet.\",\"\")","v":""}]
[{"$f":"+A48+1","v":25},"Er det gitt opplysning i årsregnskap eller årsberetning om konsernbidrag fra morselskap til datterselskap som er ført som investering i morselskapets regnskap?",null,"asl. § 8-5 og ",{"$f":"IF(SUM(F49:I49)>1,\"Oppgi kun et alternativ!\",\"\")","v":""},{"$f":"IF(J49=\"\",\"\",1)","v":""},"","","",null,null,null,null,null,null,{"$f":"IF(K49<>\"\",\"Du har satt X for at forholdet ikke er avklart. Gi en nærmere foklaring i kommentarfeltet.\",\"\")","v":""}]
[null,null,null,"§ 8-2"]
["Balansen",null,null," "]
[{"$f":"+A49+1","v":26},"Er balansen spesifisert i henhold til regnskapslovens oppstillingsplan, evt.etter likviditet, dersom dette gir mer relevante og pålitelige opplysninger?",null,"rskl § 6-2",{"$f":"IF(SUM(F52:I52)>1,\"Oppgi kun et alternativ!\",\"\")","v":""},{"$f":"IF(J52=\"\",\"\",1)","v":""},{"$f":"IF(K52=\"\",\"\",1)","v":""},{"$f":"IF(L52=\"\",\"\",1)","v":""},{"$f":"IF(M52=\"\",\"\",1)","v":""},null,null,null,null,null,null,{"$f":"IF(K52<>\"\",\"Du har satt X for at forholdet ikke er avklart. Gi en nærmere foklaring i kommentarfeltet.\",\"\")","v":""}]
[{"$f":"+A52+1","v":27},"Er oppstillingsplanen for balansen justert iht NRS (F) God regnskapsskikk for ideelle organisasjoner når dette er relevant mht bevaringsverdige eiendeler, formålskapital og tilskudd? ",null,"NRS (F) GRS for ideelle organisasjoner pkt 4.4",{"$f":"IF(SUM(F53:I53)>1,\"Oppgi kun et alternativ!\",\"\")","v":""},{"$f":"IF(J53=\"\",\"\",1)","v":""},"","","",null,null,null,null,null,null,{"$f":"IF(K53<>\"\",\"Du har satt X for at forholdet ikke er avklart. Gi en nærmere foklaring i kommentarfeltet.\",\"\")","v":""}]
[{"$f":"+A53+1","v":28},"Er eiendeler bestemt til varig eie eller bruk, og fordringer som ikke skal tilbakebetales innen ett år, klassifisert som anleggsmidler, og øvrige eiendeler klassifisert som omløpsmidler?",null,null,{"$f":"IF(SUM(F54:I54)>1,\"Oppgi kun et alternativ!\",\"\")","v":""},{"$f":"IF(J54=\"\",\"\",1)","v":""},"","","",null,null,null,null,null,null,{"$f":"IF(K54<>\"\",\"Du har satt X for at forholdet ikke er avklart. Gi en nærmere foklaring i kommentarfeltet.\",\"\")","v":""}]
[null,"Beholding av egne aksjer: Pålydende på egne aksjer skal enten føres på en egen linje under aksjekapital, eller trekkes ut av linjen for aksjekapital. Dersom man velger å trekke det ut av linjen for aksjekapital skal dette spesifiseres i note. Evt. overskytende beløp skal føres mot annen egenkapital. Dersom kjøpesummen er lavere enn pålydende skal differansen føres på linjen for annen innskutt egenkapital."]
[{"$f":"+A54+1","v":29},"Er eventuell beholdning av egne aksjer ført opp i samsvar med regnskapslovens krav?",null,"rskl § 6-2, 2. ledd.",{"$f":"IF(SUM(F56:I56)>1,\"Oppgi kun et alternativ!\",\"\")","v":""},{"$f":"IF(J56=\"\",\"\",1)","v":""},{"$f":"IF(K56=\"\",\"\",1)","v":""},{"$f":"IF(L56=\"\",\"\",1)","v":""},{"$f":"IF(M56=\"\",\"\",1)","v":""},null,null,null,null,null,null,{"$f":"IF(K56<>\"\",\"Du har satt X for at forholdet ikke er avklart. Gi en nærmere foklaring i kommentarfeltet.\",\"\")","v":""}]
[{"$f":"+A56+1","v":30},"Inngår tilleggsutbytte eller ekstraordinært utbytte som er besluttet før balansedagen, og som står ubetalt på balansedagen, i kortsiktig gjeld?",null,"NRS 8 pkt 6.2.1.7.1",{"$f":"IF(SUM(F57:I57)>1,\"Oppgi kun et alternativ!\",\"\")","v":""},{"$f":"IF(J57=\"\",\"\",1)","v":""},"","","",null,null,null,null,null,null,{"$f":"IF(K57<>\"\",\"Du har satt X for at forholdet ikke er avklart. Gi en nærmere foklaring i kommentarfeltet.\",\"\")","v":""}]
["Konsernregnskap"]
[null,"Små foretak har ikke plikt til å utarbeide konsernregnskap. Dersom et av selskapene i konsernet har aksjer, grunnfondsbevis eller obligasjoner notert på børs eller lignende, har selskapet allikevel plikt til å utarbeide konsernregnskap.",null,"rskl § 3-2, 4. ledd"]
[null,"Hvis små foretak frivillig utarbeider konsernregnskap, kan de forenklede reglene for små foretak brukes også i konsernregnskapet. Konsernregnskapet må utarbeides etter ensartede regnskapsprinsipper og vurderingsregler. ",null,"NRS 8 pkt 2.1.1."]
[null,"Morselskapet bør bruke konsernets regnskapsprinsipper og vurderingsregler i selskapsregnskapet.",null,"NRS 8 pkt 2.1.1."]
[null,"Dersom små foretak utarbeider konsernregnskap, skal alle formelle forhold knyttet til konsernregnskap følges:"]
[{"$f":"+A57+1","v":31},"Er eventuelle minoritetsinteresser ført opp under egenkapital i balansen og som fradrag i årsresultatet i resultatregnskapet; slik at regnskapet viser årsresultat før og etter minoritetsinteresser?",null,"rskl § 6-5",{"$f":"IF(SUM(F63:I63)>1,\"Oppgi kun et alternativ!\",\"\")","v":""},{"$f":"IF(J63=\"\",\"\",1)","v":""},{"$f":"IF(K63=\"\",\"\",1)","v":""},{"$f":"IF(L63=\"\",\"\",1)","v":""},{"$f":"IF(M63=\"\",\"\",1)","v":""},null,null,null,null,null,null,{"$f":"IF(K63<>\"\",\"Du har satt X for at forholdet ikke er avklart. Gi en nærmere foklaring i kommentarfeltet.\",\"\")","v":""}]
[{"$f":"+A63+1","v":32},"Bygger konsernregnskapet på de konsoliderte selskapenes selskapsregnskap? Dersom datterselskap ikke benytter samme prinsipper som konsernet, er disse regnskapene da omarbeidet for konsolideringsformål?",null,"rskl § 3-6",{"$f":"IF(SUM(F64:I64)>1,\"Oppgi kun et alternativ!\",\"\")","v":""},{"$f":"IF(J64=\"\",\"\",1)","v":""},"","","",null,null,null,null,null,null,{"$f":"IF(K64<>\"\",\"Du har satt X for at forholdet ikke er avklart. Gi en nærmere foklaring i kommentarfeltet.\",\"\")","v":""}]
[{"$f":"+A64+1","v":33},"Dersom utenlandske datterselskap har et annet regnskapsår enn morselskapet, bygger da konsernregnskapet på et delårsregnskap som er avgitt ved regnskapsårets slutt (eventuelt max 3 mnd +/- med tillegg for vesentlige transaksjoner)?",null,null,{"$f":"IF(SUM(F65:I65)>1,\"Oppgi kun et alternativ!\",\"\")","v":""},{"$f":"IF(J65=\"\",\"\",1)","v":""},"","","",null,null,null,null,null,null,{"$f":"IF(K65<>\"\",\"Du har satt X for at forholdet ikke er avklart. Gi en nærmere foklaring i kommentarfeltet.\",\"\")","v":""}]

{"sheet":"F_Ubesv.","index":11,"n_rows":34,"n_cols":4,"rows_kept":34,"cut":false,"hidden":true,"merged":[]}
["Ikke besvart","Spørsmål",{"$f":"+Forside!B3","v":2023},"Kommentar"]
[1,"• resultatregnskap/aktivitetsregnskap"]
[2,"• balanse"]
[3,"• noter"]
[4,"• eventuelt en egen oppstilling over endringer i egenkapitalen"]
[5,"Er det gitt referanser til noteopplysninger fra resultatregnskap og balanse?"]
[6,"Er regnskapsvalutaen norske kroner, alternativt den funksjonelle valutaen?"]
[7,"Er årsregnskapet presentert i norske kroner, euro, eller den funksjonelle valutaen?"]
[8,"Er årsregnskapet og årsberetningen på norsk?"]
[9,"Er det vist tilsvarende tall fra foregående årsregnskap, og er de omarbeidet i nødvendig grad? "]
[10,"Er det foretatt en ytterligere oppdeling av resultatregnskap og balanse eller tilføyelse av poster eller delsummer der foretakets forhold tilsier det?"]
[11,"Er poster slått sammen i resultatregnskap og balanse hvis sammenslåingen fører til et mer oversiktlig årsregnskap?"]
[12,"Er poster i oppstillingsplanen for resultatregnskapet som er slått sammen spesifisert i note?"]
[13,"Er årsregnskapet underskrevet av samtlige styremedlemmer og eventuelt av daglig leder, alternativt av deltakerne eller medlemmene hvis foretaket ikke har styre eller daglig leder?"]
[14,"Dersom den som skal underskrive har innvendinger mot årsregnskapet, har vedkommende underskrevet med påtegnet forbehold og gitt nærmere redegjørelse i årsberetningen?"]
[15,"Er årsregnskapet avlagt innenfor lovens frist?"]
[16,"Er resultatregnskapet satt opp i henhold til Regnskapslovens oppstillingsplan?"]
[17,"Hvis driftskostnadene er inndelt etter funksjon, er da artsinndeling vist i note?"]
[18,"Dersom det er valgt å benytte en aktivitetsbasert oppstillingsplan iht unntaket i regnskapslovens 6-3 tredje ledd, er dette inndelt iht NRS (F) God regnskapsskikk for ideelle organisasjoner? Er ytterligere inndeling gjort der dette er nødvendig for å gi et rettvisende bilde av organisasjonens aktiviteter?"]
[19,"Er det påsett at regnskapet ikke inneholder ekstraordinære poster utover virkning av prinsippendring og korrigering av feil?"]
[20,"Dersom det foreligger særlige poster, er disse spesifisert og benevnt etter inntektens eller kostnadens innhold?"]
[21,"Dersom prinsippendring eller korrigering av feil er resultatført, er de presentert etter ordinært resultat, og spesifisert som \"virkning av prinsippendring\" eller \"korrigering av feil\"?"]
[22,"Er skatteeffekten av prinsippendringer eller korrigering av feil korrekt presentert?"]
[23,"Er det opplyst om forslag til anvendelse av overskudd eller dekning av tap i samsvar med bestemmelsene i regnskapsstandarden?"]
[24,"Hvis det er delt ut tilleggsutbytte eller ekstraordinært utbytte som er regnskapsført i uttaksåret, er det da gitt opplysning om dette utbyttet sammen med disponeringen av årets resultat?"]
[25,"Er det gitt opplysning i årsregnskap eller årsberetning om konsernbidrag fra morselskap til datterselskap som er ført som investering i morselskapets regnskap?"]
[26,"Er balansen spesifisert i henhold til regnskapslovens oppstillingsplan, evt.etter likviditet, dersom dette gir mer relevante og pålitelige opplysninger?"]
[27,"Er oppstillingsplanen for balansen justert iht NRS (F) God regnskapsskikk for ideelle organisasjoner når dette er relevant mht bevaringsverdige eiendeler, formålskapital og tilskudd? "]
[28,"Er eiendeler bestemt til varig eie eller bruk, og fordringer som ikke skal tilbakebetales innen ett år, klassifisert som anleggsmidler, og øvrige eiendeler klassifisert som omløpsmidler?"]
[29,"Er eventuell beholdning av egne aksjer ført opp i samsvar med regnskapslovens krav?"]
[30,"Inngår tilleggsutbytte eller ekstraordinært utbytte som er besluttet før balansedagen, og som står ubetalt på balansedagen, i kortsiktig gjeld?"]
[31,"Er eventuelle minoritetsinteresser ført opp under egenkapital i balansen og som fradrag i årsresultatet i resultatregnskapet; slik at regnskapet viser årsresultat før og etter minoritetsinteresser?"]
[32,"Bygger konsernregnskapet på de konsoliderte selskapenes selskapsregnskap? Dersom datterselskap ikke benytter samme prinsipper som konsernet, er disse regnskapene da omarbeidet for konsolideringsformål?"]
[33,"Dersom utenlandske datterselskap har et annet regnskapsår enn morselskapet, bygger da konsernregnskapet på et delårsregnskap som er avgitt ved regnskapsårets slutt (eventuelt max 3 mnd +/- med tillegg for vesentlige transaksjoner)?"]

{"sheet":"F_Ja","index":12,"n_rows":34,"n_cols":7,"rows_kept":34,"cut":false,"hidden":true,"merged":[]}
[null,null,{"$f":"COUNTIF(C2:C114,\"=1\")","v":0},"Ja-svar",{"$f":"+Forside!B2","v":0},{"$f":"+Forside!B3","v":2023},"Kommentarer"]
[{"$f":"+'Sjekkliste formelle forhold'!A10","v":1},{"$f":"IF('Sjekkliste formelle forhold'!J10<>\"\",1,0)","v":0},{"$f":"SUM(B2:B2)","v":0},{"$f":"IF($C2=1,'Sjekkliste formelle forhold'!A10,\"\")","v":""},{"$f":"IF($C2=1,'Sjekkliste formelle forhold'!B10,\"\")","v":""},null,{"$f":"IF($C2=1,'Sjekkliste formelle forhold'!N10,\"\")","v":""}]
[{"$f":"+'Sjekkliste formelle forhold'!A11","v":2},{"$f":"IF('Sjekkliste formelle forhold'!J11<>\"\",1,0)","v":0},0,{"$f":"IF($C3=1,'Sjekkliste formelle forhold'!A11,\"\")","v":""},{"$f":"IF($C3=1,'Sjekkliste formelle forhold'!B11,\"\")","v":""},null,{"$f":"IF($C3=1,'Sjekkliste formelle forhold'!N11,\"\")","v":""}]
[{"$f":"+'Sjekkliste formelle forhold'!A12","v":3},{"$f":"IF('Sjekkliste formelle forhold'!J12<>\"\",1,0)","v":0},0,{"$f":"IF($C4=1,'Sjekkliste formelle forhold'!A12,\"\")","v":""},{"$f":"IF($C4=1,'Sjekkliste formelle forhold'!B12,\"\")","v":""},null,{"$f":"IF($C4=1,'Sjekkliste formelle forhold'!N12,\"\")","v":""}]
[{"$f":"+'Sjekkliste formelle forhold'!A13","v":4},{"$f":"IF('Sjekkliste formelle forhold'!J13<>\"\",1,0)","v":0},0,{"$f":"IF($C5=1,'Sjekkliste formelle forhold'!A13,\"\")","v":""},{"$f":"IF($C5=1,'Sjekkliste formelle forhold'!B13,\"\")","v":""},null,{"$f":"IF($C5=1,'Sjekkliste formelle forhold'!N13,\"\")","v":""}]
[{"$f":"+'Sjekkliste formelle forhold'!A14","v":5},{"$f":"IF('Sjekkliste formelle forhold'!J14<>\"\",1,0)","v":0},0,{"$f":"IF($C6=1,'Sjekkliste formelle forhold'!A14,\"\")","v":""},{"$f":"IF($C6=1,'Sjekkliste formelle forhold'!B14,\"\")","v":""},null,{"$f":"IF($C6=1,'Sjekkliste formelle forhold'!N14,\"\")","v":""}]
[{"$f":"+'Sjekkliste formelle forhold'!A16","v":6},{"$f":"IF('Sjekkliste formelle forhold'!J16<>\"\",1,0)","v":0},0,{"$f":"IF($C7=1,'Sjekkliste formelle forhold'!A16,\"\")","v":""},{"$f":"IF($C7=1,'Sjekkliste formelle forhold'!B16,\"\")","v":""},null,{"$f":"IF($C7=1,'Sjekkliste formelle forhold'!N16,\"\")","v":""}]
[{"$f":"+'Sjekkliste formelle forhold'!A17","v":7},{"$f":"IF('Sjekkliste formelle forhold'!J17<>\"\",1,0)","v":0},0,{"$f":"IF($C8=1,'Sjekkliste formelle forhold'!A17,\"\")","v":""},{"$f":"IF($C8=1,'Sjekkliste formelle forhold'!B17,\"\")","v":""},null,{"$f":"IF($C8=1,'Sjekkliste formelle forhold'!N17,\"\")","v":""}]
[{"$f":"+'Sjekkliste formelle forhold'!A18","v":8},{"$f":"IF('Sjekkliste formelle forhold'!J18<>\"\",1,0)","v":0},0,{"$f":"IF($C9=1,'Sjekkliste formelle forhold'!A18,\"\")","v":""},{"$f":"IF($C9=1,'Sjekkliste formelle forhold'!B18,\"\")","v":""},null,{"$f":"IF($C9=1,'Sjekkliste formelle forhold'!N18,\"\")","v":""}]
[{"$f":"+'Sjekkliste formelle forhold'!A22","v":9},{"$f":"IF('Sjekkliste formelle forhold'!J22<>\"\",1,0)","v":0},0,{"$f":"IF($C10=1,'Sjekkliste formelle forhold'!A22,\"\")","v":""},{"$f":"IF($C10=1,'Sjekkliste formelle forhold'!B22,\"\")","v":""},null,{"$f":"IF($C10=1,'Sjekkliste formelle forhold'!N22,\"\")","v":""}]
[{"$f":"+'Sjekkliste formelle forhold'!A26","v":10},{"$f":"IF('Sjekkliste formelle forhold'!J26<>\"\",1,0)","v":0},0,{"$f":"IF($C11=1,'Sjekkliste formelle forhold'!A26,\"\")","v":""},{"$f":"IF($C11=1,'Sjekkliste formelle forhold'!B26,\"\")","v":""},null,{"$f":"IF($C11=1,'Sjekkliste formelle forhold'!N26,\"\")","v":""}]
[{"$f":"+'Sjekkliste formelle forhold'!A28","v":11},{"$f":"IF('Sjekkliste formelle forhold'!J28<>\"\",1,0)","v":0},0,{"$f":"IF($C12=1,'Sjekkliste formelle forhold'!A28,\"\")","v":""},{"$f":"IF($C12=1,'Sjekkliste formelle forhold'!B28,\"\")","v":""},null,{"$f":"IF($C12=1,'Sjekkliste formelle forhold'!N28,\"\")","v":""}]
[{"$f":"+'Sjekkliste formelle forhold'!A29","v":12},{"$f":"IF('Sjekkliste formelle forhold'!J29<>\"\",1,0)","v":0},0,{"$f":"IF($C13=1,'Sjekkliste formelle forhold'!A29,\"\")","v":""},{"$f":"IF($C13=1,'Sjekkliste formelle forhold'!B29,\"\")","v":""},null,{"$f":"IF($C13=1,'Sjekkliste formelle forhold'!N29,\"\")","v":""}]
[{"$f":"+'Sjekkliste formelle forhold'!A31","v":13},{"$f":"IF('Sjekkliste formelle forhold'!J31<>\"\",1,0)","v":0},0,{"$f":"IF($C14=1,'Sjekkliste formelle forhold'!A31,\"\")","v":""},{"$f":"IF($C14=1,'Sjekkliste formelle forhold'!B31,\"\")","v":""},null,{"$f":"IF($C14=1,'Sjekkliste formelle forhold'!N31,\"\")","v":""}]
[{"$f":"+'Sjekkliste formelle forhold'!A32","v":14},{"$f":"IF('Sjekkliste formelle forhold'!J32<>\"\",1,0)","v":0},0,{"$f":"IF($C15=1,'Sjekkliste formelle forhold'!A32,\"\")","v":""},{"$f":"IF($C15=1,'Sjekkliste formelle forhold'!B32,\"\")","v":""},null,{"$f":"IF($C15=1,'Sjekkliste formelle forhold'!N32,\"\")","v":""}]
[{"$f":"+'Sjekkliste formelle forhold'!A33","v":15},{"$f":"IF('Sjekkliste formelle forhold'!J33<>\"\",1,0)","v":0},0,{"$f":"IF($C16=1,'Sjekkliste formelle forhold'!A33,\"\")","v":""},{"$f":"IF($C16=1,'Sjekkliste formelle forhold'!B33,\"\")","v":""},null,{"$f":"IF($C16=1,'Sjekkliste formelle forhold'!N33,\"\")","v":""}]
[{"$f":"+'Sjekkliste formelle forhold'!A35","v":16},{"$f":"IF('Sjekkliste formelle forhold'!J35<>\"\",1,0)","v":0},0,{"$f":"IF($C17=1,'Sjekkliste formelle forhold'!A35,\"\")","v":""},{"$f":"IF($C17=1,'Sjekkliste formelle forhold'!B35,\"\")","v":""},null,{"$f":"IF($C17=1,'Sjekkliste formelle forhold'!N35,\"\")","v":""}]
[{"$f":"+'Sjekkliste formelle forhold'!A36","v":17},{"$f":"IF('Sjekkliste formelle forhold'!J36<>\"\",1,0)","v":0},0,{"$f":"IF($C18=1,'Sjekkliste formelle forhold'!A36,\"\")","v":""},{"$f":"IF($C18=1,'Sjekkliste formelle forhold'!B36,\"\")","v":""},null,{"$f":"IF($C18=1,'Sjekkliste formelle forhold'!N36,\"\")","v":""}]
[{"$f":"+'Sjekkliste formelle forhold'!A37","v":18},{"$f":"IF('Sjekkliste formelle forhold'!J37<>\"\",1,0)","v":0},0,{"$f":"IF($C19=1,'Sjekkliste formelle forhold'!A37,\"\")","v":""},{"$f":"IF($C19=1,'Sjekkliste formelle forhold'!B37,\"\")","v":""},null,{"$f":"IF($C19=1,'Sjekkliste formelle forhold'!N37,\"\")","v":""}]
[{"$f":"+'Sjekkliste formelle forhold'!A39","v":19},{"$f":"IF('Sjekkliste formelle forhold'!J39<>\"\",1,0)","v":0},0,{"$f":"IF($C20=1,'Sjekkliste formelle forhold'!A39,\"\")","v":""},{"$f":"IF($C20=1,'Sjekkliste formelle forhold'!B39,\"\")","v":""},null,{"$f":"IF($C20=1,'Sjekkliste formelle forhold'!N39,\"\")","v":""}]
[{"$f":"+'Sjekkliste formelle forhold'!A40","v":20},{"$f":"IF('Sjekkliste formelle forhold'!J40<>\"\",1,0)","v":0},0,{"$f":"IF($C21=1,'Sjekkliste formelle forhold'!A40,\"\")","v":""},{"$f":"IF($C21=1,'Sjekkliste formelle forhold'!B40,\"\")","v":""},null,{"$f":"IF($C21=1,'Sjekkliste formelle forhold'!N40,\"\")","v":""}]
[{"$f":"+'Sjekkliste formelle forhold'!A42","v":21},{"$f":"IF('Sjekkliste formelle forhold'!J42<>\"\",1,0)","v":0},0,{"$f":"IF($C22=1,'Sjekkliste formelle forhold'!A42,\"\")","v":""},{"$f":"IF($C22=1,'Sjekkliste formelle forhold'!B42,\"\")","v":""},null,{"$f":"IF($C22=1,'Sjekkliste formelle forhold'!N42,\"\")","v":""}]
[{"$f":"+'Sjekkliste formelle forhold'!A44","v":22},{"$f":"IF('Sjekkliste formelle forhold'!J44<>\"\",1,0)","v":0},0,{"$f":"IF($C23=1,'Sjekkliste formelle forhold'!A44,\"\")","v":""},{"$f":"IF($C23=1,'Sjekkliste formelle forhold'!B44,\"\")","v":""},null,{"$f":"IF($C23=1,'Sjekkliste formelle forhold'!N44,\"\")","v":""}]
[{"$f":"+'Sjekkliste formelle forhold'!A47","v":23},{"$f":"IF('Sjekkliste formelle forhold'!J47<>\"\",1,0)","v":0},0,{"$f":"IF($C24=1,'Sjekkliste formelle forhold'!A47,\"\")","v":""},{"$f":"IF($C24=1,'Sjekkliste formelle forhold'!B47,\"\")","v":""},null,{"$f":"IF($C24=1,'Sjekkliste formelle forhold'!N47,\"\")","v":""}]
[{"$f":"+'Sjekkliste formelle forhold'!A48","v":24},{"$f":"IF('Sjekkliste formelle forhold'!J48<>\"\",1,0)","v":0},0,{"$f":"IF($C25=1,'Sjekkliste formelle forhold'!A48,\"\")","v":""},{"$f":"IF($C25=1,'Sjekkliste formelle forhold'!B48,\"\")","v":""},null,{"$f":"IF($C25=1,'Sjekkliste formelle forhold'!N48,\"\")","v":""}]
[{"$f":"+'Sjekkliste formelle forhold'!A49","v":25},{"$f":"IF('Sjekkliste formelle forhold'!J49<>\"\",1,0)","v":0},0,{"$f":"IF($C26=1,'Sjekkliste formelle forhold'!A49,\"\")","v":""},{"$f":"IF($C26=1,'Sjekkliste formelle forhold'!B49,\"\")","v":""},null,{"$f":"IF($C26=1,'Sjekkliste formelle forhold'!N49,\"\")","v":""}]
[{"$f":"+'Sjekkliste formelle forhold'!A52","v":26},{"$f":"IF('Sjekkliste formelle forhold'!J52<>\"\",1,0)","v":0},0,{"$f":"IF($C27=1,'Sjekkliste formelle forhold'!A52,\"\")","v":""},{"$f":"IF($C27=1,'Sjekkliste formelle forhold'!B52,\"\")","v":""},null,{"$f":"IF($C27=1,'Sjekkliste formelle forhold'!N52,\"\")","v":""}]
[{"$f":"+'Sjekkliste formelle forhold'!A53","v":27},{"$f":"IF('Sjekkliste formelle forhold'!J53<>\"\",1,0)","v":0},0,{"$f":"IF($C28=1,'Sjekkliste formelle forhold'!A53,\"\")","v":""},{"$f":"IF($C28=1,'Sjekkliste formelle forhold'!B53,\"\")","v":""},null,{"$f":"IF($C28=1,'Sjekkliste formelle forhold'!N53,\"\")","v":""}]
[{"$f":"+'Sjekkliste formelle forhold'!A54","v":28},{"$f":"IF('Sjekkliste formelle forhold'!J54<>\"\",1,0)","v":0},0,{"$f":"IF($C29=1,'Sjekkliste formelle forhold'!A54,\"\")","v":""},{"$f":"IF($C29=1,'Sjekkliste formelle forhold'!B54,\"\")","v":""},null,{"$f":"IF($C29=1,'Sjekkliste formelle forhold'!N54,\"\")","v":""}]
[{"$f":"+'Sjekkliste formelle forhold'!A56","v":29},{"$f":"IF('Sjekkliste formelle forhold'!J56<>\"\",1,0)","v":0},0,{"$f":"IF($C30=1,'Sjekkliste formelle forhold'!A56,\"\")","v":""},{"$f":"IF($C30=1,'Sjekkliste formelle forhold'!B56,\"\")","v":""},null,{"$f":"IF($C30=1,'Sjekkliste formelle forhold'!N56,\"\")","v":""}]
[{"$f":"+'Sjekkliste formelle forhold'!A57","v":30},{"$f":"IF('Sjekkliste formelle forhold'!J57<>\"\",1,0)","v":0},0,{"$f":"IF($C31=1,'Sjekkliste formelle forhold'!A57,\"\")","v":""},{"$f":"IF($C31=1,'Sjekkliste formelle forhold'!B57,\"\")","v":""},null,{"$f":"IF($C31=1,'Sjekkliste formelle forhold'!N57,\"\")","v":""}]
[{"$f":"+'Sjekkliste formelle forhold'!A63","v":31},{"$f":"IF('Sjekkliste formelle forhold'!J63<>\"\",1,0)","v":0},0,{"$f":"IF($C32=1,'Sjekkliste formelle forhold'!A63,\"\")","v":""},{"$f":"IF($C32=1,'Sjekkliste formelle forhold'!B63,\"\")","v":""},null,{"$f":"IF($C32=1,'Sjekkliste formelle forhold'!N63,\"\")","v":""}]
[{"$f":"+'Sjekkliste formelle forhold'!A64","v":32},{"$f":"IF('Sjekkliste formelle forhold'!J64<>\"\",1,0)","v":0},0,{"$f":"IF($C33=1,'Sjekkliste formelle forhold'!A64,\"\")","v":""},{"$f":"IF($C33=1,'Sjekkliste formelle forhold'!B64,\"\")","v":""},null,{"$f":"IF($C33=1,'Sjekkliste formelle forhold'!N64,\"\")","v":""}]
[{"$f":"+'Sjekkliste formelle forhold'!A65","v":33},{"$f":"IF('Sjekkliste formelle forhold'!J65<>\"\",1,0)","v":0},0,{"$f":"IF($C34=1,'Sjekkliste formelle forhold'!A65,\"\")","v":""},{"$f":"IF($C34=1,'Sjekkliste formelle forhold'!B65,\"\")","v":""},null,{"$f":"IF($C34=1,'Sjekkliste formelle forhold'!N65,\"\")","v":""}]

{"sheet":"F_Nei","index":13,"n_rows":34,"n_cols":7,"rows_kept":34,"cut":false,"hidden":true,"merged":[]}
[null,null,{"$f":"COUNTIF(C2:C108,\"=1\")","v":0},"Nei-svar",{"$f":"+Forside!B2","v":0},{"$f":"+Forside!B3","v":2023},"Kommentarer"]
[{"$f":"+'Sjekkliste formelle forhold'!A10","v":1},{"$f":"IF('Sjekkliste formelle forhold'!K10<>\"\",1,0)","v":0},{"$f":"SUM(B2:B2)","v":0},{"$f":"IF($C2=1,'Sjekkliste formelle forhold'!A10,\"\")","v":""},{"$f":"IF($C2=1,'Sjekkliste formelle forhold'!B10,\"\")","v":""},null,{"$f":"IF($C2=1,'Sjekkliste formelle forhold'!N10,\"\")","v":""}]
[{"$f":"+'Sjekkliste formelle forhold'!A11","v":2},{"$f":"IF('Sjekkliste formelle forhold'!K11<>\"\",1,0)","v":0},0,{"$f":"IF($C3=1,'Sjekkliste formelle forhold'!A11,\"\")","v":""},{"$f":"IF($C3=1,'Sjekkliste formelle forhold'!B11,\"\")","v":""},null,{"$f":"IF($C3=1,'Sjekkliste formelle forhold'!N11,\"\")","v":""}]
[{"$f":"+'Sjekkliste formelle forhold'!A12","v":3},{"$f":"IF('Sjekkliste formelle forhold'!K12<>\"\",1,0)","v":0},0,{"$f":"IF($C4=1,'Sjekkliste formelle forhold'!A12,\"\")","v":""},{"$f":"IF($C4=1,'Sjekkliste formelle forhold'!B12,\"\")","v":""},null,{"$f":"IF($C4=1,'Sjekkliste formelle forhold'!N12,\"\")","v":""}]
[{"$f":"+'Sjekkliste formelle forhold'!A13","v":4},{"$f":"IF('Sjekkliste formelle forhold'!K13<>\"\",1,0)","v":0},0,{"$f":"IF($C5=1,'Sjekkliste formelle forhold'!A13,\"\")","v":""},{"$f":"IF($C5=1,'Sjekkliste formelle forhold'!B13,\"\")","v":""},null,{"$f":"IF($C5=1,'Sjekkliste formelle forhold'!N13,\"\")","v":""}]
[{"$f":"+'Sjekkliste formelle forhold'!A14","v":5},{"$f":"IF('Sjekkliste formelle forhold'!K14<>\"\",1,0)","v":0},0,{"$f":"IF($C6=1,'Sjekkliste formelle forhold'!A14,\"\")","v":""},{"$f":"IF($C6=1,'Sjekkliste formelle forhold'!B14,\"\")","v":""},null,{"$f":"IF($C6=1,'Sjekkliste formelle forhold'!N14,\"\")","v":""}]
[{"$f":"+'Sjekkliste formelle forhold'!A16","v":6},{"$f":"IF('Sjekkliste formelle forhold'!K16<>\"\",1,0)","v":0},0,{"$f":"IF($C7=1,'Sjekkliste formelle forhold'!A16,\"\")","v":""},{"$f":"IF($C7=1,'Sjekkliste formelle forhold'!B16,\"\")","v":""},null,{"$f":"IF($C7=1,'Sjekkliste formelle forhold'!N16,\"\")","v":""}]
[{"$f":"+'Sjekkliste formelle forhold'!A17","v":7},{"$f":"IF('Sjekkliste formelle forhold'!K17<>\"\",1,0)","v":0},0,{"$f":"IF($C8=1,'Sjekkliste formelle forhold'!A17,\"\")","v":""},{"$f":"IF($C8=1,'Sjekkliste formelle forhold'!B17,\"\")","v":""},null,{"$f":"IF($C8=1,'Sjekkliste formelle forhold'!N17,\"\")","v":""}]
[{"$f":"+'Sjekkliste formelle forhold'!A18","v":8},{"$f":"IF('Sjekkliste formelle forhold'!K18<>\"\",1,0)","v":0},0,{"$f":"IF($C9=1,'Sjekkliste formelle forhold'!A18,\"\")","v":""},{"$f":"IF($C9=1,'Sjekkliste formelle forhold'!B18,\"\")","v":""},null,{"$f":"IF($C9=1,'Sjekkliste formelle forhold'!N18,\"\")","v":""}]
[{"$f":"+'Sjekkliste formelle forhold'!A22","v":9},{"$f":"IF('Sjekkliste formelle forhold'!K22<>\"\",1,0)","v":0},0,{"$f":"IF($C10=1,'Sjekkliste formelle forhold'!A22,\"\")","v":""},{"$f":"IF($C10=1,'Sjekkliste formelle forhold'!B22,\"\")","v":""},null,{"$f":"IF($C10=1,'Sjekkliste formelle forhold'!N22,\"\")","v":""}]
[{"$f":"+'Sjekkliste formelle forhold'!A26","v":10},{"$f":"IF('Sjekkliste formelle forhold'!K26<>\"\",1,0)","v":0},0,{"$f":"IF($C11=1,'Sjekkliste formelle forhold'!A26,\"\")","v":""},{"$f":"IF($C11=1,'Sjekkliste formelle forhold'!B26,\"\")","v":""},null,{"$f":"IF($C11=1,'Sjekkliste formelle forhold'!N26,\"\")","v":""}]
[{"$f":"+'Sjekkliste formelle forhold'!A28","v":11},{"$f":"IF('Sjekkliste formelle forhold'!K28<>\"\",1,0)","v":0},0,{"$f":"IF($C12=1,'Sjekkliste formelle forhold'!A28,\"\")","v":""},{"$f":"IF($C12=1,'Sjekkliste formelle forhold'!B28,\"\")","v":""},null,{"$f":"IF($C12=1,'Sjekkliste formelle forhold'!N28,\"\")","v":""}]
[{"$f":"+'Sjekkliste formelle forhold'!A29","v":12},{"$f":"IF('Sjekkliste formelle forhold'!K29<>\"\",1,0)","v":0},0,{"$f":"IF($C13=1,'Sjekkliste formelle forhold'!A29,\"\")","v":""},{"$f":"IF($C13=1,'Sjekkliste formelle forhold'!B29,\"\")","v":""},null,{"$f":"IF($C13=1,'Sjekkliste formelle forhold'!N29,\"\")","v":""}]
[{"$f":"+'Sjekkliste formelle forhold'!A31","v":13},{"$f":"IF('Sjekkliste formelle forhold'!K31<>\"\",1,0)","v":0},0,{"$f":"IF($C14=1,'Sjekkliste formelle forhold'!A31,\"\")","v":""},{"$f":"IF($C14=1,'Sjekkliste formelle forhold'!B31,\"\")","v":""},null,{"$f":"IF($C14=1,'Sjekkliste formelle forhold'!N31,\"\")","v":""}]
[{"$f":"+'Sjekkliste formelle forhold'!A32","v":14},{"$f":"IF('Sjekkliste formelle forhold'!K32<>\"\",1,0)","v":0},0,{"$f":"IF($C15=1,'Sjekkliste formelle forhold'!A32,\"\")","v":""},{"$f":"IF($C15=1,'Sjekkliste formelle forhold'!B32,\"\")","v":""},null,{"$f":"IF($C15=1,'Sjekkliste formelle forhold'!N32,\"\")","v":""}]
[{"$f":"+'Sjekkliste formelle forhold'!A33","v":15},{"$f":"IF('Sjekkliste formelle forhold'!K33<>\"\",1,0)","v":0},0,{"$f":"IF($C16=1,'Sjekkliste formelle forhold'!A33,\"\")","v":""},{"$f":"IF($C16=1,'Sjekkliste formelle forhold'!B33,\"\")","v":""},null,{"$f":"IF($C16=1,'Sjekkliste formelle forhold'!N33,\"\")","v":""}]
[{"$f":"+'Sjekkliste formelle forhold'!A35","v":16},{"$f":"IF('Sjekkliste formelle forhold'!K35<>\"\",1,0)","v":0},0,{"$f":"IF($C17=1,'Sjekkliste formelle forhold'!A35,\"\")","v":""},{"$f":"IF($C17=1,'Sjekkliste formelle forhold'!B35,\"\")","v":""},null,{"$f":"IF($C17=1,'Sjekkliste formelle forhold'!N35,\"\")","v":""}]
[{"$f":"+'Sjekkliste formelle forhold'!A36","v":17},{"$f":"IF('Sjekkliste formelle forhold'!K36<>\"\",1,0)","v":0},0,{"$f":"IF($C18=1,'Sjekkliste formelle forhold'!A36,\"\")","v":""},{"$f":"IF($C18=1,'Sjekkliste formelle forhold'!B36,\"\")","v":""},null,{"$f":"IF($C18=1,'Sjekkliste formelle forhold'!N36,\"\")","v":""}]
[{"$f":"+'Sjekkliste formelle forhold'!A37","v":18},{"$f":"IF('Sjekkliste formelle forhold'!K37<>\"\",1,0)","v":0},0,{"$f":"IF($C19=1,'Sjekkliste formelle forhold'!A37,\"\")","v":""},{"$f":"IF($C19=1,'Sjekkliste formelle forhold'!B37,\"\")","v":""},null,{"$f":"IF($C19=1,'Sjekkliste formelle forhold'!N37,\"\")","v":""}]
[{"$f":"+'Sjekkliste formelle forhold'!A39","v":19},{"$f":"IF('Sjekkliste formelle forhold'!K39<>\"\",1,0)","v":0},0,{"$f":"IF($C20=1,'Sjekkliste formelle forhold'!A39,\"\")","v":""},{"$f":"IF($C20=1,'Sjekkliste formelle forhold'!B39,\"\")","v":""},null,{"$f":"IF($C20=1,'Sjekkliste formelle forhold'!N39,\"\")","v":""}]
[{"$f":"+'Sjekkliste formelle forhold'!A40","v":20},{"$f":"IF('Sjekkliste formelle forhold'!K40<>\"\",1,0)","v":0},0,{"$f":"IF($C21=1,'Sjekkliste formelle forhold'!A40,\"\")","v":""},{"$f":"IF($C21=1,'Sjekkliste formelle forhold'!B40,\"\")","v":""},null,{"$f":"IF($C21=1,'Sjekkliste formelle forhold'!N40,\"\")","v":""}]
[{"$f":"+'Sjekkliste formelle forhold'!A42","v":21},{"$f":"IF('Sjekkliste formelle forhold'!K42<>\"\",1,0)","v":0},0,{"$f":"IF($C22=1,'Sjekkliste formelle forhold'!A42,\"\")","v":""},{"$f":"IF($C22=1,'Sjekkliste formelle forhold'!B42,\"\")","v":""},null,{"$f":"IF($C22=1,'Sjekkliste formelle forhold'!N42,\"\")","v":""}]
[{"$f":"+'Sjekkliste formelle forhold'!A44","v":22},{"$f":"IF('Sjekkliste formelle forhold'!K44<>\"\",1,0)","v":0},0,{"$f":"IF($C23=1,'Sjekkliste formelle forhold'!A44,\"\")","v":""},{"$f":"IF($C23=1,'Sjekkliste formelle forhold'!B44,\"\")","v":""},null,{"$f":"IF($C23=1,'Sjekkliste formelle forhold'!N44,\"\")","v":""}]
[{"$f":"+'Sjekkliste formelle forhold'!A47","v":23},{"$f":"IF('Sjekkliste formelle forhold'!K47<>\"\",1,0)","v":0},0,{"$f":"IF($C24=1,'Sjekkliste formelle forhold'!A47,\"\")","v":""},{"$f":"IF($C24=1,'Sjekkliste formelle forhold'!B47,\"\")","v":""},null,{"$f":"IF($C24=1,'Sjekkliste formelle forhold'!N47,\"\")","v":""}]
[{"$f":"+'Sjekkliste formelle forhold'!A48","v":24},{"$f":"IF('Sjekkliste formelle forhold'!K48<>\"\",1,0)","v":0},0,{"$f":"IF($C25=1,'Sjekkliste formelle forhold'!A48,\"\")","v":""},{"$f":"IF($C25=1,'Sjekkliste formelle forhold'!B48,\"\")","v":""},null,{"$f":"IF($C25=1,'Sjekkliste formelle forhold'!N48,\"\")","v":""}]
[{"$f":"+'Sjekkliste formelle forhold'!A49","v":25},{"$f":"IF('Sjekkliste formelle forhold'!K49<>\"\",1,0)","v":0},0,{"$f":"IF($C26=1,'Sjekkliste formelle forhold'!A49,\"\")","v":""},{"$f":"IF($C26=1,'Sjekkliste formelle forhold'!B49,\"\")","v":""},null,{"$f":"IF($C26=1,'Sjekkliste formelle forhold'!N49,\"\")","v":""}]
[{"$f":"+'Sjekkliste formelle forhold'!A52","v":26},{"$f":"IF('Sjekkliste formelle forhold'!K52<>\"\",1,0)","v":0},0,{"$f":"IF($C27=1,'Sjekkliste formelle forhold'!A52,\"\")","v":""},{"$f":"IF($C27=1,'Sjekkliste formelle forhold'!B52,\"\")","v":""},null,{"$f":"IF($C27=1,'Sjekkliste formelle forhold'!N52,\"\")","v":""}]
[{"$f":"+'Sjekkliste formelle forhold'!A53","v":27},{"$f":"IF('Sjekkliste formelle forhold'!K53<>\"\",1,0)","v":0},0,{"$f":"IF($C28=1,'Sjekkliste formelle forhold'!A53,\"\")","v":""},{"$f":"IF($C28=1,'Sjekkliste formelle forhold'!B53,\"\")","v":""},null,{"$f":"IF($C28=1,'Sjekkliste formelle forhold'!N53,\"\")","v":""}]
[{"$f":"+'Sjekkliste formelle forhold'!A54","v":28},{"$f":"IF('Sjekkliste formelle forhold'!K54<>\"\",1,0)","v":0},0,{"$f":"IF($C29=1,'Sjekkliste formelle forhold'!A54,\"\")","v":""},{"$f":"IF($C29=1,'Sjekkliste formelle forhold'!B54,\"\")","v":""},null,{"$f":"IF($C29=1,'Sjekkliste formelle forhold'!N54,\"\")","v":""}]
[{"$f":"+'Sjekkliste formelle forhold'!A56","v":29},{"$f":"IF('Sjekkliste formelle forhold'!K56<>\"\",1,0)","v":0},0,{"$f":"IF($C30=1,'Sjekkliste formelle forhold'!A56,\"\")","v":""},{"$f":"IF($C30=1,'Sjekkliste formelle forhold'!B56,\"\")","v":""},null,{"$f":"IF($C30=1,'Sjekkliste formelle forhold'!N56,\"\")","v":""}]
[{"$f":"+'Sjekkliste formelle forhold'!A57","v":30},{"$f":"IF('Sjekkliste formelle forhold'!K57<>\"\",1,0)","v":0},0,{"$f":"IF($C31=1,'Sjekkliste formelle forhold'!A57,\"\")","v":""},{"$f":"IF($C31=1,'Sjekkliste formelle forhold'!B57,\"\")","v":""},null,{"$f":"IF($C31=1,'Sjekkliste formelle forhold'!N57,\"\")","v":""}]
[{"$f":"+'Sjekkliste formelle forhold'!A63","v":31},{"$f":"IF('Sjekkliste formelle forhold'!K63<>\"\",1,0)","v":0},0,{"$f":"IF($C32=1,'Sjekkliste formelle forhold'!A63,\"\")","v":""},{"$f":"IF($C32=1,'Sjekkliste formelle forhold'!B63,\"\")","v":""},null,{"$f":"IF($C32=1,'Sjekkliste formelle forhold'!N63,\"\")","v":""}]
[{"$f":"+'Sjekkliste formelle forhold'!A64","v":32},{"$f":"IF('Sjekkliste formelle forhold'!K64<>\"\",1,0)","v":0},0,{"$f":"IF($C33=1,'Sjekkliste formelle forhold'!A64,\"\")","v":""},{"$f":"IF($C33=1,'Sjekkliste formelle forhold'!B64,\"\")","v":""},null,{"$f":"IF($C33=1,'Sjekkliste formelle forhold'!N64,\"\")","v":""}]
[{"$f":"+'Sjekkliste formelle forhold'!A65","v":33},{"$f":"IF('Sjekkliste formelle forhold'!K65<>\"\",1,0)","v":0},0,{"$f":"IF($C34=1,'Sjekkliste formelle forhold'!A65,\"\")","v":""},{"$f":"IF($C34=1,'Sjekkliste formelle forhold'!B65,\"\")","v":""},null,{"$f":"IF($C34=1,'Sjekkliste formelle forhold'!N65,\"\")","v":""}]

{"sheet":"F_IB","index":14,"n_rows":34,"n_cols":7,"rows_kept":34,"cut":false,"hidden":true,"merged":[]}
[null,null,{"$f":"COUNTIF(C2:C427,\"=1\")","v":0},"IA-svar",{"$f":"+Forside!B2","v":0},{"$f":"+Forside!B3","v":2023},"Kommentarer"]
[{"$f":"+'Sjekkliste formelle forhold'!A10","v":1},{"$f":"IF('Sjekkliste formelle forhold'!L10<>\"\",1,0)","v":0},{"$f":"SUM(B2:B2)","v":0},{"$f":"IF($C2=1,'Sjekkliste formelle forhold'!A10,\"\")","v":""},{"$f":"IF($C2=1,'Sjekkliste formelle forhold'!B10,\"\")","v":""},null,{"$f":"IF($C2=1,'Sjekkliste formelle forhold'!N10,\"\")","v":""}]
[{"$f":"+'Sjekkliste formelle forhold'!A11","v":2},{"$f":"IF('Sjekkliste formelle forhold'!L11<>\"\",1,0)","v":0},0,{"$f":"IF($C3=1,'Sjekkliste formelle forhold'!A11,\"\")","v":""},{"$f":"IF($C3=1,'Sjekkliste formelle forhold'!B11,\"\")","v":""},null,{"$f":"IF($C3=1,'Sjekkliste formelle forhold'!N11,\"\")","v":""}]
[{"$f":"+'Sjekkliste formelle forhold'!A12","v":3},{"$f":"IF('Sjekkliste formelle forhold'!L12<>\"\",1,0)","v":0},0,{"$f":"IF($C4=1,'Sjekkliste formelle forhold'!A12,\"\")","v":""},{"$f":"IF($C4=1,'Sjekkliste formelle forhold'!B12,\"\")","v":""},null,{"$f":"IF($C4=1,'Sjekkliste formelle forhold'!N12,\"\")","v":""}]
[{"$f":"+'Sjekkliste formelle forhold'!A13","v":4},{"$f":"IF('Sjekkliste formelle forhold'!L13<>\"\",1,0)","v":0},0,{"$f":"IF($C5=1,'Sjekkliste formelle forhold'!A13,\"\")","v":""},{"$f":"IF($C5=1,'Sjekkliste formelle forhold'!B13,\"\")","v":""},null,{"$f":"IF($C5=1,'Sjekkliste formelle forhold'!N13,\"\")","v":""}]
[{"$f":"+'Sjekkliste formelle forhold'!A14","v":5},{"$f":"IF('Sjekkliste formelle forhold'!L14<>\"\",1,0)","v":0},0,{"$f":"IF($C6=1,'Sjekkliste formelle forhold'!A14,\"\")","v":""},{"$f":"IF($C6=1,'Sjekkliste formelle forhold'!B14,\"\")","v":""},null,{"$f":"IF($C6=1,'Sjekkliste formelle forhold'!N14,\"\")","v":""}]
[{"$f":"+'Sjekkliste formelle forhold'!A16","v":6},{"$f":"IF('Sjekkliste formelle forhold'!L16<>\"\",1,0)","v":0},0,{"$f":"IF($C7=1,'Sjekkliste formelle forhold'!A16,\"\")","v":""},{"$f":"IF($C7=1,'Sjekkliste formelle forhold'!B16,\"\")","v":""},null,{"$f":"IF($C7=1,'Sjekkliste formelle forhold'!N16,\"\")","v":""}]
[{"$f":"+'Sjekkliste formelle forhold'!A17","v":7},{"$f":"IF('Sjekkliste formelle forhold'!L17<>\"\",1,0)","v":0},0,{"$f":"IF($C8=1,'Sjekkliste formelle forhold'!A17,\"\")","v":""},{"$f":"IF($C8=1,'Sjekkliste formelle forhold'!B17,\"\")","v":""},null,{"$f":"IF($C8=1,'Sjekkliste formelle forhold'!N17,\"\")","v":""}]
[{"$f":"+'Sjekkliste formelle forhold'!A18","v":8},{"$f":"IF('Sjekkliste formelle forhold'!L18<>\"\",1,0)","v":0},0,{"$f":"IF($C9=1,'Sjekkliste formelle forhold'!A18,\"\")","v":""},{"$f":"IF($C9=1,'Sjekkliste formelle forhold'!B18,\"\")","v":""},null,{"$f":"IF($C9=1,'Sjekkliste formelle forhold'!N18,\"\")","v":""}]
[{"$f":"+'Sjekkliste formelle forhold'!A22","v":9},{"$f":"IF('Sjekkliste formelle forhold'!L22<>\"\",1,0)","v":0},0,{"$f":"IF($C10=1,'Sjekkliste formelle forhold'!A22,\"\")","v":""},{"$f":"IF($C10=1,'Sjekkliste formelle forhold'!B22,\"\")","v":""},null,{"$f":"IF($C10=1,'Sjekkliste formelle forhold'!N22,\"\")","v":""}]
[{"$f":"+'Sjekkliste formelle forhold'!A26","v":10},{"$f":"IF('Sjekkliste formelle forhold'!L26<>\"\",1,0)","v":0},0,{"$f":"IF($C11=1,'Sjekkliste formelle forhold'!A26,\"\")","v":""},{"$f":"IF($C11=1,'Sjekkliste formelle forhold'!B26,\"\")","v":""},null,{"$f":"IF($C11=1,'Sjekkliste formelle forhold'!N26,\"\")","v":""}]
[{"$f":"+'Sjekkliste formelle forhold'!A28","v":11},{"$f":"IF('Sjekkliste formelle forhold'!L28<>\"\",1,0)","v":0},0,{"$f":"IF($C12=1,'Sjekkliste formelle forhold'!A28,\"\")","v":""},{"$f":"IF($C12=1,'Sjekkliste formelle forhold'!B28,\"\")","v":""},null,{"$f":"IF($C12=1,'Sjekkliste formelle forhold'!N28,\"\")","v":""}]
[{"$f":"+'Sjekkliste formelle forhold'!A29","v":12},{"$f":"IF('Sjekkliste formelle forhold'!L29<>\"\",1,0)","v":0},0,{"$f":"IF($C13=1,'Sjekkliste formelle forhold'!A29,\"\")","v":""},{"$f":"IF($C13=1,'Sjekkliste formelle forhold'!B29,\"\")","v":""},null,{"$f":"IF($C13=1,'Sjekkliste formelle forhold'!N29,\"\")","v":""}]
[{"$f":"+'Sjekkliste formelle forhold'!A31","v":13},{"$f":"IF('Sjekkliste formelle forhold'!L31<>\"\",1,0)","v":0},0,{"$f":"IF($C14=1,'Sjekkliste formelle forhold'!A31,\"\")","v":""},{"$f":"IF($C14=1,'Sjekkliste formelle forhold'!B31,\"\")","v":""},null,{"$f":"IF($C14=1,'Sjekkliste formelle forhold'!N31,\"\")","v":""}]
[{"$f":"+'Sjekkliste formelle forhold'!A32","v":14},{"$f":"IF('Sjekkliste formelle forhold'!L32<>\"\",1,0)","v":0},0,{"$f":"IF($C15=1,'Sjekkliste formelle forhold'!A32,\"\")","v":""},{"$f":"IF($C15=1,'Sjekkliste formelle forhold'!B32,\"\")","v":""},null,{"$f":"IF($C15=1,'Sjekkliste formelle forhold'!N32,\"\")","v":""}]
[{"$f":"+'Sjekkliste formelle forhold'!A33","v":15},{"$f":"IF('Sjekkliste formelle forhold'!L33<>\"\",1,0)","v":0},0,{"$f":"IF($C16=1,'Sjekkliste formelle forhold'!A33,\"\")","v":""},{"$f":"IF($C16=1,'Sjekkliste formelle forhold'!B33,\"\")","v":""},null,{"$f":"IF($C16=1,'Sjekkliste formelle forhold'!N33,\"\")","v":""}]
[{"$f":"+'Sjekkliste formelle forhold'!A35","v":16},{"$f":"IF('Sjekkliste formelle forhold'!L35<>\"\",1,0)","v":0},0,{"$f":"IF($C17=1,'Sjekkliste formelle forhold'!A35,\"\")","v":""},{"$f":"IF($C17=1,'Sjekkliste formelle forhold'!B35,\"\")","v":""},null,{"$f":"IF($C17=1,'Sjekkliste formelle forhold'!N35,\"\")","v":""}]
[{"$f":"+'Sjekkliste formelle forhold'!A36","v":17},{"$f":"IF('Sjekkliste formelle forhold'!L36<>\"\",1,0)","v":0},0,{"$f":"IF($C18=1,'Sjekkliste formelle forhold'!A36,\"\")","v":""},{"$f":"IF($C18=1,'Sjekkliste formelle forhold'!B36,\"\")","v":""},null,{"$f":"IF($C18=1,'Sjekkliste formelle forhold'!N36,\"\")","v":""}]
[{"$f":"+'Sjekkliste formelle forhold'!A37","v":18},{"$f":"IF('Sjekkliste formelle forhold'!L37<>\"\",1,0)","v":0},0,{"$f":"IF($C19=1,'Sjekkliste formelle forhold'!A37,\"\")","v":""},{"$f":"IF($C19=1,'Sjekkliste formelle forhold'!B37,\"\")","v":""},null,{"$f":"IF($C19=1,'Sjekkliste formelle forhold'!N37,\"\")","v":""}]
[{"$f":"+'Sjekkliste formelle forhold'!A39","v":19},{"$f":"IF('Sjekkliste formelle forhold'!L39<>\"\",1,0)","v":0},0,{"$f":"IF($C20=1,'Sjekkliste formelle forhold'!A39,\"\")","v":""},{"$f":"IF($C20=1,'Sjekkliste formelle forhold'!B39,\"\")","v":""},null,{"$f":"IF($C20=1,'Sjekkliste formelle forhold'!N39,\"\")","v":""}]
[{"$f":"+'Sjekkliste formelle forhold'!A40","v":20},{"$f":"IF('Sjekkliste formelle forhold'!L40<>\"\",1,0)","v":0},0,{"$f":"IF($C21=1,'Sjekkliste formelle forhold'!A40,\"\")","v":""},{"$f":"IF($C21=1,'Sjekkliste formelle forhold'!B40,\"\")","v":""},null,{"$f":"IF($C21=1,'Sjekkliste formelle forhold'!N40,\"\")","v":""}]
[{"$f":"+'Sjekkliste formelle forhold'!A42","v":21},{"$f":"IF('Sjekkliste formelle forhold'!L42<>\"\",1,0)","v":0},0,{"$f":"IF($C22=1,'Sjekkliste formelle forhold'!A42,\"\")","v":""},{"$f":"IF($C22=1,'Sjekkliste formelle forhold'!B42,\"\")","v":""},null,{"$f":"IF($C22=1,'Sjekkliste formelle forhold'!N42,\"\")","v":""}]
[{"$f":"+'Sjekkliste formelle forhold'!A44","v":22},{"$f":"IF('Sjekkliste formelle forhold'!L44<>\"\",1,0)","v":0},0,{"$f":"IF($C23=1,'Sjekkliste formelle forhold'!A44,\"\")","v":""},{"$f":"IF($C23=1,'Sjekkliste formelle forhold'!B44,\"\")","v":""},null,{"$f":"IF($C23=1,'Sjekkliste formelle forhold'!N44,\"\")","v":""}]
[{"$f":"+'Sjekkliste formelle forhold'!A47","v":23},{"$f":"IF('Sjekkliste formelle forhold'!L47<>\"\",1,0)","v":0},0,{"$f":"IF($C24=1,'Sjekkliste formelle forhold'!A47,\"\")","v":""},{"$f":"IF($C24=1,'Sjekkliste formelle forhold'!B47,\"\")","v":""},null,{"$f":"IF($C24=1,'Sjekkliste formelle forhold'!N47,\"\")","v":""}]
[{"$f":"+'Sjekkliste formelle forhold'!A48","v":24},{"$f":"IF('Sjekkliste formelle forhold'!L48<>\"\",1,0)","v":0},0,{"$f":"IF($C25=1,'Sjekkliste formelle forhold'!A48,\"\")","v":""},{"$f":"IF($C25=1,'Sjekkliste formelle forhold'!B48,\"\")","v":""},null,{"$f":"IF($C25=1,'Sjekkliste formelle forhold'!N48,\"\")","v":""}]
[{"$f":"+'Sjekkliste formelle forhold'!A49","v":25},{"$f":"IF('Sjekkliste formelle forhold'!L49<>\"\",1,0)","v":0},0,{"$f":"IF($C26=1,'Sjekkliste formelle forhold'!A49,\"\")","v":""},{"$f":"IF($C26=1,'Sjekkliste formelle forhold'!B49,\"\")","v":""},null,{"$f":"IF($C26=1,'Sjekkliste formelle forhold'!N49,\"\")","v":""}]
[{"$f":"+'Sjekkliste formelle forhold'!A52","v":26},{"$f":"IF('Sjekkliste formelle forhold'!L52<>\"\",1,0)","v":0},0,{"$f":"IF($C27=1,'Sjekkliste formelle forhold'!A52,\"\")","v":""},{"$f":"IF($C27=1,'Sjekkliste formelle forhold'!B52,\"\")","v":""},null,{"$f":"IF($C27=1,'Sjekkliste formelle forhold'!N52,\"\")","v":""}]
[{"$f":"+'Sjekkliste formelle forhold'!A53","v":27},{"$f":"IF('Sjekkliste formelle forhold'!L53<>\"\",1,0)","v":0},0,{"$f":"IF($C28=1,'Sjekkliste formelle forhold'!A53,\"\")","v":""},{"$f":"IF($C28=1,'Sjekkliste formelle forhold'!B53,\"\")","v":""},null,{"$f":"IF($C28=1,'Sjekkliste formelle forhold'!N53,\"\")","v":""}]
[{"$f":"+'Sjekkliste formelle forhold'!A54","v":28},{"$f":"IF('Sjekkliste formelle forhold'!L54<>\"\",1,0)","v":0},0,{"$f":"IF($C29=1,'Sjekkliste formelle forhold'!A54,\"\")","v":""},{"$f":"IF($C29=1,'Sjekkliste formelle forhold'!B54,\"\")","v":""},null,{"$f":"IF($C29=1,'Sjekkliste formelle forhold'!N54,\"\")","v":""}]
[{"$f":"+'Sjekkliste formelle forhold'!A56","v":29},{"$f":"IF('Sjekkliste formelle forhold'!L56<>\"\",1,0)","v":0},0,{"$f":"IF($C30=1,'Sjekkliste formelle forhold'!A56,\"\")","v":""},{"$f":"IF($C30=1,'Sjekkliste formelle forhold'!B56,\"\")","v":""},null,{"$f":"IF($C30=1,'Sjekkliste formelle forhold'!N56,\"\")","v":""}]
[{"$f":"+'Sjekkliste formelle forhold'!A57","v":30},{"$f":"IF('Sjekkliste formelle forhold'!L57<>\"\",1,0)","v":0},0,{"$f":"IF($C31=1,'Sjekkliste formelle forhold'!A57,\"\")","v":""},{"$f":"IF($C31=1,'Sjekkliste formelle forhold'!B57,\"\")","v":""},null,{"$f":"IF($C31=1,'Sjekkliste formelle forhold'!N57,\"\")","v":""}]
[{"$f":"+'Sjekkliste formelle forhold'!A63","v":31},{"$f":"IF('Sjekkliste formelle forhold'!L63<>\"\",1,0)","v":0},0,{"$f":"IF($C32=1,'Sjekkliste formelle forhold'!A63,\"\")","v":""},{"$f":"IF($C32=1,'Sjekkliste formelle forhold'!B63,\"\")","v":""},null,{"$f":"IF($C32=1,'Sjekkliste formelle forhold'!N63,\"\")","v":""}]
[{"$f":"+'Sjekkliste formelle forhold'!A64","v":32},{"$f":"IF('Sjekkliste formelle forhold'!L64<>\"\",1,0)","v":0},0,{"$f":"IF($C33=1,'Sjekkliste formelle forhold'!A64,\"\")","v":""},{"$f":"IF($C33=1,'Sjekkliste formelle forhold'!B64,\"\")","v":""},null,{"$f":"IF($C33=1,'Sjekkliste formelle forhold'!N64,\"\")","v":""}]
[{"$f":"+'Sjekkliste formelle forhold'!A65","v":33},{"$f":"IF('Sjekkliste formelle forhold'!L65<>\"\",1,0)","v":0},0,{"$f":"IF($C34=1,'Sjekkliste formelle forhold'!A65,\"\")","v":""},{"$f":"IF($C34=1,'Sjekkliste formelle forhold'!B65,\"\")","v":""},null,{"$f":"IF($C34=1,'Sjekkliste formelle forhold'!N65,\"\")","v":""}]

{"sheet":"F_IA","index":15,"n_rows":34,"n_cols":7,"rows_kept":34,"cut":false,"hidden":true,"merged":[]}
[null,null,{"$f":"COUNTIF(C2:C457,\"=1\")","v":0},"IA-svar",{"$f":"+Forside!B2","v":0},{"$f":"+Forside!B3","v":2023},"Kommentarer"]
[{"$f":"+'Sjekkliste formelle forhold'!A10","v":1},{"$f":"IF('Sjekkliste formelle forhold'!M10<>\"\",1,0)","v":0},{"$f":"SUM(B2:B2)","v":0},{"$f":"IF($C2=1,'Sjekkliste formelle forhold'!A10,\"\")","v":""},{"$f":"IF($C2=1,'Sjekkliste formelle forhold'!B10,\"\")","v":""},null,{"$f":"IF($C2=1,'Sjekkliste formelle forhold'!N10,\"\")","v":""}]
[{"$f":"+'Sjekkliste formelle forhold'!A11","v":2},{"$f":"IF('Sjekkliste formelle forhold'!M11<>\"\",1,0)","v":0},0,{"$f":"IF($C3=1,'Sjekkliste formelle forhold'!A11,\"\")","v":""},{"$f":"IF($C3=1,'Sjekkliste formelle forhold'!B11,\"\")","v":""},null,{"$f":"IF($C3=1,'Sjekkliste formelle forhold'!N11,\"\")","v":""}]
[{"$f":"+'Sjekkliste formelle forhold'!A12","v":3},{"$f":"IF('Sjekkliste formelle forhold'!M12<>\"\",1,0)","v":0},0,{"$f":"IF($C4=1,'Sjekkliste formelle forhold'!A12,\"\")","v":""},{"$f":"IF($C4=1,'Sjekkliste formelle forhold'!B12,\"\")","v":""},null,{"$f":"IF($C4=1,'Sjekkliste formelle forhold'!N12,\"\")","v":""}]
[{"$f":"+'Sjekkliste formelle forhold'!A13","v":4},{"$f":"IF('Sjekkliste formelle forhold'!M13<>\"\",1,0)","v":0},0,{"$f":"IF($C5=1,'Sjekkliste formelle forhold'!A13,\"\")","v":""},{"$f":"IF($C5=1,'Sjekkliste formelle forhold'!B13,\"\")","v":""},null,{"$f":"IF($C5=1,'Sjekkliste formelle forhold'!N13,\"\")","v":""}]
[{"$f":"+'Sjekkliste formelle forhold'!A14","v":5},{"$f":"IF('Sjekkliste formelle forhold'!M14<>\"\",1,0)","v":0},0,{"$f":"IF($C6=1,'Sjekkliste formelle forhold'!A14,\"\")","v":""},{"$f":"IF($C6=1,'Sjekkliste formelle forhold'!B14,\"\")","v":""},null,{"$f":"IF($C6=1,'Sjekkliste formelle forhold'!N14,\"\")","v":""}]
[{"$f":"+'Sjekkliste formelle forhold'!A16","v":6},{"$f":"IF('Sjekkliste formelle forhold'!M16<>\"\",1,0)","v":0},0,{"$f":"IF($C7=1,'Sjekkliste formelle forhold'!A16,\"\")","v":""},{"$f":"IF($C7=1,'Sjekkliste formelle forhold'!B16,\"\")","v":""},null,{"$f":"IF($C7=1,'Sjekkliste formelle forhold'!N16,\"\")","v":""}]
[{"$f":"+'Sjekkliste formelle forhold'!A17","v":7},{"$f":"IF('Sjekkliste formelle forhold'!M17<>\"\",1,0)","v":0},0,{"$f":"IF($C8=1,'Sjekkliste formelle forhold'!A17,\"\")","v":""},{"$f":"IF($C8=1,'Sjekkliste formelle forhold'!B17,\"\")","v":""},null,{"$f":"IF($C8=1,'Sjekkliste formelle forhold'!N17,\"\")","v":""}]
[{"$f":"+'Sjekkliste formelle forhold'!A18","v":8},{"$f":"IF('Sjekkliste formelle forhold'!M18<>\"\",1,0)","v":0},0,{"$f":"IF($C9=1,'Sjekkliste formelle forhold'!A18,\"\")","v":""},{"$f":"IF($C9=1,'Sjekkliste formelle forhold'!B18,\"\")","v":""},null,{"$f":"IF($C9=1,'Sjekkliste formelle forhold'!N18,\"\")","v":""}]
[{"$f":"+'Sjekkliste formelle forhold'!A22","v":9},{"$f":"IF('Sjekkliste formelle forhold'!M22<>\"\",1,0)","v":0},0,{"$f":"IF($C10=1,'Sjekkliste formelle forhold'!A22,\"\")","v":""},{"$f":"IF($C10=1,'Sjekkliste formelle forhold'!B22,\"\")","v":""},null,{"$f":"IF($C10=1,'Sjekkliste formelle forhold'!N22,\"\")","v":""}]
[{"$f":"+'Sjekkliste formelle forhold'!A26","v":10},{"$f":"IF('Sjekkliste formelle forhold'!M26<>\"\",1,0)","v":0},0,{"$f":"IF($C11=1,'Sjekkliste formelle forhold'!A26,\"\")","v":""},{"$f":"IF($C11=1,'Sjekkliste formelle forhold'!B26,\"\")","v":""},null,{"$f":"IF($C11=1,'Sjekkliste formelle forhold'!N26,\"\")","v":""}]
[{"$f":"+'Sjekkliste formelle forhold'!A28","v":11},{"$f":"IF('Sjekkliste formelle forhold'!M28<>\"\",1,0)","v":0},0,{"$f":"IF($C12=1,'Sjekkliste formelle forhold'!A28,\"\")","v":""},{"$f":"IF($C12=1,'Sjekkliste formelle forhold'!B28,\"\")","v":""},null,{"$f":"IF($C12=1,'Sjekkliste formelle forhold'!N28,\"\")","v":""}]
[{"$f":"+'Sjekkliste formelle forhold'!A29","v":12},{"$f":"IF('Sjekkliste formelle forhold'!M29<>\"\",1,0)","v":0},0,{"$f":"IF($C13=1,'Sjekkliste formelle forhold'!A29,\"\")","v":""},{"$f":"IF($C13=1,'Sjekkliste formelle forhold'!B29,\"\")","v":""},null,{"$f":"IF($C13=1,'Sjekkliste formelle forhold'!N29,\"\")","v":""}]
[{"$f":"+'Sjekkliste formelle forhold'!A31","v":13},{"$f":"IF('Sjekkliste formelle forhold'!M31<>\"\",1,0)","v":0},0,{"$f":"IF($C14=1,'Sjekkliste formelle forhold'!A31,\"\")","v":""},{"$f":"IF($C14=1,'Sjekkliste formelle forhold'!B31,\"\")","v":""},null,{"$f":"IF($C14=1,'Sjekkliste formelle forhold'!N31,\"\")","v":""}]
[{"$f":"+'Sjekkliste formelle forhold'!A32","v":14},{"$f":"IF('Sjekkliste formelle forhold'!M32<>\"\",1,0)","v":0},0,{"$f":"IF($C15=1,'Sjekkliste formelle forhold'!A32,\"\")","v":""},{"$f":"IF($C15=1,'Sjekkliste formelle forhold'!B32,\"\")","v":""},null,{"$f":"IF($C15=1,'Sjekkliste formelle forhold'!N32,\"\")","v":""}]
[{"$f":"+'Sjekkliste formelle forhold'!A33","v":15},{"$f":"IF('Sjekkliste formelle forhold'!M33<>\"\",1,0)","v":0},0,{"$f":"IF($C16=1,'Sjekkliste formelle forhold'!A33,\"\")","v":""},{"$f":"IF($C16=1,'Sjekkliste formelle forhold'!B33,\"\")","v":""},null,{"$f":"IF($C16=1,'Sjekkliste formelle forhold'!N33,\"\")","v":""}]
[{"$f":"+'Sjekkliste formelle forhold'!A35","v":16},{"$f":"IF('Sjekkliste formelle forhold'!M35<>\"\",1,0)","v":0},0,{"$f":"IF($C17=1,'Sjekkliste formelle forhold'!A35,\"\")","v":""},{"$f":"IF($C17=1,'Sjekkliste formelle forhold'!B35,\"\")","v":""},null,{"$f":"IF($C17=1,'Sjekkliste formelle forhold'!N35,\"\")","v":""}]
[{"$f":"+'Sjekkliste formelle forhold'!A36","v":17},{"$f":"IF('Sjekkliste formelle forhold'!M36<>\"\",1,0)","v":0},0,{"$f":"IF($C18=1,'Sjekkliste formelle forhold'!A36,\"\")","v":""},{"$f":"IF($C18=1,'Sjekkliste formelle forhold'!B36,\"\")","v":""},null,{"$f":"IF($C18=1,'Sjekkliste formelle forhold'!N36,\"\")","v":""}]
[{"$f":"+'Sjekkliste formelle forhold'!A37","v":18},{"$f":"IF('Sjekkliste formelle forhold'!M37<>\"\",1,0)","v":0},0,{"$f":"IF($C19=1,'Sjekkliste formelle forhold'!A37,\"\")","v":""},{"$f":"IF($C19=1,'Sjekkliste formelle forhold'!B37,\"\")","v":""},null,{"$f":"IF($C19=1,'Sjekkliste formelle forhold'!N37,\"\")","v":""}]
[{"$f":"+'Sjekkliste formelle forhold'!A39","v":19},{"$f":"IF('Sjekkliste formelle forhold'!M39<>\"\",1,0)","v":0},0,{"$f":"IF($C20=1,'Sjekkliste formelle forhold'!A39,\"\")","v":""},{"$f":"IF($C20=1,'Sjekkliste formelle forhold'!B39,\"\")","v":""},null,{"$f":"IF($C20=1,'Sjekkliste formelle forhold'!N39,\"\")","v":""}]
[{"$f":"+'Sjekkliste formelle forhold'!A40","v":20},{"$f":"IF('Sjekkliste formelle forhold'!M40<>\"\",1,0)","v":0},0,{"$f":"IF($C21=1,'Sjekkliste formelle forhold'!A40,\"\")","v":""},{"$f":"IF($C21=1,'Sjekkliste formelle forhold'!B40,\"\")","v":""},null,{"$f":"IF($C21=1,'Sjekkliste formelle forhold'!N40,\"\")","v":""}]
[{"$f":"+'Sjekkliste formelle forhold'!A42","v":21},{"$f":"IF('Sjekkliste formelle forhold'!M42<>\"\",1,0)","v":0},0,{"$f":"IF($C22=1,'Sjekkliste formelle forhold'!A42,\"\")","v":""},{"$f":"IF($C22=1,'Sjekkliste formelle forhold'!B42,\"\")","v":""},null,{"$f":"IF($C22=1,'Sjekkliste formelle forhold'!N42,\"\")","v":""}]
[{"$f":"+'Sjekkliste formelle forhold'!A44","v":22},{"$f":"IF('Sjekkliste formelle forhold'!M44<>\"\",1,0)","v":0},0,{"$f":"IF($C23=1,'Sjekkliste formelle forhold'!A44,\"\")","v":""},{"$f":"IF($C23=1,'Sjekkliste formelle forhold'!B44,\"\")","v":""},null,{"$f":"IF($C23=1,'Sjekkliste formelle forhold'!N44,\"\")","v":""}]
[{"$f":"+'Sjekkliste formelle forhold'!A47","v":23},{"$f":"IF('Sjekkliste formelle forhold'!M47<>\"\",1,0)","v":0},0,{"$f":"IF($C24=1,'Sjekkliste formelle forhold'!A47,\"\")","v":""},{"$f":"IF($C24=1,'Sjekkliste formelle forhold'!B47,\"\")","v":""},null,{"$f":"IF($C24=1,'Sjekkliste formelle forhold'!N47,\"\")","v":""}]
[{"$f":"+'Sjekkliste formelle forhold'!A48","v":24},{"$f":"IF('Sjekkliste formelle forhold'!M48<>\"\",1,0)","v":0},0,{"$f":"IF($C25=1,'Sjekkliste formelle forhold'!A48,\"\")","v":""},{"$f":"IF($C25=1,'Sjekkliste formelle forhold'!B48,\"\")","v":""},null,{"$f":"IF($C25=1,'Sjekkliste formelle forhold'!N48,\"\")","v":""}]
[{"$f":"+'Sjekkliste formelle forhold'!A49","v":25},{"$f":"IF('Sjekkliste formelle forhold'!M49<>\"\",1,0)","v":0},0,{"$f":"IF($C26=1,'Sjekkliste formelle forhold'!A49,\"\")","v":""},{"$f":"IF($C26=1,'Sjekkliste formelle forhold'!B49,\"\")","v":""},null,{"$f":"IF($C26=1,'Sjekkliste formelle forhold'!N49,\"\")","v":""}]
[{"$f":"+'Sjekkliste formelle forhold'!A52","v":26},{"$f":"IF('Sjekkliste formelle forhold'!M52<>\"\",1,0)","v":0},0,{"$f":"IF($C27=1,'Sjekkliste formelle forhold'!A52,\"\")","v":""},{"$f":"IF($C27=1,'Sjekkliste formelle forhold'!B52,\"\")","v":""},null,{"$f":"IF($C27=1,'Sjekkliste formelle forhold'!N52,\"\")","v":""}]
[{"$f":"+'Sjekkliste formelle forhold'!A53","v":27},{"$f":"IF('Sjekkliste formelle forhold'!M53<>\"\",1,0)","v":0},0,{"$f":"IF($C28=1,'Sjekkliste formelle forhold'!A53,\"\")","v":""},{"$f":"IF($C28=1,'Sjekkliste formelle forhold'!B53,\"\")","v":""},null,{"$f":"IF($C28=1,'Sjekkliste formelle forhold'!N53,\"\")","v":""}]
[{"$f":"+'Sjekkliste formelle forhold'!A54","v":28},{"$f":"IF('Sjekkliste formelle forhold'!M54<>\"\",1,0)","v":0},0,{"$f":"IF($C29=1,'Sjekkliste formelle forhold'!A54,\"\")","v":""},{"$f":"IF($C29=1,'Sjekkliste formelle forhold'!B54,\"\")","v":""},null,{"$f":"IF($C29=1,'Sjekkliste formelle forhold'!N54,\"\")","v":""}]
[{"$f":"+'Sjekkliste formelle forhold'!A56","v":29},{"$f":"IF('Sjekkliste formelle forhold'!M56<>\"\",1,0)","v":0},0,{"$f":"IF($C30=1,'Sjekkliste formelle forhold'!A56,\"\")","v":""},{"$f":"IF($C30=1,'Sjekkliste formelle forhold'!B56,\"\")","v":""},null,{"$f":"IF($C30=1,'Sjekkliste formelle forhold'!N56,\"\")","v":""}]
[{"$f":"+'Sjekkliste formelle forhold'!A57","v":30},{"$f":"IF('Sjekkliste formelle forhold'!M57<>\"\",1,0)","v":0},0,{"$f":"IF($C31=1,'Sjekkliste formelle forhold'!A57,\"\")","v":""},{"$f":"IF($C31=1,'Sjekkliste formelle forhold'!B57,\"\")","v":""},null,{"$f":"IF($C31=1,'Sjekkliste formelle forhold'!N57,\"\")","v":""}]
[{"$f":"+'Sjekkliste formelle forhold'!A63","v":31},{"$f":"IF('Sjekkliste formelle forhold'!M63<>\"\",1,0)","v":0},0,{"$f":"IF($C32=1,'Sjekkliste formelle forhold'!A63,\"\")","v":""},{"$f":"IF($C32=1,'Sjekkliste formelle forhold'!B63,\"\")","v":""},null,{"$f":"IF($C32=1,'Sjekkliste formelle forhold'!N63,\"\")","v":""}]
[{"$f":"+'Sjekkliste formelle forhold'!A64","v":32},{"$f":"IF('Sjekkliste formelle forhold'!M64<>\"\",1,0)","v":0},0,{"$f":"IF($C33=1,'Sjekkliste formelle forhold'!A64,\"\")","v":""},{"$f":"IF($C33=1,'Sjekkliste formelle forhold'!B64,\"\")","v":""},null,{"$f":"IF($C33=1,'Sjekkliste formelle forhold'!N64,\"\")","v":""}]
[{"$f":"+'Sjekkliste formelle forhold'!A65","v":33},{"$f":"IF('Sjekkliste formelle forhold'!M65<>\"\",1,0)","v":0},0,{"$f":"IF($C34=1,'Sjekkliste formelle forhold'!A65,\"\")","v":""},{"$f":"IF($C34=1,'Sjekkliste formelle forhold'!B65,\"\")","v":""},null,{"$f":"IF($C34=1,'Sjekkliste formelle forhold'!N65,\"\")","v":""}]